Workbook

Sheet Annuity 2 (hidden)
A1: =RIGHT(CELL("filename", $A$1), LEN(CELL("filename", $A$1)) - SEARCH("]", CELL("filename", $A$1))) -> Annuity 2
E2: Period Beginning | H2: =#REF! ->  | I2: =#REF! ->  | J2: =#REF! ->  | K2: =#REF! ->  | L2: =#REF! ->  | M2: =#REF! ->  | N2: =#REF! ->  | O2: =#REF! ->  | P2: =#REF! ->  | Q2: =#REF! ->  | R2: =#REF! ->  | S2: =#REF! ->  | T2: =#REF! ->  | U2: =#REF! ->  | V2: =#REF! ->  | W2: =#REF! -> 
E3: Period Ending | H3: =#REF! ->  | I3: =#REF! ->  | J3: =#REF! ->  | K3: =#REF! ->  | L3: =#REF! ->  | M3: =#REF! ->  | N3: =#REF! ->  | O3: =#REF! ->  | P3: =#REF! ->  | Q3: =#REF! ->  | R3: =#REF! ->  | S3: =#REF! ->  | T3: =#REF! ->  | U3: =#REF! ->  | V3: =#REF! ->  | W3: =#REF! -> 
E4: Financial Year Ending | H4: =#REF! ->  | I4: =#REF! ->  | J4: =#REF! ->  | K4: =#REF! ->  | L4: =#REF! ->  | M4: =#REF! ->  | N4: =#REF! ->  | O4: =#REF! ->  | P4: =#REF! ->  | Q4: =#REF! ->  | R4: =#REF! ->  | S4: =#REF! ->  | T4: =#REF! ->  | U4: =#REF! ->  | V4: =#REF! ->  | W4: =#REF! -> 
E5: Year of Construction | H5: =#REF! ->  | I5: =#REF! ->  | J5: =#REF! ->  | K5: =#REF! ->  | L5: =#REF! ->  | M5: =#REF! ->  | N5: =#REF! ->  | O5: =#REF! ->  | P5: =#REF! ->  | Q5: =#REF! ->  | R5: =#REF! ->  | S5: =#REF! ->  | T5: =#REF! ->  | U5: =#REF! ->  | V5: =#REF! ->  | W5: =#REF! -> 
E6: Year of operations | H6: =#REF! ->  | I6: =#REF! ->  | J6: =#REF! ->  | K6: =#REF! ->  | L6: =#REF! ->  | M6: =#REF! ->  | N6: =#REF! ->  | O6: =#REF! ->  | P6: =#REF! ->  | Q6: =#REF! ->  | R6: =#REF! ->  | S6: =#REF! ->  | T6: =#REF! ->  | U6: =#REF! ->  | V6: =#REF! ->  | W6: =#REF! -> 
E7: Days in period | H7: =#REF! ->  | I7: =#REF! ->  | J7: =#REF! ->  | K7: =#REF! ->  | L7: =#REF! ->  | M7: =#REF! ->  | N7: =#REF! ->  | O7: =#REF! ->  | P7: =#REF! ->  | Q7: =#REF! ->  | R7: =#REF! ->  | S7: =#REF! ->  | T7: =#REF! ->  | U7: =#REF! ->  | V7: =#REF! ->  | W7: =#REF! -> 
B8: INR Lakhs unless specified
E10: Operations Flag | H10: =#REF! ->  | I10: =#REF! ->  | J10: =#REF! ->  | K10: =#REF! ->  | L10: =#REF! ->  | M10: =#REF! ->  | N10: =#REF! ->  | O10: =#REF! ->  | P10: =#REF! ->  | Q10: =#REF! ->  | R10: =#REF! ->  | S10: =#REF! ->  | T10: =#REF! ->  | U10: =#REF! ->  | V10: =#REF! ->  | W10: =#REF! -> 
E11: Inflation
E12: Escalation of O&M - Provided For | F12: 0.1 | H12: =(1+'Annuity 2'!$F$12)^((#REF!-#REF!)/#REF!) ->  | I12: ='Annuity 2'!H12*(1+('Annuity 2'!$F$12*((Timing!I3-Timing!I2+1)/#REF!))) ->  | J12: ='Annuity 2'!I12*(1+('Annuity 2'!$F$12*((Timing!J3-Timing!J2+1)/#REF!))) ->  | K12: ='Annuity 2'!J12*(1+('Annuity 2'!$F$12*((Timing!K3-Timing!K2+1)/#REF!))) ->  | L12: ='Annuity 2'!K12*(1+('Annuity 2'!$F$12*((Timing!L3-Timing!L2+1)/#REF!))) ->  | M12: ='Annuity 2'!L12*(1+('Annuity 2'!$F$12*((Timing!M3-Timing!M2+1)/#REF!))) ->  | N12: ='Annuity 2'!M12*(1+('Annuity 2'!$F$12*((Timing!N3-Timing!N2+1)/#REF!))) ->  | O12: ='Annuity 2'!N12*(1+('Annuity 2'!$F$12*((Timing!O3-Timing!O2+1)/#REF!))) ->  | P12: ='Annuity 2'!O12*(1+('Annuity 2'!$F$12*((Timing!P3-Timing!P2+1)/#REF!))) ->  | Q12: ='Annuity 2'!P12*(1+('Annuity 2'!$F$12*((Timing!Q3-Timing!Q2+1)/#REF!))) ->  | R12: ='Annuity 2'!Q12*(1+('Annuity 2'!$F$12*((Timing!R3-Timing!R2+1)/#REF!))) ->  | S12: ='Annuity 2'!R12*(1+('Annuity 2'!$F$12*((Timing!S3-Timing!S2+1)/#REF!))) ->  | T12: ='Annuity 2'!S12*(1+('Annuity 2'!$F$12*((Timing!T3-Timing!T2+1)/#REF!))) ->  | U12: ='Annuity 2'!T12*(1+('Annuity 2'!$F$12*((Timing!U3-Timing!U2+1)/#REF!))) ->  | V12: ='Annuity 2'!U12*(1+('Annuity 2'!$F$12*((Timing!V3-Timing!V2+1)/#REF!))) ->  | W12: ='Annuity 2'!V12*(1+('Annuity 2'!$F$12*((Timing!W3-Timing!W2+1)/#REF!))) -> 
E13: Escalation of O&M - Actual Incurred | F13: =#REF! ->  | H13: =(1+'Annuity 2'!$F$13)^((#REF!-#REF!)/#REF!) ->  | I13: ='Annuity 2'!H13*(1+('Annuity 2'!$F$13*((Timing!I3-Timing!I2+1)/#REF!))) ->  | J13: =I13*(1+('Annuity 2'!$F$13*((Timing!J3-Timing!J2+1)/#REF!))) ->  | K13: =J13*(1+('Annuity 2'!$F$13*((Timing!K3-Timing!K2+1)/#REF!))) ->  | L13: =K13*(1+('Annuity 2'!$F$13*((Timing!L3-Timing!L2+1)/#REF!))) ->  | M13: =L13*(1+('Annuity 2'!$F$13*((Timing!M3-Timing!M2+1)/#REF!))) ->  | N13: =M13*(1+('Annuity 2'!$F$13*((Timing!N3-Timing!N2+1)/#REF!))) ->  | O13: =N13*(1+('Annuity 2'!$F$13*((Timing!O3-Timing!O2+1)/#REF!))) ->  | P13: =O13*(1+('Annuity 2'!$F$13*((Timing!P3-Timing!P2+1)/#REF!))) ->  | Q13: =P13*(1+('Annuity 2'!$F$13*((Timing!Q3-Timing!Q2+1)/#REF!))) ->  | R13: =Q13*(1+('Annuity 2'!$F$13*((Timing!R3-Timing!R2+1)/#REF!))) ->  | S13: =R13*(1+('Annuity 2'!$F$13*((Timing!S3-Timing!S2+1)/#REF!))) ->  | T13: =S13*(1+('Annuity 2'!$F$13*((Timing!T3-Timing!T2+1)/#REF!))) ->  | U13: =T13*(1+('Annuity 2'!$F$13*((Timing!U3-Timing!U2+1)/#REF!))) ->  | V13: =U13*(1+('Annuity 2'!$F$13*((Timing!V3-Timing!V2+1)/#REF!))) ->  | W13: =V13*(1+('Annuity 2'!$F$13*((Timing!W3-Timing!W2+1)/#REF!))) ->  | X13: =W13*(1+('Annuity 2'!$F$13*((Timing!X3-Timing!X2+1)/#REF!))) ->  | Y13: =X13*(1+('Annuity 2'!$F$13*((Timing!Y3-Timing!Y2+1)/#REF!))) ->  | Z13: =Y13*(1+('Annuity 2'!$F$13*((Timing!Z3-Timing!Z2+1)/#REF!))) ->  | AA13: =Z13*(1+('Annuity 2'!$F$13*((Timing!AA3-Timing!AA2+1)/#REF!))) ->  | AB13: =AA13*(1+('Annuity 2'!$F$13*((Timing!AB3-Timing!AB2+1)/#REF!))) ->  | AC13: =AB13*(1+('Annuity 2'!$F$13*((Timing!AC3-Timing!AC2+1)/#REF!))) ->  | AD13: =AC13*(1+('Annuity 2'!$F$13*((Timing!AD3-Timing!AD2+1)/#REF!))) ->  | AE13: =AD13*(1+('Annuity 2'!$F$13*((Timing!AE3-Timing!AE2+1)/#REF!))) ->  | AF13: =AE13*(1+('Annuity 2'!$F$13*((Timing!AF3-Timing!AF2+1)/#REF!))) ->  | AG13: =AF13*(1+('Annuity 2'!$F$13*((Timing!AG3-Timing!AG2+1)/#REF!))) ->  | AH13: =AG13*(1+('Annuity 2'!$F$13*((Timing!AH3-Timing!AH2+1)/#REF!))) ->  | AI13: =AH13*(1+('Annuity 2'!$F$13*((Timing!AI3-Timing!AI2+1)/#REF!))) ->  | AJ13: =AI13*(1+('Annuity 2'!$F$13*((Timing!AJ3-Timing!AJ2+1)/#REF!))) ->  | AK13: =AJ13*(1+('Annuity 2'!$F$13*((Timing!AK3-Timing!AK2+1)/#REF!))) ->  | AL13: =AK13*(1+('Annuity 2'!$F$13*((Timing!AL3-Timing!AL2+1)/#REF!))) ->  | AM13: =AL13*(1+('Annuity 2'!$F$13*((Timing!AM3-Timing!AM2+1)/#REF!))) ->  | AN13: =AM13*(1+('Annuity 2'!$F$13*((Timing!AN3-Timing!AN2+1)/#REF!))) ->  | AO13: =AN13*(1+('Annuity 2'!$F$13*((Timing!AO3-Timing!AO2+1)/#REF!))) ->  | AP13: =AO13*(1+('Annuity 2'!$F$13*((Timing!AP3-Timing!AP2+1)/#REF!))) ->  | AQ13: =AP13*(1+('Annuity 2'!$F$13*((Timing!AQ3-Timing!AQ2+1)/#REF!))) ->  | AR13: =AQ13*(1+('Annuity 2'!$F$13*((Timing!AR3-Timing!AR2+1)/#REF!))) ->  | AS13: =AR13*(1+('Annuity 2'!$F$13*((Timing!AS3-Timing!AS2+1)/#REF!))) ->  | AT13: =AS13*(1+('Annuity 2'!$F$13*((Timing!AT3-Timing!AT2+1)/#REF!))) ->  | AU13: =AT13*(1+('Annuity 2'!$F$13*((Timing!AU3-Timing!AU2+1)/#REF!))) ->  | AV13: =AU13*(1+('Annuity 2'!$F$13*((Timing!AV3-Timing!AV2+1)/#REF!))) ->  | AW13: =AV13*(1+('Annuity 2'!$F$13*((Timing!AW3-Timing!AW2+1)/#REF!))) ->  | AX13: =AW13*(1+('Annuity 2'!$F$13*((Timing!AX3-Timing!AX2+1)/#REF!))) ->  | AY13: =AX13*(1+('Annuity 2'!$F$13*((Timing!AY3-Timing!AY2+1)/#REF!))) ->  | AZ13: =AY13*(1+('Annuity 2'!$F$13*((Timing!AZ3-Timing!AZ2+1)/#REF!))) ->  | BA13: =AZ13*(1+('Annuity 2'!$F$13*((Timing!BA3-Timing!BA2+1)/#REF!))) ->  | BB13: =BA13*(1+('Annuity 2'!$F$13*((Timing!BB3-Timing!BB2+1)/#REF!))) ->  | BC13: =BB13*(1+('Annuity 2'!$F$13*((Timing!BC3-Timing!BC2+1)/#REF!))) ->  | BD13: =BC13*(1+('Annuity 2'!$F$13*((Timing!BD3-Timing!BD2+1)/#REF!))) ->  | BE13: =BD13*(1+('Annuity 2'!$F$13*((Timing!BE3-Timing!BE2+1)/#REF!))) ->  | BF13: =BE13*(1+('Annuity 2'!$F$13*((Timing!BF3-Timing!BF2+1)/#REF!))) ->  | BG13: =BF13*(1+('Annuity 2'!$F$13*((Timing!BG3-Timing!BG2+1)/#REF!))) ->  | BH13: =BG13*(1+('Annuity 2'!$F$13*((Timing!BH3-Timing!BH2+1)/#REF!))) ->  | BI13: =BH13*(1+('Annuity 2'!$F$13*((Timing!BI3-Timing!BI2+1)/#REF!))) ->  | BJ13: =BI13*(1+('Annuity 2'!$F$13*((Timing!BJ3-Timing!BJ2+1)/#REF!))) ->  | BK13: =BJ13*(1+('Annuity 2'!$F$13*((Timing!BK3-Timing!BK2+1)/#REF!))) ->  | BL13: =BK13*(1+('Annuity 2'!$F$13*((Timing!BL3-Timing!BL2+1)/#REF!))) ->  | BM13: =BL13*(1+('Annuity 2'!$F$13*((Timing!BM3-Timing!BM2+1)/#REF!))) ->  | BN13: =BM13*(1+('Annuity 2'!$F$13*((Timing!BN3-Timing!BN2+1)/#REF!))) ->  | BO13: =BN13*(1+('Annuity 2'!$F$13*((Timing!BO3-Timing!BO2+1)/#REF!))) ->  | BP13: =BO13*(1+('Annuity 2'!$F$13*((Timing!BP3-Timing!BP2+1)/#REF!))) ->  | BQ13: =BP13*(1+('Annuity 2'!$F$13*((Timing!BQ3-Timing!BQ2+1)/#REF!))) -> 
E14: Escalation of Tariff | F14: =#REF! ->  | H14: =(1+'Annuity 2'!$F$14)^((#REF!-#REF!)/#REF!) ->  | I14: ='Annuity 2'!H14*(1+('Annuity 2'!$F$14*((Timing!I3-Timing!I2+1)/#REF!))) ->  | J14: ='Annuity 2'!I14*(1+('Annuity 2'!$F$14*((Timing!J3-Timing!J2+1)/#REF!))) ->  | K14: ='Annuity 2'!J14*(1+('Annuity 2'!$F$14*((Timing!K3-Timing!K2+1)/#REF!))) ->  | L14: ='Annuity 2'!K14*(1+('Annuity 2'!$F$14*((Timing!L3-Timing!L2+1)/#REF!))) ->  | M14: ='Annuity 2'!L14*(1+('Annuity 2'!$F$14*((Timing!M3-Timing!M2+1)/#REF!))) ->  | N14: ='Annuity 2'!M14*(1+('Annuity 2'!$F$14*((Timing!N3-Timing!N2+1)/#REF!))) ->  | O14: ='Annuity 2'!N14*(1+('Annuity 2'!$F$14*((Timing!O3-Timing!O2+1)/#REF!))) ->  | P14: ='Annuity 2'!O14*(1+('Annuity 2'!$F$14*((Timing!P3-Timing!P2+1)/#REF!))) ->  | Q14: ='Annuity 2'!P14*(1+('Annuity 2'!$F$14*((Timing!Q3-Timing!Q2+1)/#REF!))) ->  | R14: ='Annuity 2'!Q14*(1+('Annuity 2'!$F$14*((Timing!R3-Timing!R2+1)/#REF!))) ->  | S14: ='Annuity 2'!R14*(1+('Annuity 2'!$F$14*((Timing!S3-Timing!S2+1)/#REF!))) ->  | T14: ='Annuity 2'!S14*(1+('Annuity 2'!$F$14*((Timing!T3-Timing!T2+1)/#REF!))) ->  | U14: ='Annuity 2'!T14*(1+('Annuity 2'!$F$14*((Timing!U3-Timing!U2+1)/#REF!))) ->  | V14: ='Annuity 2'!U14*(1+('Annuity 2'!$F$14*((Timing!V3-Timing!V2+1)/#REF!))) ->  | W14: ='Annuity 2'!V14*(1+('Annuity 2'!$F$14*((Timing!W3-Timing!W2+1)/#REF!))) -> 
E16: Scenario Chosen | H16: Capex | I16: Total Annuity | J16: P.A Annuity
E17: Berhampur | F17: =#REF! ->  | H17: =#REF! ->  | I17: =SUM(F103,F106) ->  | J17: =I17/#REF! -> 
E18: Cuttack | F18: =#REF! ->  | H18: =#REF! ->  | I18: =SUM(F150,F153) ->  | J18: =I18/#REF! -> 
E19: Rourkela | F19: =#REF! ->  | H19: =#REF! ->  | I19: =SUM(F197,F200) ->  | J19: =I19/#REF! -> 
E20: Sambalpur | F20: =#REF! ->  | H20: =#REF! ->  | I20: =SUM(F244,F247) ->  | J20: =I20/#REF! -> 
E21: Bhubaneswar | F21: =#REF! ->  | H21: =#REF! ->  | I21: =SUM(F291,F294) ->  | J21: =I21/#REF! -> 
E23: Total Capex for all cities | F23: =SUM(H23:W23) ->  | H23: =H62+H110+H157+H204+H251 -> 
E25: Total Concessional finance drawdown for all cities | F25: =SUM(H25:W25) ->  | H25: =H70+H118+H165+H212+H259 -> 
E26: Total Commercial debt drawdown for all cities | F26: =SUM(H26:W26) ->  | H26: =H77+H125+H172+H219+H266 -> 
E27: Total Grant downdown for all cities | F27: =SUM(H27:W27) ->  | H27: =H66+H114+H161+H208+H255 -> 
E28: Total Equity for all cities | F28: =SUM(H28:W28) ->  | H28: =H92+H139+H186+H233+H280 -> 
E30: Total DSRA investment/ (withdrawal) for all cities | H30: =IF(OR(H5>0,H6>0),SUMIF(#REF!,'Annuity 2'!H6,#REF!)+SUMIF(#REF!,'Annuity 2'!H6,#REF!)+SUMIF(#REF!,'Annuity 2'!H6,#REF!)+SUMIF(#REF!,'Annuity 2'!H6,#REF!)+SUMIF(#REF!,'Annuity 2'!H6,#REF!),0) ->  | I30: =IF(OR(I5>0,I6>0),SUMIF(#REF!,'Annuity 2'!I6,#REF!)+SUMIF(#REF!,'Annuity 2'!I6,#REF!)+SUMIF(#REF!,'Annuity 2'!I6,#REF!)+SUMIF(#REF!,'Annuity 2'!I6,#REF!)+SUMIF(#REF!,'Annuity 2'!I6,#REF!),0) ->  | J30: =IF(OR(J5>0,J6>0),SUMIF(#REF!,'Annuity 2'!J6,#REF!)+SUMIF(#REF!,'Annuity 2'!J6,#REF!)+SUMIF(#REF!,'Annuity 2'!J6,#REF!)+SUMIF(#REF!,'Annuity 2'!J6,#REF!)+SUMIF(#REF!,'Annuity 2'!J6,#REF!),0) ->  | K30: =IF(OR(K5>0,K6>0),SUMIF(#REF!,'Annuity 2'!K6,#REF!)+SUMIF(#REF!,'Annuity 2'!K6,#REF!)+SUMIF(#REF!,'Annuity 2'!K6,#REF!)+SUMIF(#REF!,'Annuity 2'!K6,#REF!)+SUMIF(#REF!,'Annuity 2'!K6,#REF!),0) ->  | L30: =IF(OR(L5>0,L6>0),SUMIF(#REF!,'Annuity 2'!L6,#REF!)+SUMIF(#REF!,'Annuity 2'!L6,#REF!)+SUMIF(#REF!,'Annuity 2'!L6,#REF!)+SUMIF(#REF!,'Annuity 2'!L6,#REF!)+SUMIF(#REF!,'Annuity 2'!L6,#REF!),0) ->  | M30: =IF(OR(M5>0,M6>0),SUMIF(#REF!,'Annuity 2'!M6,#REF!)+SUMIF(#REF!,'Annuity 2'!M6,#REF!)+SUMIF(#REF!,'Annuity 2'!M6,#REF!)+SUMIF(#REF!,'Annuity 2'!M6,#REF!)+SUMIF(#REF!,'Annuity 2'!M6,#REF!),0) ->  | N30: =IF(OR(N5>0,N6>0),SUMIF(#REF!,'Annuity 2'!N6,#REF!)+SUMIF(#REF!,'Annuity 2'!N6,#REF!)+SUMIF(#REF!,'Annuity 2'!N6,#REF!)+SUMIF(#REF!,'Annuity 2'!N6,#REF!)+SUMIF(#REF!,'Annuity 2'!N6,#REF!),0) ->  | O30: =IF(OR(O5>0,O6>0),SUMIF(#REF!,'Annuity 2'!O6,#REF!)+SUMIF(#REF!,'Annuity 2'!O6,#REF!)+SUMIF(#REF!,'Annuity 2'!O6,#REF!)+SUMIF(#REF!,'Annuity 2'!O6,#REF!)+SUMIF(#REF!,'Annuity 2'!O6,#REF!),0) ->  | P30: =IF(OR(P5>0,P6>0),SUMIF(#REF!,'Annuity 2'!P6,#REF!)+SUMIF(#REF!,'Annuity 2'!P6,#REF!)+SUMIF(#REF!,'Annuity 2'!P6,#REF!)+SUMIF(#REF!,'Annuity 2'!P6,#REF!)+SUMIF(#REF!,'Annuity 2'!P6,#REF!),0) ->  | Q30: =IF(OR(Q5>0,Q6>0),SUMIF(#REF!,'Annuity 2'!Q6,#REF!)+SUMIF(#REF!,'Annuity 2'!Q6,#REF!)+SUMIF(#REF!,'Annuity 2'!Q6,#REF!)+SUMIF(#REF!,'Annuity 2'!Q6,#REF!)+SUMIF(#REF!,'Annuity 2'!Q6,#REF!),0) ->  | R30: =IF(OR(R5>0,R6>0),SUMIF(#REF!,'Annuity 2'!R6,#REF!)+SUMIF(#REF!,'Annuity 2'!R6,#REF!)+SUMIF(#REF!,'Annuity 2'!R6,#REF!)+SUMIF(#REF!,'Annuity 2'!R6,#REF!)+SUMIF(#REF!,'Annuity 2'!R6,#REF!),0) ->  | S30: =IF(OR(S5>0,S6>0),SUMIF(#REF!,'Annuity 2'!S6,#REF!)+SUMIF(#REF!,'Annuity 2'!S6,#REF!)+SUMIF(#REF!,'Annuity 2'!S6,#REF!)+SUMIF(#REF!,'Annuity 2'!S6,#REF!)+SUMIF(#REF!,'Annuity 2'!S6,#REF!),0) ->  | T30: =IF(OR(T5>0,T6>0),SUMIF(#REF!,'Annuity 2'!T6,#REF!)+SUMIF(#REF!,'Annuity 2'!T6,#REF!)+SUMIF(#REF!,'Annuity 2'!T6,#REF!)+SUMIF(#REF!,'Annuity 2'!T6,#REF!)+SUMIF(#REF!,'Annuity 2'!T6,#REF!),0) ->  | U30: =IF(OR(U5>0,U6>0),SUMIF(#REF!,'Annuity 2'!U6,#REF!)+SUMIF(#REF!,'Annuity 2'!U6,#REF!)+SUMIF(#REF!,'Annuity 2'!U6,#REF!)+SUMIF(#REF!,'Annuity 2'!U6,#REF!)+SUMIF(#REF!,'Annuity 2'!U6,#REF!),0) ->  | V30: =IF(OR(V5>0,V6>0),SUMIF(#REF!,'Annuity 2'!V6,#REF!)+SUMIF(#REF!,'Annuity 2'!V6,#REF!)+SUMIF(#REF!,'Annuity 2'!V6,#REF!)+SUMIF(#REF!,'Annuity 2'!V6,#REF!)+SUMIF(#REF!,'Annuity 2'!V6,#REF!),0) ->  | W30: =IF(OR(W5>0,W6>0),SUMIF(#REF!,'Annuity 2'!W6,#REF!)+SUMIF(#REF!,'Annuity 2'!W6,#REF!)+SUMIF(#REF!,'Annuity 2'!W6,#REF!)+SUMIF(#REF!,'Annuity 2'!W6,#REF!)+SUMIF(#REF!,'Annuity 2'!W6,#REF!),0) -> 
E32: Total Concessional finance repayment for all cities | F32: =SUM(H32:W32) ->  | H32: =H71+H119+H166+H213+H260 -> 
E33: Total Commercial debt repayment for all cities | F33: =SUM(H33:W33) ->  | H33: =H78+H126+H173+H220+H267 -> 
E34: Total Interest Repayment for all cities | F34: =SUM(H34:W34) ->  | H34: =SUM(H73,H80,H121,H128,H168,H175,H215,H222,H262,H269) ->  | I34: =SUM(I73,I80,I121,I128,I168,I175,I215,I222,I262,I269) -> 
E37: O&M Incurred for all cities | F37: =SUM(H37:W37) ->  | H37: =SUM(H84,H132,H179,H226,H273) -> 
E38: Annuity - Capex Share for all cities | F38: =SUM(H38:W38) ->  | H38: =SUM(H103,H150,H197,H244,H291) ->  | J38: =SUM(J103,J150,J197,J244,J291) -> 
E39: Annuity - Opex Share for all cities | F39: =SUM(H39:W39) ->  | H39: =SUM(H106,H153,H200,H247,H294) -> 
E41: Sculpted Annuity | F41: =SUM(H41:W41) -> 0
E42: Capex Share | H42: =H38*(1+H41) ->  | I42: =I38*(1+I41) ->  | J42: =J38*(1+J41) -> 
E43: Opex Share | H43: =H39*(1+H41) ->  | I43: =I39*(1+I41) -> 
F44: DSCR | H44: =#REF! ->  | I44: =#REF! ->  | J44: =#REF! ->  | K44: =#REF! ->  | L44: =#REF! ->  | M44: =#REF! ->  | N44: =#REF! ->  | O44: =#REF! ->  | P44: =#REF! ->  | Q44: =#REF! ->  | R44: =#REF! ->  | S44: =#REF! ->  | T44: =#REF! ->  | U44: =#REF! ->  | V44: =#REF! ->  | W44: =#REF! -> 
E47: WACC | H47: Capital Share | I47: Int Rate/ ROE
E48: Concessional Debt | H48: =#REF!/#REF! ->  | I48: =#REF! -> 
E49: Commercial Debt | H49: =#REF!/#REF! ->  | I49: =#REF! -> 
E50: Equity by SPV | H50: =#REF!/#REF! ->  | I50: =#REF! -> 
E52: Discount Date Begins | F52: =#REF! -> 
E53: Discounted at ROE | F53: =I50 -> 
E54: Years to 1st Opn Pd. from PV Date (365 day basis) | H54: =(H2-$F$52)/#REF! ->  | I54: =(I2-$F$52)/#REF! ->  | J54: =(J2-$F$52)/#REF! ->  | K54: =(K2-$F$52)/#REF! ->  | L54: =(L2-$F$52)/#REF! ->  | M54: =(M2-$F$52)/#REF! ->  | N54: =(N2-$F$52)/#REF! ->  | O54: =(O2-$F$52)/#REF! ->  | P54: =(P2-$F$52)/#REF! ->  | Q54: =(Q2-$F$52)/#REF! ->  | R54: =(R2-$F$52)/#REF! ->  | S54: =(S2-$F$52)/#REF! ->  | T54: =(T2-$F$52)/#REF! ->  | U54: =(U2-$F$52)/#REF! ->  | V54: =(V2-$F$52)/#REF! ->  | W54: =(W2-$F$52)/#REF! -> 
E55: Discount Factor | H55: =(1/(1+'Annuity 2'!$F$53)^'Annuity 2'!H54)*H10 ->  | I55: =(1/(1+'Annuity 2'!$F$53)^'Annuity 2'!I54)*I10 ->  | J55: =(1/(1+'Annuity 2'!$F$53)^'Annuity 2'!J54)*J10 ->  | K55: =(1/(1+'Annuity 2'!$F$53)^'Annuity 2'!K54)*K10 ->  | L55: =(1/(1+'Annuity 2'!$F$53)^'Annuity 2'!L54)*L10 ->  | M55: =(1/(1+'Annuity 2'!$F$53)^'Annuity 2'!M54)*M10 ->  | N55: =(1/(1+'Annuity 2'!$F$53)^'Annuity 2'!N54)*N10 ->  | O55: =(1/(1+'Annuity 2'!$F$53)^'Annuity 2'!O54)*O10 ->  | P55: =(1/(1+'Annuity 2'!$F$53)^'Annuity 2'!P54)*P10 ->  | Q55: =(1/(1+'Annuity 2'!$F$53)^'Annuity 2'!Q54)*Q10 ->  | R55: =(1/(1+'Annuity 2'!$F$53)^'Annuity 2'!R54)*R10 ->  | S55: =(1/(1+'Annuity 2'!$F$53)^'Annuity 2'!S54)*S10 ->  | T55: =(1/(1+'Annuity 2'!$F$53)^'Annuity 2'!T54)*T10 ->  | U55: =(1/(1+'Annuity 2'!$F$53)^'Annuity 2'!U54)*U10 ->  | V55: =(1/(1+'Annuity 2'!$F$53)^'Annuity 2'!V54)*V10 ->  | W55: =(1/(1+'Annuity 2'!$F$53)^'Annuity 2'!W54)*W10 -> 
E56: Upfront Annuity paid in Year | F56: =#REF! -> 
E57: Concession Period | F57: =#REF! -> 
H58: =#REF! ->  | I58: =#REF! ->  | J58: =#REF! ->  | K58: =#REF! ->  | L58: =#REF! ->  | M58: =#REF! ->  | N58: =#REF! ->  | O58: =#REF! ->  | P58: =#REF! ->  | Q58: =#REF! ->  | R58: =#REF! ->  | S58: =#REF! ->  | T58: =#REF! ->  | U58: =#REF! ->  | V58: =#REF! ->  | W58: =#REF! -> 
C60: Berhampur
D61: Capex Spend
E62: Capex Incurred | F62: =SUM(H62:W62) ->  | H62: =IF(OR(H5>0,H6>0),SUMIF(#REF!,'Annuity 2'!H6,#REF!),0) ->  | I62: =IF(OR(I5>0,I6>0),SUMIF(#REF!,'Annuity 2'!I6,#REF!),0) ->  | J62: =IF(OR(J5>0,J6>0),SUMIF(#REF!,'Annuity 2'!J6,#REF!),0) ->  | K62: =IF(OR(K5>0,K6>0),SUMIF(#REF!,'Annuity 2'!K6,#REF!),0) ->  | L62: =IF(OR(L5>0,L6>0),SUMIF(#REF!,'Annuity 2'!L6,#REF!),0) ->  | M62: =IF(OR(M5>0,M6>0),SUMIF(#REF!,'Annuity 2'!M6,#REF!),0) ->  | N62: =IF(OR(N5>0,N6>0),SUMIF(#REF!,'Annuity 2'!N6,#REF!),0) ->  | O62: =IF(OR(O5>0,O6>0),SUMIF(#REF!,'Annuity 2'!O6,#REF!),0) ->  | P62: =IF(OR(P5>0,P6>0),SUMIF(#REF!,'Annuity 2'!P6,#REF!),0) ->  | Q62: =IF(OR(Q5>0,Q6>0),SUMIF(#REF!,'Annuity 2'!Q6,#REF!),0) ->  | R62: =IF(OR(R5>0,R6>0),SUMIF(#REF!,'Annuity 2'!R6,#REF!),0) ->  | S62: =IF(OR(S5>0,S6>0),SUMIF(#REF!,'Annuity 2'!S6,#REF!),0) ->  | T62: =IF(OR(T5>0,T6>0),SUMIF(#REF!,'Annuity 2'!T6,#REF!),0) ->  | U62: =IF(OR(U5>0,U6>0),SUMIF(#REF!,'Annuity 2'!U6,#REF!),0) ->  | V62: =IF(OR(V5>0,V6>0),SUMIF(#REF!,'Annuity 2'!V6,#REF!),0) ->  | W62: =IF(OR(W5>0,W6>0),SUMIF(#REF!,'Annuity 2'!W6,#REF!),0) -> 
E63: Capex Raised | F63: =F66+F70+F77+J93 -> 
D65: Grant Disbursement
E66: Grant funding | F66: =SUM(H66:W66) ->  | H66: =IF(OR(H5>0,H6>0),SUMIF(#REF!,'Annuity 2'!H6,#REF!),0) ->  | I66: =IF(OR(I5>0,I6>0),SUMIF(#REF!,'Annuity 2'!I6,#REF!),0) ->  | J66: =IF(OR(J5>0,J6>0),SUMIF(#REF!,'Annuity 2'!J6,#REF!),0) ->  | K66: =IF(OR(K5>0,K6>0),SUMIF(#REF!,'Annuity 2'!K6,#REF!),0) ->  | L66: =IF(OR(L5>0,L6>0),SUMIF(#REF!,'Annuity 2'!L6,#REF!),0) ->  | M66: =IF(OR(M5>0,M6>0),SUMIF(#REF!,'Annuity 2'!M6,#REF!),0) ->  | N66: =IF(OR(N5>0,N6>0),SUMIF(#REF!,'Annuity 2'!N6,#REF!),0) ->  | O66: =IF(OR(O5>0,O6>0),SUMIF(#REF!,'Annuity 2'!O6,#REF!),0) ->  | P66: =IF(OR(P5>0,P6>0),SUMIF(#REF!,'Annuity 2'!P6,#REF!),0) ->  | Q66: =IF(OR(Q5>0,Q6>0),SUMIF(#REF!,'Annuity 2'!Q6,#REF!),0) ->  | R66: =IF(OR(R5>0,R6>0),SUMIF(#REF!,'Annuity 2'!R6,#REF!),0) ->  | S66: =IF(OR(S5>0,S6>0),SUMIF(#REF!,'Annuity 2'!S6,#REF!),0) ->  | T66: =IF(OR(T5>0,T6>0),SUMIF(#REF!,'Annuity 2'!T6,#REF!),0) ->  | U66: =IF(OR(U5>0,U6>0),SUMIF(#REF!,'Annuity 2'!U6,#REF!),0) ->  | V66: =IF(OR(V5>0,V6>0),SUMIF(#REF!,'Annuity 2'!V6,#REF!),0) ->  | W66: =IF(OR(W5>0,W6>0),SUMIF(#REF!,'Annuity 2'!W6,#REF!),0) -> 
D68: Concessional Debt
E69: Opening Balance | H69: =G72 -> 0 | I69: =H72 ->  | J69: =I72 -> 
D70: Plus: | E70: Drawdowns | F70: =SUM(H70:W70) ->  | H70: =IF(OR(H5>0,H6>0),SUMIF(#REF!,'Annuity 2'!H6:AZ6,#REF!),0) ->  | I70: =IF(OR(I5>0,I6>0),SUMIF(#REF!,'Annuity 2'!I6:BA6,#REF!),0) ->  | J70: =IF(OR(J5>0,J6>0),SUMIF(#REF!,'Annuity 2'!J6:BB6,#REF!),0) ->  | K70: =IF(OR(K5>0,K6>0),SUMIF(#REF!,'Annuity 2'!K6:BC6,#REF!),0) ->  | L70: =IF(OR(L5>0,L6>0),SUMIF(#REF!,'Annuity 2'!L6:BD6,#REF!),0) ->  | M70: =IF(OR(M5>0,M6>0),SUMIF(#REF!,'Annuity 2'!M6:BE6,#REF!),0) ->  | N70: =IF(OR(N5>0,N6>0),SUMIF(#REF!,'Annuity 2'!N6:BF6,#REF!),0) ->  | O70: =IF(OR(O5>0,O6>0),SUMIF(#REF!,'Annuity 2'!O6:BG6,#REF!),0) ->  | P70: =IF(OR(P5>0,P6>0),SUMIF(#REF!,'Annuity 2'!P6:BH6,#REF!),0) ->  | Q70: =IF(OR(Q5>0,Q6>0),SUMIF(#REF!,'Annuity 2'!Q6:BI6,#REF!),0) ->  | R70: =IF(OR(R5>0,R6>0),SUMIF(#REF!,'Annuity 2'!R6:BJ6,#REF!),0) ->  | S70: =IF(OR(S5>0,S6>0),SUMIF(#REF!,'Annuity 2'!S6:BK6,#REF!),0) ->  | T70: =IF(OR(T5>0,T6>0),SUMIF(#REF!,'Annuity 2'!T6:BL6,#REF!),0) ->  | U70: =IF(OR(U5>0,U6>0),SUMIF(#REF!,'Annuity 2'!U6:BM6,#REF!),0) ->  | V70: =IF(OR(V5>0,V6>0),SUMIF(#REF!,'Annuity 2'!V6:BN6,#REF!),0) ->  | W70: =IF(OR(W5>0,W6>0),SUMIF(#REF!,'Annuity 2'!W6:BO6,#REF!),0) -> 
D71: Less: | E71: Principal Repayments | F71: =SUM(H71:W71) ->  | H71: =IF(OR(H5>0,H6>0),SUMIF(#REF!,H6,#REF!),0) ->  | I71: =IF(OR(I5>0,I6>0),SUMIF(#REF!,I6,#REF!),0) ->  | J71: =IF(OR(J5>0,J6>0),SUMIF(#REF!,J6,#REF!),0) ->  | K71: =IF(OR(K5>0,K6>0),SUMIF(#REF!,K6,#REF!),0) ->  | L71: =IF(OR(L5>0,L6>0),SUMIF(#REF!,L6,#REF!),0) ->  | M71: =IF(OR(M5>0,M6>0),SUMIF(#REF!,M6,#REF!),0) ->  | N71: =IF(OR(N5>0,N6>0),SUMIF(#REF!,N6,#REF!),0) ->  | O71: =IF(OR(O5>0,O6>0),SUMIF(#REF!,O6,#REF!),0) ->  | P71: =IF(OR(P5>0,P6>0),SUMIF(#REF!,P6,#REF!),0) ->  | Q71: =IF(OR(Q5>0,Q6>0),SUMIF(#REF!,Q6,#REF!),0) ->  | R71: =IF(OR(R5>0,R6>0),SUMIF(#REF!,R6,#REF!),0) ->  | S71: =IF(OR(S5>0,S6>0),SUMIF(#REF!,S6,#REF!),0) ->  | T71: =IF(OR(T5>0,T6>0),SUMIF(#REF!,T6,#REF!),0) ->  | U71: =IF(OR(U5>0,U6>0),SUMIF(#REF!,U6,#REF!),0) ->  | V71: =IF(OR(V5>0,V6>0),SUMIF(#REF!,V6,#REF!),0) ->  | W71: =IF(OR(W5>0,W6>0),SUMIF(#REF!,W6,#REF!),0) -> 
E72: Ending Balance | H72: =H69+H70-H71 -> 
E73: Interest Payments | F73: =SUM(H73:AZ73) ->  | H73: =AVERAGE(H69,H72)*'Annuity 2'!$I$48*H7/#REF!*H10 ->  | I73: =AVERAGE(I69,I72)*'Annuity 2'!$I$48*I7/#REF!*I10 ->  | J73: =AVERAGE(J69,J72)*'Annuity 2'!$I$48*J7/#REF!*J10 ->  | K73: =AVERAGE(K69,K72)*'Annuity 2'!$I$48*K7/#REF!*K10 ->  | L73: =AVERAGE(L69,L72)*'Annuity 2'!$I$48*L7/#REF!*L10 ->  | M73: =AVERAGE(M69,M72)*'Annuity 2'!$I$48*M7/#REF!*M10 ->  | N73: =AVERAGE(N69,N72)*'Annuity 2'!$I$48*N7/#REF!*N10 ->  | O73: =AVERAGE(O69,O72)*'Annuity 2'!$I$48*O7/#REF!*O10 ->  | P73: =AVERAGE(P69,P72)*'Annuity 2'!$I$48*P7/#REF!*P10 ->  | Q73: =AVERAGE(Q69,Q72)*'Annuity 2'!$I$48*Q7/#REF!*Q10 ->  | R73: =AVERAGE(R69,R72)*'Annuity 2'!$I$48*R7/#REF!*R10 ->  | S73: =AVERAGE(S69,S72)*'Annuity 2'!$I$48*S7/#REF!*S10 ->  | T73: =AVERAGE(T69,T72)*'Annuity 2'!$I$48*T7/#REF!*T10 ->  | U73: =AVERAGE(U69,U72)*'Annuity 2'!$I$48*U7/#REF!*U10 ->  | V73: =AVERAGE(V69,V72)*'Annuity 2'!$I$48*V7/#REF!*V10 ->  | W73: =AVERAGE(W69,W72)*'Annuity 2'!$I$48*W7/#REF!*W10 -> 
D75: Commercial Debt
E76: Opening Balance | H76: =G79 -> 0
D77: Plus: | E77: Drawdowns | F77: =SUM(H77:AZ77) ->  | H77: =IF(OR(H5>0,H6>0),SUMIF(#REF!,'Annuity 2'!H6:AZ6,#REF!),0) ->  | I77: =IF(OR(I5>0,I6>0),SUMIF(#REF!,'Annuity 2'!I6:BA6,#REF!),0) ->  | J77: =IF(OR(J5>0,J6>0),SUMIF(#REF!,'Annuity 2'!J6:BB6,#REF!),0) ->  | K77: =IF(OR(K5>0,K6>0),SUMIF(#REF!,'Annuity 2'!K6:BC6,#REF!),0) ->  | L77: =IF(OR(L5>0,L6>0),SUMIF(#REF!,'Annuity 2'!L6:BD6,#REF!),0) ->  | M77: =IF(OR(M5>0,M6>0),SUMIF(#REF!,'Annuity 2'!M6:BE6,#REF!),0) ->  | N77: =IF(OR(N5>0,N6>0),SUMIF(#REF!,'Annuity 2'!N6:BF6,#REF!),0) ->  | O77: =IF(OR(O5>0,O6>0),SUMIF(#REF!,'Annuity 2'!O6:BG6,#REF!),0) ->  | P77: =IF(OR(P5>0,P6>0),SUMIF(#REF!,'Annuity 2'!P6:BH6,#REF!),0) ->  | Q77: =IF(OR(Q5>0,Q6>0),SUMIF(#REF!,'Annuity 2'!Q6:BI6,#REF!),0) ->  | R77: =IF(OR(R5>0,R6>0),SUMIF(#REF!,'Annuity 2'!R6:BJ6,#REF!),0) ->  | S77: =IF(OR(S5>0,S6>0),SUMIF(#REF!,'Annuity 2'!S6:BK6,#REF!),0) ->  | T77: =IF(OR(T5>0,T6>0),SUMIF(#REF!,'Annuity 2'!T6:BL6,#REF!),0) ->  | U77: =IF(OR(U5>0,U6>0),SUMIF(#REF!,'Annuity 2'!U6:BM6,#REF!),0) ->  | V77: =IF(OR(V5>0,V6>0),SUMIF(#REF!,'Annuity 2'!V6:BN6,#REF!),0) ->  | W77: =IF(OR(W5>0,W6>0),SUMIF(#REF!,'Annuity 2'!W6:BO6,#REF!),0) -> 
D78: Less: | E78: Principal Repayments | F78: =SUM(H78:AZ78) ->  | H78: =IF(OR(H5>0,H6>0),SUMIF(#REF!,'Annuity 2'!H6,#REF!),0) ->  | I78: =IF(OR(I5>0,I6>0),SUMIF(#REF!,'Annuity 2'!I6,#REF!),0) ->  | J78: =IF(OR(J5>0,J6>0),SUMIF(#REF!,'Annuity 2'!J6,#REF!),0) ->  | K78: =IF(OR(K5>0,K6>0),SUMIF(#REF!,'Annuity 2'!K6,#REF!),0) ->  | L78: =IF(OR(L5>0,L6>0),SUMIF(#REF!,'Annuity 2'!L6,#REF!),0) ->  | M78: =IF(OR(M5>0,M6>0),SUMIF(#REF!,'Annuity 2'!M6,#REF!),0) ->  | N78: =IF(OR(N5>0,N6>0),SUMIF(#REF!,'Annuity 2'!N6,#REF!),0) ->  | O78: =IF(OR(O5>0,O6>0),SUMIF(#REF!,'Annuity 2'!O6,#REF!),0) ->  | P78: =IF(OR(P5>0,P6>0),SUMIF(#REF!,'Annuity 2'!P6,#REF!),0) ->  | Q78: =IF(OR(Q5>0,Q6>0),SUMIF(#REF!,'Annuity 2'!Q6,#REF!),0) ->  | R78: =IF(OR(R5>0,R6>0),SUMIF(#REF!,'Annuity 2'!R6,#REF!),0) ->  | S78: =IF(OR(S5>0,S6>0),SUMIF(#REF!,'Annuity 2'!S6,#REF!),0) ->  | T78: =IF(OR(T5>0,T6>0),SUMIF(#REF!,'Annuity 2'!T6,#REF!),0) ->  | U78: =IF(OR(U5>0,U6>0),SUMIF(#REF!,'Annuity 2'!U6,#REF!),0) ->  | V78: =IF(OR(V5>0,V6>0),SUMIF(#REF!,'Annuity 2'!V6,#REF!),0) ->  | W78: =IF(OR(W5>0,W6>0),SUMIF(#REF!,'Annuity 2'!W6,#REF!),0) -> 
E79: Ending Balance | H79: =H76+H77-H78 -> 
E80: Interest Payments | F80: =SUM(H80:AZ80) ->  | H80: =AVERAGE(H76,H79)*'Annuity 2'!$I$49*H7/#REF!*H10 ->  | I80: =AVERAGE(I76,I79)*'Annuity 2'!$I$49*I7/#REF!*I10 ->  | J80: =AVERAGE(J76,J79)*'Annuity 2'!$I$49*J7/#REF!*J10 ->  | K80: =AVERAGE(K76,K79)*'Annuity 2'!$I$49*K7/#REF!*K10 ->  | L80: =AVERAGE(L76,L79)*'Annuity 2'!$I$49*L7/#REF!*L10 ->  | M80: =AVERAGE(M76,M79)*'Annuity 2'!$I$49*M7/#REF!*M10 ->  | N80: =AVERAGE(N76,N79)*'Annuity 2'!$I$49*N7/#REF!*N10 ->  | O80: =AVERAGE(O76,O79)*'Annuity 2'!$I$49*O7/#REF!*O10 ->  | P80: =AVERAGE(P76,P79)*'Annuity 2'!$I$49*P7/#REF!*P10 ->  | Q80: =AVERAGE(Q76,Q79)*'Annuity 2'!$I$49*Q7/#REF!*Q10 ->  | R80: =AVERAGE(R76,R79)*'Annuity 2'!$I$49*R7/#REF!*R10 ->  | S80: =AVERAGE(S76,S79)*'Annuity 2'!$I$49*S7/#REF!*S10 ->  | T80: =AVERAGE(T76,T79)*'Annuity 2'!$I$49*T7/#REF!*T10 ->  | U80: =AVERAGE(U76,U79)*'Annuity 2'!$I$49*U7/#REF!*U10 ->  | V80: =AVERAGE(V76,V79)*'Annuity 2'!$I$49*V7/#REF!*V10 ->  | W80: =AVERAGE(W76,W79)*'Annuity 2'!$I$49*W7/#REF!*W10 -> 
D82: O&M Costs Incurred
E83: Base Year Annual O&M | F83: =#REF! -> 
E84: O&M Incurred | H84: =IF(H6>0,$F$83*'Annuity 2'!H13*H7/#REF!,0) ->  | I84: =IF(I6>0,$F$83*'Annuity 2'!I13*I7/#REF!,0) ->  | J84: =IF(J6>0,$F$83*'Annuity 2'!J13*J7/#REF!,0) ->  | K84: =IF(K6>0,$F$83*'Annuity 2'!K13*K7/#REF!,0) ->  | L84: =IF(L6>0,$F$83*'Annuity 2'!L13*L7/#REF!,0) ->  | M84: =IF(M6>0,$F$83*'Annuity 2'!M13*M7/#REF!,0) ->  | N84: =IF(N6>0,$F$83*'Annuity 2'!N13*N7/#REF!,0) ->  | O84: =IF(O6>0,$F$83*'Annuity 2'!O13*O7/#REF!,0) ->  | P84: =IF(P6>0,$F$83*'Annuity 2'!P13*P7/#REF!,0) ->  | Q84: =IF(Q6>0,$F$83*'Annuity 2'!Q13*Q7/#REF!,0) ->  | R84: =IF(R6>0,$F$83*'Annuity 2'!R13*R7/#REF!,0) ->  | S84: =IF(S6>0,$F$83*'Annuity 2'!S13*S7/#REF!,0) ->  | T84: =IF(T6>0,$F$83*'Annuity 2'!T13*T7/#REF!,0) ->  | U84: =IF(U6>0,$F$83*'Annuity 2'!U13*U7/#REF!,0) ->  | V84: =IF(V6>0,$F$83*'Annuity 2'!V13*V7/#REF!,0) ->  | W84: =IF(W6>0,$F$83*'Annuity 2'!W13*W7/#REF!,0) -> 
E85: Levelized O&M | F85: =SUMPRODUCT(H84:W84,$H$55:$W$55)/SUM($H$55:$W$55) -> 
D87: Components of Annuity for Private Operator
E88: Principal Repayment
E89: Interest on Debt
E91: Applicable Tax Rate | H91: =#REF! ->  | I91: =#REF! ->  | J91: =#REF! ->  | K91: =#REF! ->  | L91: =#REF! ->  | M91: =#REF! ->  | N91: =#REF! ->  | O91: =#REF! ->  | P91: =#REF! ->  | Q91: =#REF! ->  | R91: =#REF! ->  | S91: =#REF! ->  | T91: =#REF! ->  | U91: =#REF! ->  | V91: =#REF! ->  | W91: =#REF! -> 
E92: Net Equity Invested | H92: =IF(OR(H5>0,H6>0),SUMIF(#REF!,'Annuity 2'!H6,#REF!),0) ->  | I92: =IF(OR(I5>0,I6>0),SUMIF(#REF!,'Annuity 2'!I6,#REF!),0) ->  | J92: =IF(OR(J5>0,J6>0),SUMIF(#REF!,'Annuity 2'!J6,#REF!),0) ->  | K92: =IF(OR(K5>0,K6>0),SUMIF(#REF!,'Annuity 2'!K6,#REF!),0) ->  | L92: =IF(OR(L5>0,L6>0),SUMIF(#REF!,'Annuity 2'!L6,#REF!),0) ->  | M92: =IF(OR(M5>0,M6>0),SUMIF(#REF!,'Annuity 2'!M6,#REF!),0) ->  | N92: =IF(OR(N5>0,N6>0),SUMIF(#REF!,'Annuity 2'!N6,#REF!),0) ->  | O92: =IF(OR(O5>0,O6>0),SUMIF(#REF!,'Annuity 2'!O6,#REF!),0) ->  | P92: =IF(OR(P5>0,P6>0),SUMIF(#REF!,'Annuity 2'!P6,#REF!),0) ->  | Q92: =IF(OR(Q5>0,Q6>0),SUMIF(#REF!,'Annuity 2'!Q6,#REF!),0) ->  | R92: =IF(OR(R5>0,R6>0),SUMIF(#REF!,'Annuity 2'!R6,#REF!),0) ->  | S92: =IF(OR(S5>0,S6>0),SUMIF(#REF!,'Annuity 2'!S6,#REF!),0) ->  | T92: =IF(OR(T5>0,T6>0),SUMIF(#REF!,'Annuity 2'!T6,#REF!),0) ->  | U92: =IF(OR(U5>0,U6>0),SUMIF(#REF!,'Annuity 2'!U6,#REF!),0) ->  | V92: =IF(OR(V5>0,V6>0),SUMIF(#REF!,'Annuity 2'!V6,#REF!),0) ->  | W92: =IF(OR(W5>0,W6>0),SUMIF(#REF!,'Annuity 2'!W6,#REF!),0) -> 
E93: Cumulative Equity Invested | H93: =IF(OR(H5>0,H6>0),SUM($H$92:H92),"na") ->  | I93: =IF(OR(I5>0,I6>0),SUM($H$92:I92),"na") ->  | J93: =IF(OR(J5>0,J6>0),SUM($H$92:J92),"na") ->  | K93: =IF(OR(K5>0,K6>0),SUM($H$92:K92),"na") ->  | L93: =IF(OR(L5>0,L6>0),SUM($H$92:L92),"na") ->  | M93: =IF(OR(M5>0,M6>0),SUM($H$92:M92),"na") ->  | N93: =IF(OR(N5>0,N6>0),SUM($H$92:N92),"na") ->  | O93: =IF(OR(O5>0,O6>0),SUM($H$92:O92),"na") ->  | P93: =IF(OR(P5>0,P6>0),SUM($H$92:P92),"na") ->  | Q93: =IF(OR(Q5>0,Q6>0),SUM($H$92:Q92),"na") ->  | R93: =IF(OR(R5>0,R6>0),SUM($H$92:R92),"na") ->  | S93: =IF(OR(S5>0,S6>0),SUM($H$92:S92),"na") ->  | T93: =IF(OR(T5>0,T6>0),SUM($H$92:T92),"na") ->  | U93: =IF(OR(U5>0,U6>0),SUM($H$92:U92),"na") ->  | V93: =IF(OR(V5>0,V6>0),SUM($H$92:V92),"na") ->  | W93: =IF(OR(W5>0,W6>0),SUM($H$92:W92),"na") -> 
E94: RoE (Pre-tax) | H94: =IF(H6>0,G93*$I$50/(1-H91)*H7/#REF!,0) ->  | I94: =IF(I6>0,H93*$I$50/(1-I91)*I7/#REF!,0) ->  | J94: =IF(J6>0,I93*$I$50/(1-J91)*J7/#REF!,0) ->  | K94: =IF(K6>0,J93*$I$50/(1-K91)*K7/#REF!,0) ->  | L94: =IF(L6>0,K93*$I$50/(1-L91)*L7/#REF!,0) ->  | M94: =IF(M6>0,L93*$I$50/(1-M91)*M7/#REF!,0) ->  | N94: =IF(N6>0,M93*$I$50/(1-N91)*N7/#REF!,0) ->  | O94: =IF(O6>0,N93*$I$50/(1-O91)*O7/#REF!,0) ->  | P94: =IF(P6>0,O93*$I$50/(1-P91)*P7/#REF!,0) ->  | Q94: =IF(Q6>0,Q93*$I$50/(1-Q91)*Q7/#REF!,0) ->  | R94: =IF(R6>0,R93*$I$50/(1-R91)*R7/#REF!,0) ->  | S94: =IF(S6>0,S93*$I$50/(1-S91)*S7/#REF!,0) ->  | T94: =IF(T6>0,T93*$I$50/(1-T91)*T7/#REF!,0) ->  | U94: =IF(U6>0,U93*$I$50/(1-U91)*U7/#REF!,0) ->  | V94: =IF(V6>0,V93*$I$50/(1-V91)*V7/#REF!,0) ->  | W94: =IF(W6>0,W93*$I$50/(1-W91)*W7/#REF!,0) -> 
E96: Total Annuity Requirement | F96: =SUM(H96:W96) ->  | H96: =H94+SUM(H88:H89) ->  | I96: =I94+SUM(I88:I89) -> 
E98: Levelized Annuity per year | F98: =SUMPRODUCT(H96:W96,$H$55:$W$55)/SUM($H$55:$W$55) -> 
E99: Annuity for Concession Period | F99: =F98*$F$57 -> 
E100: Upfront Capex Annuity paid | F100: =#REF! -> 
D102: Disbursement of Annuity
E103: Capex Share of Annuity | F103: =SUM(H103:W103) ->  | H103: =SUM(H104:H105) ->  | I103: =SUM(I104:I105) ->  | J103: =SUM(J104:J105) -> 
E104: Upfront Annuity Payment | F104: =F99*F100 ->  | H104: =IF(H6=$F$56,$F$104,0) -> 
E105: Balance | F105: =F99-F104 ->  | H105: =IF(AND(H6>1,$F$104>1),($F$99-SUM($H$104:$Q$104))/($F$57-$F$56),IF(AND(H6>0,$F$104=0),$F$105/$F$57,0)) -> 
E106: Opex Share of Annuity | F106: =SUM(H106:W106) ->  | H106: =IF(H6>0,$F$85,0) -> 
C108: Cuttack
D109: Capex Spend
E110: Capex Incurred | F110: =SUM(H110:W110) ->  | H110: =IF(OR(H5>0,H6>0),SUMIF(#REF!,'Annuity 2'!H6,#REF!),0) ->  | I110: =IF(OR(I5>0,I6>0),SUMIF(#REF!,'Annuity 2'!I6,#REF!),0) ->  | J110: =IF(OR(J5>0,J6>0),SUMIF(#REF!,'Annuity 2'!J6,#REF!),0) ->  | K110: =IF(OR(K5>0,K6>0),SUMIF(#REF!,'Annuity 2'!K6,#REF!),0) ->  | L110: =IF(OR(L5>0,L6>0),SUMIF(#REF!,'Annuity 2'!L6,#REF!),0) ->  | M110: =IF(OR(M5>0,M6>0),SUMIF(#REF!,'Annuity 2'!M6,#REF!),0) ->  | N110: =IF(OR(N5>0,N6>0),SUMIF(#REF!,'Annuity 2'!N6,#REF!),0) ->  | O110: =IF(OR(O5>0,O6>0),SUMIF(#REF!,'Annuity 2'!O6,#REF!),0) ->  | P110: =IF(OR(P5>0,P6>0),SUMIF(#REF!,'Annuity 2'!P6,#REF!),0) ->  | Q110: =IF(OR(Q5>0,Q6>0),SUMIF(#REF!,'Annuity 2'!Q6,#REF!),0) ->  | R110: =IF(OR(R5>0,R6>0),SUMIF(#REF!,'Annuity 2'!R6,#REF!),0) ->  | S110: =IF(OR(S5>0,S6>0),SUMIF(#REF!,'Annuity 2'!S6,#REF!),0) ->  | T110: =IF(OR(T5>0,T6>0),SUMIF(#REF!,'Annuity 2'!T6,#REF!),0) ->  | U110: =IF(OR(U5>0,U6>0),SUMIF(#REF!,'Annuity 2'!U6,#REF!),0) ->  | V110: =IF(OR(V5>0,V6>0),SUMIF(#REF!,'Annuity 2'!V6,#REF!),0) ->  | W110: =IF(OR(W5>0,W6>0),SUMIF(#REF!,'Annuity 2'!W6,#REF!),0) -> 
E111: Capex Raised | F111: =F114+F118+F125+J140 -> 
D113: Grant Disbursement
E114: Grant funding | F114: =SUM(H114:W114) ->  | H114: =IF(OR(H5>0,H6>0),SUMIF(#REF!,'Annuity 2'!H6,#REF!),0) ->  | I114: =IF(OR(I5>0,I6>0),SUMIF(#REF!,'Annuity 2'!I6,#REF!),0) ->  | J114: =IF(OR(J5>0,J6>0),SUMIF(#REF!,'Annuity 2'!J6,#REF!),0) ->  | K114: =IF(OR(K5>0,K6>0),SUMIF(#REF!,'Annuity 2'!K6,#REF!),0) ->  | L114: =IF(OR(L5>0,L6>0),SUMIF(#REF!,'Annuity 2'!L6,#REF!),0) ->  | M114: =IF(OR(M5>0,M6>0),SUMIF(#REF!,'Annuity 2'!M6,#REF!),0) ->  | N114: =IF(OR(N5>0,N6>0),SUMIF(#REF!,'Annuity 2'!N6,#REF!),0) ->  | O114: =IF(OR(O5>0,O6>0),SUMIF(#REF!,'Annuity 2'!O6,#REF!),0) ->  | P114: =IF(OR(P5>0,P6>0),SUMIF(#REF!,'Annuity 2'!P6,#REF!),0) ->  | Q114: =IF(OR(Q5>0,Q6>0),SUMIF(#REF!,'Annuity 2'!Q6,#REF!),0) ->  | R114: =IF(OR(R5>0,R6>0),SUMIF(#REF!,'Annuity 2'!R6,#REF!),0) ->  | S114: =IF(OR(S5>0,S6>0),SUMIF(#REF!,'Annuity 2'!S6,#REF!),0) ->  | T114: =IF(OR(T5>0,T6>0),SUMIF(#REF!,'Annuity 2'!T6,#REF!),0) ->  | U114: =IF(OR(U5>0,U6>0),SUMIF(#REF!,'Annuity 2'!U6,#REF!),0) ->  | V114: =IF(OR(V5>0,V6>0),SUMIF(#REF!,'Annuity 2'!V6,#REF!),0) ->  | W114: =IF(OR(W5>0,W6>0),SUMIF(#REF!,'Annuity 2'!W6,#REF!),0) -> 
D116: Concessional Debt
E117: Opening Balance | H117: =G120 -> 0 | I117: =H120 ->  | J117: =I120 -> 
D118: Plus: | E118: Drawdowns | F118: =SUM(H118:W118) ->  | H118: =IF(OR(H5>0,H6>0),SUMIF(#REF!,'Annuity 2'!H6,#REF!),0) ->  | I118: =IF(OR(I5>0,I6>0),SUMIF(#REF!,'Annuity 2'!I6,#REF!),0) ->  | J118: =IF(OR(J5>0,J6>0),SUMIF(#REF!,'Annuity 2'!J6,#REF!),0) ->  | K118: =IF(OR(K5>0,K6>0),SUMIF(#REF!,'Annuity 2'!K6,#REF!),0) ->  | L118: =IF(OR(L5>0,L6>0),SUMIF(#REF!,'Annuity 2'!L6,#REF!),0) ->  | M118: =IF(OR(M5>0,M6>0),SUMIF(#REF!,'Annuity 2'!M6,#REF!),0) ->  | N118: =IF(OR(N5>0,N6>0),SUMIF(#REF!,'Annuity 2'!N6,#REF!),0) ->  | O118: =IF(OR(O5>0,O6>0),SUMIF(#REF!,'Annuity 2'!O6,#REF!),0) ->  | P118: =IF(OR(P5>0,P6>0),SUMIF(#REF!,'Annuity 2'!P6,#REF!),0) ->  | Q118: =IF(OR(Q5>0,Q6>0),SUMIF(#REF!,'Annuity 2'!Q6,#REF!),0) ->  | R118: =IF(OR(R5>0,R6>0),SUMIF(#REF!,'Annuity 2'!R6,#REF!),0) ->  | S118: =IF(OR(S5>0,S6>0),SUMIF(#REF!,'Annuity 2'!S6,#REF!),0) ->  | T118: =IF(OR(T5>0,T6>0),SUMIF(#REF!,'Annuity 2'!T6,#REF!),0) ->  | U118: =IF(OR(U5>0,U6>0),SUMIF(#REF!,'Annuity 2'!U6,#REF!),0) ->  | V118: =IF(OR(V5>0,V6>0),SUMIF(#REF!,'Annuity 2'!V6,#REF!),0) ->  | W118: =IF(OR(W5>0,W6>0),SUMIF(#REF!,'Annuity 2'!W6,#REF!),0) -> 
D119: Less: | E119: Principal Repayments | F119: =SUM(H119:W119) ->  | H119: =IF(OR(H5>0,H6>0),SUMIF(#REF!,'Annuity 2'!H6,#REF!),0) ->  | I119: =IF(OR(I5>0,I6>0),SUMIF(#REF!,'Annuity 2'!I6,#REF!),0) ->  | J119: =IF(OR(J5>0,J6>0),SUMIF(#REF!,'Annuity 2'!J6,#REF!),0) ->  | K119: =IF(OR(K5>0,K6>0),SUMIF(#REF!,'Annuity 2'!K6,#REF!),0) ->  | L119: =IF(OR(L5>0,L6>0),SUMIF(#REF!,'Annuity 2'!L6,#REF!),0) ->  | M119: =IF(OR(M5>0,M6>0),SUMIF(#REF!,'Annuity 2'!M6,#REF!),0) ->  | N119: =IF(OR(N5>0,N6>0),SUMIF(#REF!,'Annuity 2'!N6,#REF!),0) ->  | O119: =IF(OR(O5>0,O6>0),SUMIF(#REF!,'Annuity 2'!O6,#REF!),0) ->  | P119: =IF(OR(P5>0,P6>0),SUMIF(#REF!,'Annuity 2'!P6,#REF!),0) ->  | Q119: =IF(OR(Q5>0,Q6>0),SUMIF(#REF!,'Annuity 2'!Q6,#REF!),0) ->  | R119: =IF(OR(R5>0,R6>0),SUMIF(#REF!,'Annuity 2'!R6,#REF!),0) ->  | S119: =IF(OR(S5>0,S6>0),SUMIF(#REF!,'Annuity 2'!S6,#REF!),0) ->  | T119: =IF(OR(T5>0,T6>0),SUMIF(#REF!,'Annuity 2'!T6,#REF!),0) ->  | U119: =IF(OR(U5>0,U6>0),SUMIF(#REF!,'Annuity 2'!U6,#REF!),0) ->  | V119: =IF(OR(V5>0,V6>0),SUMIF(#REF!,'Annuity 2'!V6,#REF!),0) ->  | W119: =IF(OR(W5>0,W6>0),SUMIF(#REF!,'Annuity 2'!W6,#REF!),0) -> 
E120: Ending Balance | H120: =H117+H118-H119 -> 
E121: Interest Payments | F121: =SUM(H121:AZ121) ->  | H121: =AVERAGE(H117,H120)*'Annuity 2'!$I$48*H7/#REF!*H10 ->  | I121: =AVERAGE(I117,I120)*'Annuity 2'!$I$48*I7/#REF!*I10 ->  | J121: =AVERAGE(J117,J120)*'Annuity 2'!$I$48*J7/#REF!*J10 ->  | K121: =AVERAGE(K117,K120)*'Annuity 2'!$I$48*K7/#REF!*K10 ->  | L121: =AVERAGE(L117,L120)*'Annuity 2'!$I$48*L7/#REF!*L10 ->  | M121: =AVERAGE(M117,M120)*'Annuity 2'!$I$48*M7/#REF!*M10 ->  | N121: =AVERAGE(N117,N120)*'Annuity 2'!$I$48*N7/#REF!*N10 ->  | O121: =AVERAGE(O117,O120)*'Annuity 2'!$I$48*O7/#REF!*O10 ->  | P121: =AVERAGE(P117,P120)*'Annuity 2'!$I$48*P7/#REF!*P10 ->  | Q121: =AVERAGE(Q117,Q120)*'Annuity 2'!$I$48*Q7/#REF!*Q10 ->  | R121: =AVERAGE(R117,R120)*'Annuity 2'!$I$48*R7/#REF!*R10 ->  | S121: =AVERAGE(S117,S120)*'Annuity 2'!$I$48*S7/#REF!*S10 ->  | T121: =AVERAGE(T117,T120)*'Annuity 2'!$I$48*T7/#REF!*T10 ->  | U121: =AVERAGE(U117,U120)*'Annuity 2'!$I$48*U7/#REF!*U10 ->  | V121: =AVERAGE(V117,V120)*'Annuity 2'!$I$48*V7/#REF!*V10 ->  | W121: =AVERAGE(W117,W120)*'Annuity 2'!$I$48*W7/#REF!*W10 -> 
D123: Commercial Debt
E124: Opening Balance | H124: =G127 -> 0
D125: Plus: | E125: Drawdowns | F125: =SUM(H125:AZ125) ->  | H125: =IF(OR(H5>0,H6>0),SUMIF(#REF!,'Annuity 2'!H6,#REF!),0) ->  | I125: =IF(OR(I5>0,I6>0),SUMIF(#REF!,'Annuity 2'!I6,#REF!),0) ->  | J125: =IF(OR(J5>0,J6>0),SUMIF(#REF!,'Annuity 2'!J6,#REF!),0) ->  | K125: =IF(OR(K5>0,K6>0),SUMIF(#REF!,'Annuity 2'!K6,#REF!),0) ->  | L125: =IF(OR(L5>0,L6>0),SUMIF(#REF!,'Annuity 2'!L6,#REF!),0) ->  | M125: =IF(OR(M5>0,M6>0),SUMIF(#REF!,'Annuity 2'!M6,#REF!),0) ->  | N125: =IF(OR(N5>0,N6>0),SUMIF(#REF!,'Annuity 2'!N6,#REF!),0) ->  | O125: =IF(OR(O5>0,O6>0),SUMIF(#REF!,'Annuity 2'!O6,#REF!),0) ->  | P125: =IF(OR(P5>0,P6>0),SUMIF(#REF!,'Annuity 2'!P6,#REF!),0) ->  | Q125: =IF(OR(Q5>0,Q6>0),SUMIF(#REF!,'Annuity 2'!Q6,#REF!),0) ->  | R125: =IF(OR(R5>0,R6>0),SUMIF(#REF!,'Annuity 2'!R6,#REF!),0) ->  | S125: =IF(OR(S5>0,S6>0),SUMIF(#REF!,'Annuity 2'!S6,#REF!),0) ->  | T125: =IF(OR(T5>0,T6>0),SUMIF(#REF!,'Annuity 2'!T6,#REF!),0) ->  | U125: =IF(OR(U5>0,U6>0),SUMIF(#REF!,'Annuity 2'!U6,#REF!),0) ->  | V125: =IF(OR(V5>0,V6>0),SUMIF(#REF!,'Annuity 2'!V6,#REF!),0) ->  | W125: =IF(OR(W5>0,W6>0),SUMIF(#REF!,'Annuity 2'!W6,#REF!),0) -> 
D126: Less: | E126: Principal Repayments | F126: =SUM(H126:AZ126) ->  | H126: =IF(OR(H5>0,H6>0),SUMIF(#REF!,'Annuity 2'!H6,#REF!),0) ->  | I126: =IF(OR(I5>0,I6>0),SUMIF(#REF!,'Annuity 2'!I6,#REF!),0) ->  | J126: =IF(OR(J5>0,J6>0),SUMIF(#REF!,'Annuity 2'!J6,#REF!),0) ->  | K126: =IF(OR(K5>0,K6>0),SUMIF(#REF!,'Annuity 2'!K6,#REF!),0) ->  | L126: =IF(OR(L5>0,L6>0),SUMIF(#REF!,'Annuity 2'!L6,#REF!),0) ->  | M126: =IF(OR(M5>0,M6>0),SUMIF(#REF!,'Annuity 2'!M6,#REF!),0) ->  | N126: =IF(OR(N5>0,N6>0),SUMIF(#REF!,'Annuity 2'!N6,#REF!),0) ->  | O126: =IF(OR(O5>0,O6>0),SUMIF(#REF!,'Annuity 2'!O6,#REF!),0) ->  | P126: =IF(OR(P5>0,P6>0),SUMIF(#REF!,'Annuity 2'!P6,#REF!),0) ->  | Q126: =IF(OR(Q5>0,Q6>0),SUMIF(#REF!,'Annuity 2'!Q6,#REF!),0) ->  | R126: =IF(OR(R5>0,R6>0),SUMIF(#REF!,'Annuity 2'!R6,#REF!),0) ->  | S126: =IF(OR(S5>0,S6>0),SUMIF(#REF!,'Annuity 2'!S6,#REF!),0) ->  | T126: =IF(OR(T5>0,T6>0),SUMIF(#REF!,'Annuity 2'!T6,#REF!),0) ->  | U126: =IF(OR(U5>0,U6>0),SUMIF(#REF!,'Annuity 2'!U6,#REF!),0) ->  | V126: =IF(OR(V5>0,V6>0),SUMIF(#REF!,'Annuity 2'!V6,#REF!),0) ->  | W126: =IF(OR(W5>0,W6>0),SUMIF(#REF!,'Annuity 2'!W6,#REF!),0) -> 
E127: Ending Balance | H127: =H124+H125-H126 -> 
E128: Interest Payments | F128: =SUM(H128:AZ128) ->  | H128: =AVERAGE(H124,H127)*'Annuity 2'!$I$49*H7/#REF!*H10 ->  | I128: =AVERAGE(I124,I127)*'Annuity 2'!$I$49*I7/#REF!*I10 ->  | J128: =AVERAGE(J124,J127)*'Annuity 2'!$I$49*J7/#REF!*J10 ->  | K128: =AVERAGE(K124,K127)*'Annuity 2'!$I$49*K7/#REF!*K10 ->  | L128: =AVERAGE(L124,L127)*'Annuity 2'!$I$49*L7/#REF!*L10 ->  | M128: =AVERAGE(M124,M127)*'Annuity 2'!$I$49*M7/#REF!*M10 ->  | N128: =AVERAGE(N124,N127)*'Annuity 2'!$I$49*N7/#REF!*N10 ->  | O128: =AVERAGE(O124,O127)*'Annuity 2'!$I$49*O7/#REF!*O10 ->  | P128: =AVERAGE(P124,P127)*'Annuity 2'!$I$49*P7/#REF!*P10 ->  | Q128: =AVERAGE(Q124,Q127)*'Annuity 2'!$I$49*Q7/#REF!*Q10 ->  | R128: =AVERAGE(R124,R127)*'Annuity 2'!$I$49*R7/#REF!*R10 ->  | S128: =AVERAGE(S124,S127)*'Annuity 2'!$I$49*S7/#REF!*S10 ->  | T128: =AVERAGE(T124,T127)*'Annuity 2'!$I$49*T7/#REF!*T10 ->  | U128: =AVERAGE(U124,U127)*'Annuity 2'!$I$49*U7/#REF!*U10 ->  | V128: =AVERAGE(V124,V127)*'Annuity 2'!$I$49*V7/#REF!*V10 ->  | W128: =AVERAGE(W124,W127)*'Annuity 2'!$I$49*W7/#REF!*W10 -> 
D130: =D82 -> O&M Costs Incurred
E131: =E83 -> Base Year Annual O&M | F131: =#REF! -> 
E132: =E84 -> O&M Incurred | H132: =IF(H6>0,$F$131*'Annuity 2'!H13*H7/#REF!,0) ->  | I132: =IF(I6>0,$F$131*'Annuity 2'!I13*I7/#REF!,0) ->  | J132: =IF(J6>0,$F$131*'Annuity 2'!J13*J7/#REF!,0) ->  | K132: =IF(K6>0,$F$131*'Annuity 2'!K13*K7/#REF!,0) ->  | L132: =IF(L6>0,$F$131*'Annuity 2'!L13*L7/#REF!,0) ->  | M132: =IF(M6>0,$F$131*'Annuity 2'!M13*M7/#REF!,0) ->  | N132: =IF(N6>0,$F$131*'Annuity 2'!N13*N7/#REF!,0) ->  | O132: =IF(O6>0,$F$131*'Annuity 2'!O13*O7/#REF!,0) ->  | P132: =IF(P6>0,$F$131*'Annuity 2'!P13*P7/#REF!,0) ->  | Q132: =IF(Q6>0,$F$131*'Annuity 2'!Q13*Q7/#REF!,0) ->  | R132: =IF(R6>0,$F$131*'Annuity 2'!R13*R7/#REF!,0) ->  | S132: =IF(S6>0,$F$131*'Annuity 2'!S13*S7/#REF!,0) ->  | T132: =IF(T6>0,$F$131*'Annuity 2'!T13*T7/#REF!,0) ->  | U132: =IF(U6>0,$F$131*'Annuity 2'!U13*U7/#REF!,0) ->  | V132: =IF(V6>0,$F$131*'Annuity 2'!V13*V7/#REF!,0) ->  | W132: =IF(W6>0,$F$131*'Annuity 2'!W13*W7/#REF!,0) -> 
E133: Levelized O&M | F133: =SUMPRODUCT(H132:W132,$H$55:$W$55)/SUM($H$55:$W$55) -> 
D135: Components of Annuity
E136: Principal Repayment
E137: Interest on Debt
E138: Applicable Tax Rate | H138: =#REF! ->  | I138: =#REF! ->  | J138: =#REF! ->  | K138: =#REF! ->  | L138: =#REF! ->  | M138: =#REF! ->  | N138: =#REF! ->  | O138: =#REF! ->  | P138: =#REF! ->  | Q138: =#REF! ->  | R138: =#REF! ->  | S138: =#REF! ->  | T138: =#REF! ->  | U138: =#REF! ->  | V138: =#REF! ->  | W138: =#REF! -> 
E139: Net Equity Invested | H139: =IF(OR(H5>0,H6>0),SUMIF(#REF!,'Annuity 2'!H6,#REF!),0) ->  | I139: =IF(OR(I5>0,I6>0),SUMIF(#REF!,'Annuity 2'!I6,#REF!),0) ->  | J139: =IF(OR(J5>0,J6>0),SUMIF(#REF!,'Annuity 2'!J6,#REF!),0) ->  | K139: =IF(OR(K5>0,K6>0),SUMIF(#REF!,'Annuity 2'!K6,#REF!),0) ->  | L139: =IF(OR(L5>0,L6>0),SUMIF(#REF!,'Annuity 2'!L6,#REF!),0) ->  | M139: =IF(OR(M5>0,M6>0),SUMIF(#REF!,'Annuity 2'!M6,#REF!),0) ->  | N139: =IF(OR(N5>0,N6>0),SUMIF(#REF!,'Annuity 2'!N6,#REF!),0) ->  | O139: =IF(OR(O5>0,O6>0),SUMIF(#REF!,'Annuity 2'!O6,#REF!),0) ->  | P139: =IF(OR(P5>0,P6>0),SUMIF(#REF!,'Annuity 2'!P6,#REF!),0) ->  | Q139: =IF(OR(Q5>0,Q6>0),SUMIF(#REF!,'Annuity 2'!Q6,#REF!),0) ->  | R139: =IF(OR(R5>0,R6>0),SUMIF(#REF!,'Annuity 2'!R6,#REF!),0) ->  | S139: =IF(OR(S5>0,S6>0),SUMIF(#REF!,'Annuity 2'!S6,#REF!),0) ->  | T139: =IF(OR(T5>0,T6>0),SUMIF(#REF!,'Annuity 2'!T6,#REF!),0) ->  | U139: =IF(OR(U5>0,U6>0),SUMIF(#REF!,'Annuity 2'!U6,#REF!),0) ->  | V139: =IF(OR(V5>0,V6>0),SUMIF(#REF!,'Annuity 2'!V6,#REF!),0) ->  | W139: =IF(OR(W5>0,W6>0),SUMIF(#REF!,'Annuity 2'!W6,#REF!),0) -> 
E140: Cumulative Equity Invested | H140: =IF(OR(H5>0,H6>0),SUM($H$139:H139),"na") ->  | I140: =IF(OR(I5>0,I6>0),SUM($H$139:I139),"na") ->  | J140: =IF(OR(J5>0,J6>0),SUM($H$139:J139),"na") ->  | K140: =IF(OR(K5>0,K6>0),SUM($H$139:K139),"na") ->  | L140: =IF(OR(L5>0,L6>0),SUM($H$139:L139),"na") ->  | M140: =IF(OR(M5>0,M6>0),SUM($H$139:M139),"na") ->  | N140: =IF(OR(N5>0,N6>0),SUM($H$139:N139),"na") ->  | O140: =IF(OR(O5>0,O6>0),SUM($H$139:O139),"na") ->  | P140: =IF(OR(P5>0,P6>0),SUM($H$139:P139),"na") ->  | Q140: =IF(OR(Q5>0,Q6>0),SUM($H$139:Q139),"na") ->  | R140: =IF(OR(R5>0,R6>0),SUM($H$139:R139),"na") ->  | S140: =IF(OR(S5>0,S6>0),SUM($H$139:S139),"na") ->  | T140: =IF(OR(T5>0,T6>0),SUM($H$139:T139),"na") ->  | U140: =IF(OR(U5>0,U6>0),SUM($H$139:U139),"na") ->  | V140: =IF(OR(V5>0,V6>0),SUM($H$139:V139),"na") ->  | W140: =IF(OR(W5>0,W6>0),SUM($H$139:W139),"na") -> 
E141: RoE (Pre-tax) | H141: =IF(H6>0,G140*$I$50/(1-H138)*H7/#REF!,0) ->  | I141: =IF(I6>0,H140*$I$50/(1-I138)*I7/#REF!,0) ->  | J141: =IF(J6>0,I140*$I$50/(1-J138)*J7/#REF!,0) ->  | K141: =IF(K6>0,J140*$I$50/(1-K138)*K7/#REF!,0) ->  | L141: =IF(L6>0,K140*$I$50/(1-L138)*L7/#REF!,0) ->  | M141: =IF(M6>0,L140*$I$50/(1-M138)*M7/#REF!,0) ->  | N141: =IF(N6>0,M140*$I$50/(1-N138)*N7/#REF!,0) ->  | O141: =IF(O6>0,N140*$I$50/(1-O138)*O7/#REF!,0) ->  | P141: =IF(P6>0,O140*$I$50/(1-P138)*P7/#REF!,0) ->  | Q141: =IF(Q6>0,P140*$I$50/(1-Q138)*Q7/#REF!,0) ->  | R141: =IF(R6>0,Q140*$I$50/(1-R138)*R7/#REF!,0) ->  | S141: =IF(S6>0,R140*$I$50/(1-S138)*S7/#REF!,0) ->  | T141: =IF(T6>0,S140*$I$50/(1-T138)*T7/#REF!,0) ->  | U141: =IF(U6>0,T140*$I$50/(1-U138)*U7/#REF!,0) ->  | V141: =IF(V6>0,U140*$I$50/(1-V138)*V7/#REF!,0) ->  | W141: =IF(W6>0,V140*$I$50/(1-W138)*W7/#REF!,0) -> 
E143: Total Annuity Requirement | F143: =SUM(H143:W143) ->  | H143: =H141+SUM(H136:H137) ->  | I143: =I141+SUM(I136:I137) -> 
E145: Levelized Annuity | F145: =SUMPRODUCT(H143:W143,$H$55:$W$55)/SUM($H$55:$W$55) -> 
E146: Annuity for Concession Period | F146: =F145*$F$57 -> 
E147: Upfront Capex Annuity paid | F147: =#REF! -> 
D149: Disbursement of Annuity
E150: Capex Share of Annuity | F150: =SUM(H150:W150) ->  | H150: =SUM(H151:H152) -> 
E151: Upfront Annuity Payment | F151: =F146*F147 ->  | H151: =IF(H6=$F$56,$F$151,0) -> 
E152: Balance | F152: =F146-F151 ->  | H152: =IF(AND(H6>1,$F$151>1),($F$146-$F$151)/($F$57-$F$56),IF(AND(H6>0,$F$151=0),$F$146/$F$57,0)) -> 
E153: Opex Share of Annuity | F153: =SUM(H153:W153) ->  | H153: =IF(H6>0,$F$133,0) -> 
C155: Rourkela
D156: Capex Spend
E157: Capex Incurred | F157: =SUM(H157:W157) ->  | H157: =IF(OR(H5>0,H6>0),SUMIF(#REF!,'Annuity 2'!H6,#REF!),0) ->  | I157: =IF(OR(I5>0,I6>0),SUMIF(#REF!,'Annuity 2'!I6,#REF!),0) ->  | J157: =IF(OR(J5>0,J6>0),SUMIF(#REF!,'Annuity 2'!J6,#REF!),0) ->  | K157: =IF(OR(K5>0,K6>0),SUMIF(#REF!,'Annuity 2'!K6,#REF!),0) ->  | L157: =IF(OR(L5>0,L6>0),SUMIF(#REF!,'Annuity 2'!L6,#REF!),0) ->  | M157: =IF(OR(M5>0,M6>0),SUMIF(#REF!,'Annuity 2'!M6,#REF!),0) ->  | N157: =IF(OR(N5>0,N6>0),SUMIF(#REF!,'Annuity 2'!N6,#REF!),0) ->  | O157: =IF(OR(O5>0,O6>0),SUMIF(#REF!,'Annuity 2'!O6,#REF!),0) ->  | P157: =IF(OR(P5>0,P6>0),SUMIF(#REF!,'Annuity 2'!P6,#REF!),0) ->  | Q157: =IF(OR(Q5>0,Q6>0),SUMIF(#REF!,'Annuity 2'!Q6,#REF!),0) ->  | R157: =IF(OR(R5>0,R6>0),SUMIF(#REF!,'Annuity 2'!R6,#REF!),0) ->  | S157: =IF(OR(S5>0,S6>0),SUMIF(#REF!,'Annuity 2'!S6,#REF!),0) ->  | T157: =IF(OR(T5>0,T6>0),SUMIF(#REF!,'Annuity 2'!T6,#REF!),0) ->  | U157: =IF(OR(U5>0,U6>0),SUMIF(#REF!,'Annuity 2'!U6,#REF!),0) ->  | V157: =IF(OR(V5>0,V6>0),SUMIF(#REF!,'Annuity 2'!V6,#REF!),0) ->  | W157: =IF(OR(W5>0,W6>0),SUMIF(#REF!,'Annuity 2'!W6,#REF!),0) -> 
E158: Capex Raised | F158: =F161+F165+F172+J187 -> 
D160: Grant Disbursement
E161: Grant funding | F161: =SUM(H161:W161) ->  | H161: =IF(OR(H5>0,H6>0),SUMIF(#REF!,'Annuity 2'!H6,#REF!),0) ->  | I161: =IF(OR(I5>0,I6>0),SUMIF(#REF!,'Annuity 2'!I6,#REF!),0) ->  | J161: =IF(OR(J5>0,J6>0),SUMIF(#REF!,'Annuity 2'!J6,#REF!),0) ->  | K161: =IF(OR(K5>0,K6>0),SUMIF(#REF!,'Annuity 2'!K6,#REF!),0) ->  | L161: =IF(OR(L5>0,L6>0),SUMIF(#REF!,'Annuity 2'!L6,#REF!),0) ->  | M161: =IF(OR(M5>0,M6>0),SUMIF(#REF!,'Annuity 2'!M6,#REF!),0) ->  | N161: =IF(OR(N5>0,N6>0),SUMIF(#REF!,'Annuity 2'!N6,#REF!),0) ->  | O161: =IF(OR(O5>0,O6>0),SUMIF(#REF!,'Annuity 2'!O6,#REF!),0) ->  | P161: =IF(OR(P5>0,P6>0),SUMIF(#REF!,'Annuity 2'!P6,#REF!),0) ->  | Q161: =IF(OR(Q5>0,Q6>0),SUMIF(#REF!,'Annuity 2'!Q6,#REF!),0) ->  | R161: =IF(OR(R5>0,R6>0),SUMIF(#REF!,'Annuity 2'!R6,#REF!),0) ->  | S161: =IF(OR(S5>0,S6>0),SUMIF(#REF!,'Annuity 2'!S6,#REF!),0) ->  | T161: =IF(OR(T5>0,T6>0),SUMIF(#REF!,'Annuity 2'!T6,#REF!),0) ->  | U161: =IF(OR(U5>0,U6>0),SUMIF(#REF!,'Annuity 2'!U6,#REF!),0) ->  | V161: =IF(OR(V5>0,V6>0),SUMIF(#REF!,'Annuity 2'!V6,#REF!),0) ->  | W161: =IF(OR(W5>0,W6>0),SUMIF(#REF!,'Annuity 2'!W6,#REF!),0) -> 
D163: Concessional Debt
E164: Opening Balance | H164: =G167 -> 0 | I164: =H167 ->  | J164: =I167 -> 
D165: Plus: | E165: Drawdowns | F165: =SUM(H165:W165) ->  | H165: =IF(OR(H5>0,H6>0),SUMIF(#REF!,'Annuity 2'!H6,#REF!),0) ->  | I165: =IF(OR(I5>0,I6>0),SUMIF(#REF!,'Annuity 2'!I6,#REF!),0) ->  | J165: =IF(OR(J5>0,J6>0),SUMIF(#REF!,'Annuity 2'!J6,#REF!),0) ->  | K165: =IF(OR(K5>0,K6>0),SUMIF(#REF!,'Annuity 2'!K6,#REF!),0) ->  | L165: =IF(OR(L5>0,L6>0),SUMIF(#REF!,'Annuity 2'!L6,#REF!),0) ->  | M165: =IF(OR(M5>0,M6>0),SUMIF(#REF!,'Annuity 2'!M6,#REF!),0) ->  | N165: =IF(OR(N5>0,N6>0),SUMIF(#REF!,'Annuity 2'!N6,#REF!),0) ->  | O165: =IF(OR(O5>0,O6>0),SUMIF(#REF!,'Annuity 2'!O6,#REF!),0) ->  | P165: =IF(OR(P5>0,P6>0),SUMIF(#REF!,'Annuity 2'!P6,#REF!),0) ->  | Q165: =IF(OR(Q5>0,Q6>0),SUMIF(#REF!,'Annuity 2'!Q6,#REF!),0) ->  | R165: =IF(OR(R5>0,R6>0),SUMIF(#REF!,'Annuity 2'!R6,#REF!),0) ->  | S165: =IF(OR(S5>0,S6>0),SUMIF(#REF!,'Annuity 2'!S6,#REF!),0) ->  | T165: =IF(OR(T5>0,T6>0),SUMIF(#REF!,'Annuity 2'!T6,#REF!),0) ->  | U165: =IF(OR(U5>0,U6>0),SUMIF(#REF!,'Annuity 2'!U6,#REF!),0) ->  | V165: =IF(OR(V5>0,V6>0),SUMIF(#REF!,'Annuity 2'!V6,#REF!),0) ->  | W165: =IF(OR(W5>0,W6>0),SUMIF(#REF!,'Annuity 2'!W6,#REF!),0) -> 
D166: Less: | E166: Principal Repayments | F166: =SUM(H166:W166) ->  | H166: =IF(OR(H5>0,H6>0),SUMIF(#REF!,'Annuity 2'!H6,#REF!),0) ->  | I166: =IF(OR(I5>0,I6>0),SUMIF(#REF!,'Annuity 2'!I6,#REF!),0) ->  | J166: =IF(OR(J5>0,J6>0),SUMIF(#REF!,'Annuity 2'!J6,#REF!),0) ->  | K166: =IF(OR(K5>0,K6>0),SUMIF(#REF!,'Annuity 2'!K6,#REF!),0) ->  | L166: =IF(OR(L5>0,L6>0),SUMIF(#REF!,'Annuity 2'!L6,#REF!),0) ->  | M166: =IF(OR(M5>0,M6>0),SUMIF(#REF!,'Annuity 2'!M6,#REF!),0) ->  | N166: =IF(OR(N5>0,N6>0),SUMIF(#REF!,'Annuity 2'!N6,#REF!),0) ->  | O166: =IF(OR(O5>0,O6>0),SUMIF(#REF!,'Annuity 2'!O6,#REF!),0) ->  | P166: =IF(OR(P5>0,P6>0),SUMIF(#REF!,'Annuity 2'!P6,#REF!),0) ->  | Q166: =IF(OR(Q5>0,Q6>0),SUMIF(#REF!,'Annuity 2'!Q6,#REF!),0) ->  | R166: =IF(OR(R5>0,R6>0),SUMIF(#REF!,'Annuity 2'!R6,#REF!),0) ->  | S166: =IF(OR(S5>0,S6>0),SUMIF(#REF!,'Annuity 2'!S6,#REF!),0) ->  | T166: =IF(OR(T5>0,T6>0),SUMIF(#REF!,'Annuity 2'!T6,#REF!),0) ->  | U166: =IF(OR(U5>0,U6>0),SUMIF(#REF!,'Annuity 2'!U6,#REF!),0) ->  | V166: =IF(OR(V5>0,V6>0),SUMIF(#REF!,'Annuity 2'!V6,#REF!),0) ->  | W166: =IF(OR(W5>0,W6>0),SUMIF(#REF!,'Annuity 2'!W6,#REF!),0) -> 
E167: Ending Balance | H167: =H164+H165-H166 -> 
E168: Interest Payments | F168: =SUM(H168:AZ168) ->  | H168: =AVERAGE(H164,H167)*'Annuity 2'!$I$48*H7/#REF!*H10 ->  | I168: =AVERAGE(I164,I167)*'Annuity 2'!$I$48*I7/#REF!*I10 ->  | J168: =AVERAGE(J164,J167)*'Annuity 2'!$I$48*J7/#REF!*J10 ->  | K168: =AVERAGE(K164,K167)*'Annuity 2'!$I$48*K7/#REF!*K10 ->  | L168: =AVERAGE(L164,L167)*'Annuity 2'!$I$48*L7/#REF!*L10 ->  | M168: =AVERAGE(M164,M167)*'Annuity 2'!$I$48*M7/#REF!*M10 ->  | N168: =AVERAGE(N164,N167)*'Annuity 2'!$I$48*N7/#REF!*N10 ->  | O168: =AVERAGE(O164,O167)*'Annuity 2'!$I$48*O7/#REF!*O10 ->  | P168: =AVERAGE(P164,P167)*'Annuity 2'!$I$48*P7/#REF!*P10 ->  | Q168: =AVERAGE(Q164,Q167)*'Annuity 2'!$I$48*Q7/#REF!*Q10 ->  | R168: =AVERAGE(R164,R167)*'Annuity 2'!$I$48*R7/#REF!*R10 ->  | S168: =AVERAGE(S164,S167)*'Annuity 2'!$I$48*S7/#REF!*S10 ->  | T168: =AVERAGE(T164,T167)*'Annuity 2'!$I$48*T7/#REF!*T10 ->  | U168: =AVERAGE(U164,U167)*'Annuity 2'!$I$48*U7/#REF!*U10 ->  | V168: =AVERAGE(V164,V167)*'Annuity 2'!$I$48*V7/#REF!*V10 ->  | W168: =AVERAGE(W164,W167)*'Annuity 2'!$I$48*W7/#REF!*W10 -> 
D170: Commercial Debt
E171: Opening Balance | H171: =G174 -> 0
D172: Plus: | E172: Drawdowns | F172: =SUM(H172:AZ172) ->  | H172: =IF(OR(H5>0,H6>0),SUMIF(#REF!,'Annuity 2'!H6,#REF!),0) ->  | I172: =IF(OR(I5>0,I6>0),SUMIF(#REF!,'Annuity 2'!I6,#REF!),0) ->  | J172: =IF(OR(J5>0,J6>0),SUMIF(#REF!,'Annuity 2'!J6,#REF!),0) ->  | K172: =IF(OR(K5>0,K6>0),SUMIF(#REF!,'Annuity 2'!K6,#REF!),0) ->  | L172: =IF(OR(L5>0,L6>0),SUMIF(#REF!,'Annuity 2'!L6,#REF!),0) ->  | M172: =IF(OR(M5>0,M6>0),SUMIF(#REF!,'Annuity 2'!M6,#REF!),0) ->  | N172: =IF(OR(N5>0,N6>0),SUMIF(#REF!,'Annuity 2'!N6,#REF!),0) ->  | O172: =IF(OR(O5>0,O6>0),SUMIF(#REF!,'Annuity 2'!O6,#REF!),0) ->  | P172: =IF(OR(P5>0,P6>0),SUMIF(#REF!,'Annuity 2'!P6,#REF!),0) ->  | Q172: =IF(OR(Q5>0,Q6>0),SUMIF(#REF!,'Annuity 2'!Q6,#REF!),0) ->  | R172: =IF(OR(R5>0,R6>0),SUMIF(#REF!,'Annuity 2'!R6,#REF!),0) ->  | S172: =IF(OR(S5>0,S6>0),SUMIF(#REF!,'Annuity 2'!S6,#REF!),0) ->  | T172: =IF(OR(T5>0,T6>0),SUMIF(#REF!,'Annuity 2'!T6,#REF!),0) ->  | U172: =IF(OR(U5>0,U6>0),SUMIF(#REF!,'Annuity 2'!U6,#REF!),0) ->  | V172: =IF(OR(V5>0,V6>0),SUMIF(#REF!,'Annuity 2'!V6,#REF!),0) ->  | W172: =IF(OR(W5>0,W6>0),SUMIF(#REF!,'Annuity 2'!W6,#REF!),0) -> 
D173: Less: | E173: Principal Repayments | F173: =SUM(H173:AZ173) ->  | H173: =IF(OR(H5>0,H6>0),SUMIF(#REF!,'Annuity 2'!H6,#REF!),0) ->  | I173: =IF(OR(I5>0,I6>0),SUMIF(#REF!,'Annuity 2'!I6,#REF!),0) ->  | J173: =IF(OR(J5>0,J6>0),SUMIF(#REF!,'Annuity 2'!J6,#REF!),0) ->  | K173: =IF(OR(K5>0,K6>0),SUMIF(#REF!,'Annuity 2'!K6,#REF!),0) ->  | L173: =IF(OR(L5>0,L6>0),SUMIF(#REF!,'Annuity 2'!L6,#REF!),0) ->  | M173: =IF(OR(M5>0,M6>0),SUMIF(#REF!,'Annuity 2'!M6,#REF!),0) ->  | N173: =IF(OR(N5>0,N6>0),SUMIF(#REF!,'Annuity 2'!N6,#REF!),0) ->  | O173: =IF(OR(O5>0,O6>0),SUMIF(#REF!,'Annuity 2'!O6,#REF!),0) ->  | P173: =IF(OR(P5>0,P6>0),SUMIF(#REF!,'Annuity 2'!P6,#REF!),0) ->  | Q173: =IF(OR(Q5>0,Q6>0),SUMIF(#REF!,'Annuity 2'!Q6,#REF!),0) ->  | R173: =IF(OR(R5>0,R6>0),SUMIF(#REF!,'Annuity 2'!R6,#REF!),0) ->  | S173: =IF(OR(S5>0,S6>0),SUMIF(#REF!,'Annuity 2'!S6,#REF!),0) ->  | T173: =IF(OR(T5>0,T6>0),SUMIF(#REF!,'Annuity 2'!T6,#REF!),0) ->  | U173: =IF(OR(U5>0,U6>0),SUMIF(#REF!,'Annuity 2'!U6,#REF!),0) ->  | V173: =IF(OR(V5>0,V6>0),SUMIF(#REF!,'Annuity 2'!V6,#REF!),0) ->  | W173: =IF(OR(W5>0,W6>0),SUMIF(#REF!,'Annuity 2'!W6,#REF!),0) -> 
E174: Ending Balance | H174: =H171+H172-H173 -> 
E175: Interest Payments | F175: =SUM(H175:AZ175) ->  | H175: =AVERAGE(H171,H174)*'Annuity 2'!$I$49*H7/#REF!*H10 ->  | I175: =AVERAGE(I171,I174)*'Annuity 2'!$I$49*I7/#REF!*I10 ->  | J175: =AVERAGE(J171,J174)*'Annuity 2'!$I$49*J7/#REF!*J10 ->  | K175: =AVERAGE(K171,K174)*'Annuity 2'!$I$49*K7/#REF!*K10 ->  | L175: =AVERAGE(L171,L174)*'Annuity 2'!$I$49*L7/#REF!*L10 ->  | M175: =AVERAGE(M171,M174)*'Annuity 2'!$I$49*M7/#REF!*M10 ->  | N175: =AVERAGE(N171,N174)*'Annuity 2'!$I$49*N7/#REF!*N10 ->  | O175: =AVERAGE(O171,O174)*'Annuity 2'!$I$49*O7/#REF!*O10 ->  | P175: =AVERAGE(P171,P174)*'Annuity 2'!$I$49*P7/#REF!*P10 ->  | Q175: =AVERAGE(Q171,Q174)*'Annuity 2'!$I$49*Q7/#REF!*Q10 ->  | R175: =AVERAGE(R171,R174)*'Annuity 2'!$I$49*R7/#REF!*R10 ->  | S175: =AVERAGE(S171,S174)*'Annuity 2'!$I$49*S7/#REF!*S10 ->  | T175: =AVERAGE(T171,T174)*'Annuity 2'!$I$49*T7/#REF!*T10 ->  | U175: =AVERAGE(U171,U174)*'Annuity 2'!$I$49*U7/#REF!*U10 ->  | V175: =AVERAGE(V171,V174)*'Annuity 2'!$I$49*V7/#REF!*V10 ->  | W175: =AVERAGE(W171,W174)*'Annuity 2'!$I$49*W7/#REF!*W10 -> 
D177: =D82 -> O&M Costs Incurred
D178: =D83 -> 0 | E178: =E83 -> Base Year Annual O&M | F178: =#REF! -> 
D179: =D84 -> 0 | E179: =E84 -> O&M Incurred | H179: =IF(H6>0,$F$178*'Annuity 2'!H13*H7/#REF!,0) ->  | I179: =IF(I6>0,$F$178*'Annuity 2'!I13*I7/#REF!,0) ->  | J179: =IF(J6>0,$F$178*'Annuity 2'!J13*J7/#REF!,0) ->  | K179: =IF(K6>0,$F$178*'Annuity 2'!K13*K7/#REF!,0) ->  | L179: =IF(L6>0,$F$178*'Annuity 2'!L13*L7/#REF!,0) ->  | M179: =IF(M6>0,$F$178*'Annuity 2'!M13*M7/#REF!,0) ->  | N179: =IF(N6>0,$F$178*'Annuity 2'!N13*N7/#REF!,0) ->  | O179: =IF(O6>0,$F$178*'Annuity 2'!O13*O7/#REF!,0) ->  | P179: =IF(P6>0,$F$178*'Annuity 2'!P13*P7/#REF!,0) ->  | Q179: =IF(Q6>0,$F$178*'Annuity 2'!Q13*Q7/#REF!,0) ->  | R179: =IF(R6>0,$F$178*'Annuity 2'!R13*R7/#REF!,0) ->  | S179: =IF(S6>0,$F$178*'Annuity 2'!S13*S7/#REF!,0) ->  | T179: =IF(T6>0,$F$178*'Annuity 2'!T13*T7/#REF!,0) ->  | U179: =IF(U6>0,$F$178*'Annuity 2'!U13*U7/#REF!,0) ->  | V179: =IF(V6>0,$F$178*'Annuity 2'!V13*V7/#REF!,0) ->  | W179: =IF(W6>0,$F$178*'Annuity 2'!W13*W7/#REF!,0) -> 
E180: Levelized O&M | F180: =SUMPRODUCT(H179:W179,$H$55:$W$55)/SUM($H$55:$W$55) -> 
D182: Components of Annuity
E183: Principal Repayment
E184: Interest on Debt
E185: Applicable Tax Rate | H185: =#REF! ->  | I185: =#REF! ->  | J185: =#REF! ->  | K185: =#REF! ->  | L185: =#REF! ->  | M185: =#REF! ->  | N185: =#REF! ->  | O185: =#REF! ->  | P185: =#REF! ->  | Q185: =#REF! ->  | R185: =#REF! ->  | S185: =#REF! ->  | T185: =#REF! ->  | U185: =#REF! ->  | V185: =#REF! ->  | W185: =#REF! -> 
E186: Net Equity Invested | H186: =IF(OR(H5>0,H6>0),SUMIF(#REF!,'Annuity 2'!H6,#REF!),0) ->  | I186: =IF(OR(I5>0,I6>0),SUMIF(#REF!,'Annuity 2'!I6,#REF!),0) ->  | J186: =IF(OR(J5>0,J6>0),SUMIF(#REF!,'Annuity 2'!J6,#REF!),0) ->  | K186: =IF(OR(K5>0,K6>0),SUMIF(#REF!,'Annuity 2'!K6,#REF!),0) ->  | L186: =IF(OR(L5>0,L6>0),SUMIF(#REF!,'Annuity 2'!L6,#REF!),0) ->  | M186: =IF(OR(M5>0,M6>0),SUMIF(#REF!,'Annuity 2'!M6,#REF!),0) ->  | N186: =IF(OR(N5>0,N6>0),SUMIF(#REF!,'Annuity 2'!N6,#REF!),0) ->  | O186: =IF(OR(O5>0,O6>0),SUMIF(#REF!,'Annuity 2'!O6,#REF!),0) ->  | P186: =IF(OR(P5>0,P6>0),SUMIF(#REF!,'Annuity 2'!P6,#REF!),0) ->  | Q186: =IF(OR(Q5>0,Q6>0),SUMIF(#REF!,'Annuity 2'!Q6,#REF!),0) ->  | R186: =IF(OR(R5>0,R6>0),SUMIF(#REF!,'Annuity 2'!R6,#REF!),0) ->  | S186: =IF(OR(S5>0,S6>0),SUMIF(#REF!,'Annuity 2'!S6,#REF!),0) ->  | T186: =IF(OR(T5>0,T6>0),SUMIF(#REF!,'Annuity 2'!T6,#REF!),0) ->  | U186: =IF(OR(U5>0,U6>0),SUMIF(#REF!,'Annuity 2'!U6,#REF!),0) ->  | V186: =IF(OR(V5>0,V6>0),SUMIF(#REF!,'Annuity 2'!V6,#REF!),0) ->  | W186: =IF(OR(W5>0,W6>0),SUMIF(#REF!,'Annuity 2'!W6,#REF!),0) -> 
E187: Cumulative Equity Invested | H187: =IF(OR(H5>0,H6>0),SUM($H$186:H186),"na") ->  | I187: =IF(OR(I5>0,I6>0),SUM($H$186:I186),"na") ->  | J187: =IF(OR(J5>0,J6>0),SUM($H$186:J186),"na") ->  | K187: =IF(OR(K5>0,K6>0),SUM($H$186:K186),"na") ->  | L187: =IF(OR(L5>0,L6>0),SUM($H$186:L186),"na") ->  | M187: =IF(OR(M5>0,M6>0),SUM($H$186:M186),"na") ->  | N187: =IF(OR(N5>0,N6>0),SUM($H$186:N186),"na") ->  | O187: =IF(OR(O5>0,O6>0),SUM($H$186:O186),"na") ->  | P187: =IF(OR(P5>0,P6>0),SUM($H$186:P186),"na") ->  | Q187: =IF(OR(Q5>0,Q6>0),SUM($H$186:Q186),"na") ->  | R187: =IF(OR(R5>0,R6>0),SUM($H$186:R186),"na") ->  | S187: =IF(OR(S5>0,S6>0),SUM($H$186:S186),"na") ->  | T187: =IF(OR(T5>0,T6>0),SUM($H$186:T186),"na") ->  | U187: =IF(OR(U5>0,U6>0),SUM($H$186:U186),"na") ->  | V187: =IF(OR(V5>0,V6>0),SUM($H$186:V186),"na") ->  | W187: =IF(OR(W5>0,W6>0),SUM($H$186:W186),"na") -> 
E188: RoE (Pre-tax) | H188: =IF(H6>0,G187*$I$50/(1-H185)*H7/#REF!,0) ->  | I188: =IF(I6>0,H187*$I$50/(1-I185)*I7/#REF!,0) ->  | J188: =IF(J6>0,I187*$I$50/(1-J185)*J7/#REF!,0) ->  | K188: =IF(K6>0,J187*$I$50/(1-K185)*K7/#REF!,0) ->  | L188: =IF(L6>0,K187*$I$50/(1-L185)*L7/#REF!,0) ->  | M188: =IF(M6>0,L187*$I$50/(1-M185)*M7/#REF!,0) ->  | N188: =IF(N6>0,M187*$I$50/(1-N185)*N7/#REF!,0) ->  | O188: =IF(O6>0,N187*$I$50/(1-O185)*O7/#REF!,0) ->  | P188: =IF(P6>0,O187*$I$50/(1-P185)*P7/#REF!,0) ->  | Q188: =IF(Q6>0,P187*$I$50/(1-Q185)*Q7/#REF!,0) ->  | R188: =IF(R6>0,Q187*$I$50/(1-R185)*R7/#REF!,0) ->  | S188: =IF(S6>0,R187*$I$50/(1-S185)*S7/#REF!,0) ->  | T188: =IF(T6>0,S187*$I$50/(1-T185)*T7/#REF!,0) ->  | U188: =IF(U6>0,T187*$I$50/(1-U185)*U7/#REF!,0) ->  | V188: =IF(V6>0,U187*$I$50/(1-V185)*V7/#REF!,0) ->  | W188: =IF(W6>0,V187*$I$50/(1-W185)*W7/#REF!,0) -> 
E190: Total Annuity Requirement | F190: =SUM(H190:W190) ->  | H190: =H188+SUM(H183:H184) ->  | I190: =I188+SUM(I183:I184) -> 
E192: Levelized Annuity | F192: =SUMPRODUCT(H190:W190,$H$55:$W$55)/SUM($H$55:$W$55) -> 
E193: Annuity for Concession Period | F193: =F192*$F$57 -> 
E194: Upfront Capex Annuity paid | F194: =#REF! -> 
D196: Disbursement of Annuity
E197: Capex Share of Annuity | F197: =SUM(H197:W197) ->  | H197: =SUM(H198:H199) -> 
E198: Upfront Annuity Payment | F198: =F193*F194 ->  | H198: =IF(H6=$F$56,$F$198,0) -> 
E199: Balance | F199: =F193-F198 ->  | H199: =IF(AND(H6>1,$F$198>1),($F$193-$F$198)/($F$57-$F$56),IF(AND(H6>0,$F$198=0),$F$193/$F$57,0)) -> 
E200: Opex Share of Annuity | F200: =SUM(H200:W200) ->  | H200: =IF(H6>0,$F$180,0) -> 
C202: Sambalpur
D203: Capex Spend
E204: Capex Incurred | F204: =SUM(H204:W204) ->  | H204: =IF(OR(H5>0,H6>0),SUMIF(#REF!,'Annuity 2'!H6,#REF!),0) ->  | I204: =IF(OR(I5>0,I6>0),SUMIF(#REF!,'Annuity 2'!I6,#REF!),0) ->  | J204: =IF(OR(J5>0,J6>0),SUMIF(#REF!,'Annuity 2'!J6,#REF!),0) ->  | K204: =IF(OR(K5>0,K6>0),SUMIF(#REF!,'Annuity 2'!K6,#REF!),0) ->  | L204: =IF(OR(L5>0,L6>0),SUMIF(#REF!,'Annuity 2'!L6,#REF!),0) ->  | M204: =IF(OR(M5>0,M6>0),SUMIF(#REF!,'Annuity 2'!M6,#REF!),0) ->  | N204: =IF(OR(N5>0,N6>0),SUMIF(#REF!,'Annuity 2'!N6,#REF!),0) ->  | O204: =IF(OR(O5>0,O6>0),SUMIF(#REF!,'Annuity 2'!O6,#REF!),0) ->  | P204: =IF(OR(P5>0,P6>0),SUMIF(#REF!,'Annuity 2'!P6,#REF!),0) ->  | Q204: =IF(OR(Q5>0,Q6>0),SUMIF(#REF!,'Annuity 2'!Q6,#REF!),0) ->  | R204: =IF(OR(R5>0,R6>0),SUMIF(#REF!,'Annuity 2'!R6,#REF!),0) ->  | S204: =IF(OR(S5>0,S6>0),SUMIF(#REF!,'Annuity 2'!S6,#REF!),0) ->  | T204: =IF(OR(T5>0,T6>0),SUMIF(#REF!,'Annuity 2'!T6,#REF!),0) ->  | U204: =IF(OR(U5>0,U6>0),SUMIF(#REF!,'Annuity 2'!U6,#REF!),0) ->  | V204: =IF(OR(V5>0,V6>0),SUMIF(#REF!,'Annuity 2'!V6,#REF!),0) ->  | W204: =IF(OR(W5>0,W6>0),SUMIF(#REF!,'Annuity 2'!W6,#REF!),0) -> 
E205: Capex Raised | F205: =F208+F212+F219+J234 -> 
D207: Grant Disbursement
E208: Grant funding | F208: =SUM(H208:W208) ->  | H208: =IF(OR(H5>0,H6>0),SUMIF(#REF!,'Annuity 2'!H6,#REF!),0) ->  | I208: =IF(OR(I5>0,I6>0),SUMIF(#REF!,'Annuity 2'!I6,#REF!),0) ->  | J208: =IF(OR(J5>0,J6>0),SUMIF(#REF!,'Annuity 2'!J6,#REF!),0) ->  | K208: =IF(OR(K5>0,K6>0),SUMIF(#REF!,'Annuity 2'!K6,#REF!),0) ->  | L208: =IF(OR(L5>0,L6>0),SUMIF(#REF!,'Annuity 2'!L6,#REF!),0) ->  | M208: =IF(OR(M5>0,M6>0),SUMIF(#REF!,'Annuity 2'!M6,#REF!),0) ->  | N208: =IF(OR(N5>0,N6>0),SUMIF(#REF!,'Annuity 2'!N6,#REF!),0) ->  | O208: =IF(OR(O5>0,O6>0),SUMIF(#REF!,'Annuity 2'!O6,#REF!),0) ->  | P208: =IF(OR(P5>0,P6>0),SUMIF(#REF!,'Annuity 2'!P6,#REF!),0) ->  | Q208: =IF(OR(Q5>0,Q6>0),SUMIF(#REF!,'Annuity 2'!Q6,#REF!),0) ->  | R208: =IF(OR(R5>0,R6>0),SUMIF(#REF!,'Annuity 2'!R6,#REF!),0) ->  | S208: =IF(OR(S5>0,S6>0),SUMIF(#REF!,'Annuity 2'!S6,#REF!),0) ->  | T208: =IF(OR(T5>0,T6>0),SUMIF(#REF!,'Annuity 2'!T6,#REF!),0) ->  | U208: =IF(OR(U5>0,U6>0),SUMIF(#REF!,'Annuity 2'!U6,#REF!),0) ->  | V208: =IF(OR(V5>0,V6>0),SUMIF(#REF!,'Annuity 2'!V6,#REF!),0) ->  | W208: =IF(OR(W5>0,W6>0),SUMIF(#REF!,'Annuity 2'!W6,#REF!),0) -> 
D210: Concessional Debt
E211: Opening Balance | H211: =G214 -> 0 | I211: =H214 ->  | J211: =I214 -> 
D212: Plus: | E212: Drawdowns | F212: =SUM(H212:W212) ->  | H212: =IF(OR(H5>0,H6>0),SUMIF(#REF!,'Annuity 2'!H6,#REF!),0) ->  | I212: =IF(OR(I5>0,I6>0),SUMIF(#REF!,'Annuity 2'!I6,#REF!),0) ->  | J212: =IF(OR(J5>0,J6>0),SUMIF(#REF!,'Annuity 2'!J6,#REF!),0) ->  | K212: =IF(OR(K5>0,K6>0),SUMIF(#REF!,'Annuity 2'!K6,#REF!),0) ->  | L212: =IF(OR(L5>0,L6>0),SUMIF(#REF!,'Annuity 2'!L6,#REF!),0) ->  | M212: =IF(OR(M5>0,M6>0),SUMIF(#REF!,'Annuity 2'!M6,#REF!),0) ->  | N212: =IF(OR(N5>0,N6>0),SUMIF(#REF!,'Annuity 2'!N6,#REF!),0) ->  | O212: =IF(OR(O5>0,O6>0),SUMIF(#REF!,'Annuity 2'!O6,#REF!),0) ->  | P212: =IF(OR(P5>0,P6>0),SUMIF(#REF!,'Annuity 2'!P6,#REF!),0) ->  | Q212: =IF(OR(Q5>0,Q6>0),SUMIF(#REF!,'Annuity 2'!Q6,#REF!),0) ->  | R212: =IF(OR(R5>0,R6>0),SUMIF(#REF!,'Annuity 2'!R6,#REF!),0) ->  | S212: =IF(OR(S5>0,S6>0),SUMIF(#REF!,'Annuity 2'!S6,#REF!),0) ->  | T212: =IF(OR(T5>0,T6>0),SUMIF(#REF!,'Annuity 2'!T6,#REF!),0) ->  | U212: =IF(OR(U5>0,U6>0),SUMIF(#REF!,'Annuity 2'!U6,#REF!),0) ->  | V212: =IF(OR(V5>0,V6>0),SUMIF(#REF!,'Annuity 2'!V6,#REF!),0) ->  | W212: =IF(OR(W5>0,W6>0),SUMIF(#REF!,'Annuity 2'!W6,#REF!),0) -> 
D213: Less: | E213: Principal Repayments | F213: =SUM(H213:W213) ->  | H213: =IF(OR(H5>0,H6>0),SUMIF(#REF!,'Annuity 2'!H6,#REF!),0) ->  | I213: =IF(OR(I5>0,I6>0),SUMIF(#REF!,'Annuity 2'!I6,#REF!),0) ->  | J213: =IF(OR(J5>0,J6>0),SUMIF(#REF!,'Annuity 2'!J6,#REF!),0) ->  | K213: =IF(OR(K5>0,K6>0),SUMIF(#REF!,'Annuity 2'!K6,#REF!),0) ->  | L213: =IF(OR(L5>0,L6>0),SUMIF(#REF!,'Annuity 2'!L6,#REF!),0) ->  | M213: =IF(OR(M5>0,M6>0),SUMIF(#REF!,'Annuity 2'!M6,#REF!),0) ->  | N213: =IF(OR(N5>0,N6>0),SUMIF(#REF!,'Annuity 2'!N6,#REF!),0) ->  | O213: =IF(OR(O5>0,O6>0),SUMIF(#REF!,'Annuity 2'!O6,#REF!),0) ->  | P213: =IF(OR(P5>0,P6>0),SUMIF(#REF!,'Annuity 2'!P6,#REF!),0) ->  | Q213: =IF(OR(Q5>0,Q6>0),SUMIF(#REF!,'Annuity 2'!Q6,#REF!),0) ->  | R213: =IF(OR(R5>0,R6>0),SUMIF(#REF!,'Annuity 2'!R6,#REF!),0) ->  | S213: =IF(OR(S5>0,S6>0),SUMIF(#REF!,'Annuity 2'!S6,#REF!),0) ->  | T213: =IF(OR(T5>0,T6>0),SUMIF(#REF!,'Annuity 2'!T6,#REF!),0) ->  | U213: =IF(OR(U5>0,U6>0),SUMIF(#REF!,'Annuity 2'!U6,#REF!),0) ->  | V213: =IF(OR(V5>0,V6>0),SUMIF(#REF!,'Annuity 2'!V6,#REF!),0) ->  | W213: =IF(OR(W5>0,W6>0),SUMIF(#REF!,'Annuity 2'!W6,#REF!),0) -> 
E214: Ending Balance | H214: =H211+H212-H213 -> 
E215: Interest Payments | F215: =SUM(H215:AZ215) ->  | H215: =AVERAGE(H211,H214)*'Annuity 2'!$I$48*H7/#REF!*H10 ->  | I215: =AVERAGE(I211,I214)*'Annuity 2'!$I$48*I7/#REF!*I10 ->  | J215: =AVERAGE(J211,J214)*'Annuity 2'!$I$48*J7/#REF!*J10 ->  | K215: =AVERAGE(K211,K214)*'Annuity 2'!$I$48*K7/#REF!*K10 ->  | L215: =AVERAGE(L211,L214)*'Annuity 2'!$I$48*L7/#REF!*L10 ->  | M215: =AVERAGE(M211,M214)*'Annuity 2'!$I$48*M7/#REF!*M10 ->  | N215: =AVERAGE(N211,N214)*'Annuity 2'!$I$48*N7/#REF!*N10 ->  | O215: =AVERAGE(O211,O214)*'Annuity 2'!$I$48*O7/#REF!*O10 ->  | P215: =AVERAGE(P211,P214)*'Annuity 2'!$I$48*P7/#REF!*P10 ->  | Q215: =AVERAGE(Q211,Q214)*'Annuity 2'!$I$48*Q7/#REF!*Q10 ->  | R215: =AVERAGE(R211,R214)*'Annuity 2'!$I$48*R7/#REF!*R10 ->  | S215: =AVERAGE(S211,S214)*'Annuity 2'!$I$48*S7/#REF!*S10 ->  | T215: =AVERAGE(T211,T214)*'Annuity 2'!$I$48*T7/#REF!*T10 ->  | U215: =AVERAGE(U211,U214)*'Annuity 2'!$I$48*U7/#REF!*U10 ->  | V215: =AVERAGE(V211,V214)*'Annuity 2'!$I$48*V7/#REF!*V10 ->  | W215: =AVERAGE(W211,W214)*'Annuity 2'!$I$48*W7/#REF!*W10 -> 
D217: Commercial Debt
E218: Opening Balance | H218: =G221 -> 0
D219: Plus: | E219: Drawdowns | F219: =SUM(H219:AZ219) ->  | H219: =IF(OR(H5>0,H6>0),SUMIF(#REF!,'Annuity 2'!H6,#REF!),0) ->  | I219: =IF(OR(I5>0,I6>0),SUMIF(#REF!,'Annuity 2'!I6,#REF!),0) ->  | J219: =IF(OR(J5>0,J6>0),SUMIF(#REF!,'Annuity 2'!J6,#REF!),0) ->  | K219: =IF(OR(K5>0,K6>0),SUMIF(#REF!,'Annuity 2'!K6,#REF!),0) ->  | L219: =IF(OR(L5>0,L6>0),SUMIF(#REF!,'Annuity 2'!L6,#REF!),0) ->  | M219: =IF(OR(M5>0,M6>0),SUMIF(#REF!,'Annuity 2'!M6,#REF!),0) ->  | N219: =IF(OR(N5>0,N6>0),SUMIF(#REF!,'Annuity 2'!N6,#REF!),0) ->  | O219: =IF(OR(O5>0,O6>0),SUMIF(#REF!,'Annuity 2'!O6,#REF!),0) ->  | P219: =IF(OR(P5>0,P6>0),SUMIF(#REF!,'Annuity 2'!P6,#REF!),0) ->  | Q219: =IF(OR(Q5>0,Q6>0),SUMIF(#REF!,'Annuity 2'!Q6,#REF!),0) ->  | R219: =IF(OR(R5>0,R6>0),SUMIF(#REF!,'Annuity 2'!R6,#REF!),0) ->  | S219: =IF(OR(S5>0,S6>0),SUMIF(#REF!,'Annuity 2'!S6,#REF!),0) ->  | T219: =IF(OR(T5>0,T6>0),SUMIF(#REF!,'Annuity 2'!T6,#REF!),0) ->  | U219: =IF(OR(U5>0,U6>0),SUMIF(#REF!,'Annuity 2'!U6,#REF!),0) ->  | V219: =IF(OR(V5>0,V6>0),SUMIF(#REF!,'Annuity 2'!V6,#REF!),0) ->  | W219: =IF(OR(W5>0,W6>0),SUMIF(#REF!,'Annuity 2'!W6,#REF!),0) -> 
D220: Less: | E220: Principal Repayments | F220: =SUM(H220:AZ220) ->  | H220: =IF(OR(H5>0,H6>0),SUMIF(#REF!,'Annuity 2'!H6,#REF!),0) ->  | I220: =IF(OR(I5>0,I6>0),SUMIF(#REF!,'Annuity 2'!I6,#REF!),0) ->  | J220: =IF(OR(J5>0,J6>0),SUMIF(#REF!,'Annuity 2'!J6,#REF!),0) ->  | K220: =IF(OR(K5>0,K6>0),SUMIF(#REF!,'Annuity 2'!K6,#REF!),0) ->  | L220: =IF(OR(L5>0,L6>0),SUMIF(#REF!,'Annuity 2'!L6,#REF!),0) ->  | M220: =IF(OR(M5>0,M6>0),SUMIF(#REF!,'Annuity 2'!M6,#REF!),0) ->  | N220: =IF(OR(N5>0,N6>0),SUMIF(#REF!,'Annuity 2'!N6,#REF!),0) ->  | O220: =IF(OR(O5>0,O6>0),SUMIF(#REF!,'Annuity 2'!O6,#REF!),0) ->  | P220: =IF(OR(P5>0,P6>0),SUMIF(#REF!,'Annuity 2'!P6,#REF!),0) ->  | Q220: =IF(OR(Q5>0,Q6>0),SUMIF(#REF!,'Annuity 2'!Q6,#REF!),0) ->  | R220: =IF(OR(R5>0,R6>0),SUMIF(#REF!,'Annuity 2'!R6,#REF!),0) ->  | S220: =IF(OR(S5>0,S6>0),SUMIF(#REF!,'Annuity 2'!S6,#REF!),0) ->  | T220: =IF(OR(T5>0,T6>0),SUMIF(#REF!,'Annuity 2'!T6,#REF!),0) ->  | U220: =IF(OR(U5>0,U6>0),SUMIF(#REF!,'Annuity 2'!U6,#REF!),0) ->  | V220: =IF(OR(V5>0,V6>0),SUMIF(#REF!,'Annuity 2'!V6,#REF!),0) ->  | W220: =IF(OR(W5>0,W6>0),SUMIF(#REF!,'Annuity 2'!W6,#REF!),0) -> 
E221: Ending Balance | H221: =H218+H219-H220 -> 
E222: Interest Payments | F222: =SUM(H222:AZ222) ->  | H222: =AVERAGE(H218,H221)*'Annuity 2'!$I$49*H7/#REF!*H10 ->  | I222: =AVERAGE(I218,I221)*'Annuity 2'!$I$49*I7/#REF!*I10 ->  | J222: =AVERAGE(J218,J221)*'Annuity 2'!$I$49*J7/#REF!*J10 ->  | K222: =AVERAGE(K218,K221)*'Annuity 2'!$I$49*K7/#REF!*K10 ->  | L222: =AVERAGE(L218,L221)*'Annuity 2'!$I$49*L7/#REF!*L10 ->  | M222: =AVERAGE(M218,M221)*'Annuity 2'!$I$49*M7/#REF!*M10 ->  | N222: =AVERAGE(N218,N221)*'Annuity 2'!$I$49*N7/#REF!*N10 ->  | O222: =AVERAGE(O218,O221)*'Annuity 2'!$I$49*O7/#REF!*O10 ->  | P222: =AVERAGE(P218,P221)*'Annuity 2'!$I$49*P7/#REF!*P10 ->  | Q222: =AVERAGE(Q218,Q221)*'Annuity 2'!$I$49*Q7/#REF!*Q10 ->  | R222: =AVERAGE(R218,R221)*'Annuity 2'!$I$49*R7/#REF!*R10 ->  | S222: =AVERAGE(S218,S221)*'Annuity 2'!$I$49*S7/#REF!*S10 ->  | T222: =AVERAGE(T218,T221)*'Annuity 2'!$I$49*T7/#REF!*T10 ->  | U222: =AVERAGE(U218,U221)*'Annuity 2'!$I$49*U7/#REF!*U10 ->  | V222: =AVERAGE(V218,V221)*'Annuity 2'!$I$49*V7/#REF!*V10 ->  | W222: =AVERAGE(W218,W221)*'Annuity 2'!$I$49*W7/#REF!*W10 -> 
D224: =D177 -> O&M Costs Incurred
D225: =D178 -> 0 | E225: =E178 -> Base Year Annual O&M | F225: =#REF! -> 
D226: =D179 -> 0 | E226: =E179 -> O&M Incurred | H226: =IF(H6>0,$F$225*'Annuity 2'!H13*H7/#REF!,0) ->  | I226: =IF(I6>0,$F$225*'Annuity 2'!I13*I7/#REF!,0) ->  | J226: =IF(J6>0,$F$225*'Annuity 2'!J13*J7/#REF!,0) ->  | K226: =IF(K6>0,$F$225*'Annuity 2'!K13*K7/#REF!,0) ->  | L226: =IF(L6>0,$F$225*'Annuity 2'!L13*L7/#REF!,0) ->  | M226: =IF(M6>0,$F$225*'Annuity 2'!M13*M7/#REF!,0) ->  | N226: =IF(N6>0,$F$225*'Annuity 2'!N13*N7/#REF!,0) ->  | O226: =IF(O6>0,$F$225*'Annuity 2'!O13*O7/#REF!,0) ->  | P226: =IF(P6>0,$F$225*'Annuity 2'!P13*P7/#REF!,0) ->  | Q226: =IF(Q6>0,$F$225*'Annuity 2'!Q13*Q7/#REF!,0) ->  | R226: =IF(R6>0,$F$225*'Annuity 2'!R13*R7/#REF!,0) ->  | S226: =IF(S6>0,$F$225*'Annuity 2'!S13*S7/#REF!,0) ->  | T226: =IF(T6>0,$F$225*'Annuity 2'!T13*T7/#REF!,0) ->  | U226: =IF(U6>0,$F$225*'Annuity 2'!U13*U7/#REF!,0) ->  | V226: =IF(V6>0,$F$225*'Annuity 2'!V13*V7/#REF!,0) ->  | W226: =IF(W6>0,$F$225*'Annuity 2'!W13*W7/#REF!,0) -> 
E227: Levelized O&M | F227: =SUMPRODUCT(H226:W226,$H$55:$W$55)/SUM($H$55:$W$55) -> 
D229: Components of Annuity
E230: Principal Repayment
E231: Interest on Debt
E232: Applicable Tax Rate | H232: =#REF! ->  | I232: =#REF! ->  | J232: =#REF! ->  | K232: =#REF! ->  | L232: =#REF! ->  | M232: =#REF! ->  | N232: =#REF! ->  | O232: =#REF! ->  | P232: =#REF! ->  | Q232: =#REF! ->  | R232: =#REF! ->  | S232: =#REF! ->  | T232: =#REF! ->  | U232: =#REF! ->  | V232: =#REF! ->  | W232: =#REF! -> 
E233: Net Equity Invested | H233: =IF(OR(H5>0,H6>0),SUMIF(#REF!,'Annuity 2'!H6,#REF!),0) ->  | I233: =IF(OR(I5>0,I6>0),SUMIF(#REF!,'Annuity 2'!I6,#REF!),0) ->  | J233: =IF(OR(J5>0,J6>0),SUMIF(#REF!,'Annuity 2'!J6,#REF!),0) ->  | K233: =IF(OR(K5>0,K6>0),SUMIF(#REF!,'Annuity 2'!K6,#REF!),0) ->  | L233: =IF(OR(L5>0,L6>0),SUMIF(#REF!,'Annuity 2'!L6,#REF!),0) ->  | M233: =IF(OR(M5>0,M6>0),SUMIF(#REF!,'Annuity 2'!M6,#REF!),0) ->  | N233: =IF(OR(N5>0,N6>0),SUMIF(#REF!,'Annuity 2'!N6,#REF!),0) ->  | O233: =IF(OR(O5>0,O6>0),SUMIF(#REF!,'Annuity 2'!O6,#REF!),0) ->  | P233: =IF(OR(P5>0,P6>0),SUMIF(#REF!,'Annuity 2'!P6,#REF!),0) ->  | Q233: =IF(OR(Q5>0,Q6>0),SUMIF(#REF!,'Annuity 2'!Q6,#REF!),0) ->  | R233: =IF(OR(R5>0,R6>0),SUMIF(#REF!,'Annuity 2'!R6,#REF!),0) ->  | S233: =IF(OR(S5>0,S6>0),SUMIF(#REF!,'Annuity 2'!S6,#REF!),0) ->  | T233: =IF(OR(T5>0,T6>0),SUMIF(#REF!,'Annuity 2'!T6,#REF!),0) ->  | U233: =IF(OR(U5>0,U6>0),SUMIF(#REF!,'Annuity 2'!U6,#REF!),0) ->  | V233: =IF(OR(V5>0,V6>0),SUMIF(#REF!,'Annuity 2'!V6,#REF!),0) ->  | W233: =IF(OR(W5>0,W6>0),SUMIF(#REF!,'Annuity 2'!W6,#REF!),0) -> 
E234: Cumulative Equity Invested | H234: =IF(OR(H5>0,H6>0),SUM($H$233:H233),"na") ->  | I234: =IF(OR(I5>0,I6>0),SUM($H$233:I233),"na") ->  | J234: =IF(OR(J5>0,J6>0),SUM($H$233:J233),"na") ->  | K234: =IF(OR(K5>0,K6>0),SUM($H$233:K233),"na") ->  | L234: =IF(OR(L5>0,L6>0),SUM($H$233:L233),"na") ->  | M234: =IF(OR(M5>0,M6>0),SUM($H$233:M233),"na") ->  | N234: =IF(OR(N5>0,N6>0),SUM($H$233:N233),"na") ->  | O234: =IF(OR(O5>0,O6>0),SUM($H$233:O233),"na") ->  | P234: =IF(OR(P5>0,P6>0),SUM($H$233:P233),"na") ->  | Q234: =IF(OR(Q5>0,Q6>0),SUM($H$233:Q233),"na") ->  | R234: =IF(OR(R5>0,R6>0),SUM($H$233:R233),"na") ->  | S234: =IF(OR(S5>0,S6>0),SUM($H$233:S233),"na") ->  | T234: =IF(OR(T5>0,T6>0),SUM($H$233:T233),"na") ->  | U234: =IF(OR(U5>0,U6>0),SUM($H$233:U233),"na") ->  | V234: =IF(OR(V5>0,V6>0),SUM($H$233:V233),"na") ->  | W234: =IF(OR(W5>0,W6>0),SUM($H$233:W233),"na") -> 
E235: RoE (Pre-tax) | H235: =IF(H6>0,G234*$I$50/(1-H232)*H7/#REF!,0) ->  | I235: =IF(I6>0,H234*$I$50/(1-I232)*I7/#REF!,0) ->  | J235: =IF(J6>0,I234*$I$50/(1-J232)*J7/#REF!,0) ->  | K235: =IF(K6>0,J234*$I$50/(1-K232)*K7/#REF!,0) ->  | L235: =IF(L6>0,K234*$I$50/(1-L232)*L7/#REF!,0) ->  | M235: =IF(M6>0,L234*$I$50/(1-M232)*M7/#REF!,0) ->  | N235: =IF(N6>0,M234*$I$50/(1-N232)*N7/#REF!,0) ->  | O235: =IF(O6>0,N234*$I$50/(1-O232)*O7/#REF!,0) ->  | P235: =IF(P6>0,O234*$I$50/(1-P232)*P7/#REF!,0) ->  | Q235: =IF(Q6>0,P234*$I$50/(1-Q232)*Q7/#REF!,0) ->  | R235: =IF(R6>0,Q234*$I$50/(1-R232)*R7/#REF!,0) ->  | S235: =IF(S6>0,R234*$I$50/(1-S232)*S7/#REF!,0) ->  | T235: =IF(T6>0,S234*$I$50/(1-T232)*T7/#REF!,0) ->  | U235: =IF(U6>0,T234*$I$50/(1-U232)*U7/#REF!,0) ->  | V235: =IF(V6>0,U234*$I$50/(1-V232)*V7/#REF!,0) ->  | W235: =IF(W6>0,V234*$I$50/(1-W232)*W7/#REF!,0) -> 
E237: Total Annuity Requirement | F237: =SUM(H237:W237) ->  | H237: =H235+SUM(H230:H231) ->  | I237: =I235+SUM(I230:I231) -> 
E239: Levelized Annuity | F239: =SUMPRODUCT(H237:W237,$H$55:$W$55)/SUM($H$55:$W$55) -> 
E240: Annuity for Concession Period | F240: =F239*$F$57 -> 
E241: Upfront Capex Annuity paid | F241: =#REF! -> 
D243: Disbursement of Annuity
E244: Capex Share of Annuity | F244: =SUM(H244:W244) ->  | H244: =SUM(H245:H246) -> 
E245: Upfront Annuity Payment | F245: =F240*F241 ->  | H245: =IF(H6=$F$56,$F$245,0) -> 
E246: Balance | F246: =F240-F245 ->  | H246: =IF(AND(H6>1,$F$245>1),($F$240-$F$245)/($F$57-$F$56),IF(AND(H6>0,$F$245=0),$F$240/$F$57,0)) -> 
E247: Opex Share of Annuity | F247: =SUM(H247:W247) ->  | H247: =IF(H6>0,$F$227,0) -> 
C249: Bhubaneswar
D250: Capex Spend
... 36 more rows

Sheet Cover (hidden)
B7: Project Name: | E7: Odisha PSL Project (600371)
B8: File Name: | E8: Odisha_PSL_Mar18_Audit Submission_2
B9: Submission Date: | E9: 2015-03-18
B10: Client: | E10: Housing and Urban Development Dept, Govt of Odisha
B11: Author: | E11: IFC - Aditi Bhattacharya
B12: Model Reviewer: | E12: Ferran Vila Planas

Sheet User Notes (hidden)
C2: About the Project
B4: 1 | C4: IFC is assisting the Government of Odisha in structuring a 5 city street lighting project in the cities of Berhampur, Cuttack, Rourkela, Sambalpur and Bhubaneswar
B5: 2 | C5: For the cities of Berhampur, Cuttack, Rourkela and Sambalpur, the scope of work includes largely retrofitting LED technology with specified infrastructure improvements. For Bhubaneswar, the scope of work is for greenfield streetlighting infrastructure
B6: 3 | C6: Under this model:
C7: Developer builds, owns, operates and maintains the system for a concession period of 7 years
C8: Revenues for the Project are in form of of fixed Annuity Payment for each city
C9: Annuity is arrived under a Cost recovery model for recovery of investment and operating costs and provides for a specified Return on Equity for the Developer
C11: In order to make the Project affordable for each city municipality, the Government is providing for Capital grant upto 25% of Capex and Concessional Finance option for upto 25% of Capex. Disbursement of grant will be upon commissioning of the Project
C12: Cost Recovery is provided for the following categories based on normative parameters
B13: 4 | C13: Pre-approved Equity Participation in the SPV by Energy Efficiency Services Ltd, a Govt of India undertaking. EESL will contribute 26% minority stake equity in the SPV and will have corresponding share in dividends of the SPV. This will be in order to compensate EESL for underwriting the ULB's payments to the SPV (As part of the risk-sharing structure, EESL will be assuming upto 6 months payment risk)
B14: 5 | C14: Base Case for Scope of work is defined as retrofitting lamps with LED along with replacement of outreach arm, installation of timer and miscellaneous works
C17: Convention
C19: Color code - cells
C21: 123 | E21: Inputs
C22: 123 | E22: Highlighted
C23: 123 | E23: Formulae
C24: 123 | E24: Input from Dashboard
C28: How to use the Financial Model?
C30: No changes to be made to assumptions except in cells with blue font color.
C31: Dashboard has all the Key Input and Outputs
C38: Key Financial and Accounting Assumptions considered in the Financial Model
B40: 1 | C40: Estimates of Capital Cost provided by Technical Consultants (Tab: Project Inputs)
B41: 2 | C41: O&M and Assumptions on Financing based on Normative Parameters as per CERC Tariff Order dated February 21, 2014
B42: 3 | C42: Assumptions on Duration for Financial Closure and Construction Period based on provisions in Standard Bid Documents notified for the MoP Model
B43: 4 | C43: Model based on Revenue Recovery on Fixed ROE as per Regulatory Mechanism (Tab: Revenue Requirement)

Sheet TSR tables and graphs (US) (hidden)
B2: Capital Expenditure | C2: Units | D2: INR /Unit | E2: USD /Unit | F2: INR Lakhs | G2: USD Million
B3: LED 120 | C3: nos | D3: =#REF! ->  | E3: =D3/$F$3 ->  | F3: 630 | G3: 1
B4: LED 90 | C4: nos | D4: =#REF! ->  | E4: =D4/$F$3 -> 
B5: LED 70 | C5: nos | D5: =#REF! -> 
B6: LED 45 | C6: nos | D6: =#REF! -> 
B7: LED 25 | C7: nos | D7: =#REF! -> 
B8: Outreach Arm | C8: nos | D8: =#REF! -> 
B9: Asset Marking | C9: nos | D9: =#REF! -> 
B10: Timer | C10: nos | D10: =#REF! -> 
B11: Feeder Panel | C11: nos | D11: =#REF! -> 
B12: Control Centre | C12: nos | D12: =#REF! -> 
B13: Earthing | C13: no of electrodes | D13: =#REF! -> 
B14: Reconductoring | C14: km | D14: =#REF! -> 
B15: Poles | C15: nos | D15: =#REF! -> 
B16: Total Project Cost | C16: INR Lakhs | D16: =#REF! ->  | E16: =D16/$F$3 -> 
B19: Means of Finance | C19: % | D19: INR Lakhs | E19: USD Mn
B20: (After Considering Capex escalation)
B21: Equity | C21: =#REF! ->  | D21: =#REF! ->  | E21: =D21/$F$3 -> 
B22: OUIDF Debt | C22: =#REF! ->  | D22: =#REF! -> 
B23: OUIDF Grant | C23: =#REF! ->  | D23: =#REF! -> 
B24: Total Funding | C24: 1 | D24: =SUM(D21:D23) ->  | E24: =D24/$F$3 -> 
B26: OUIDF Terms | C26: %
B27: Interest Rate (p.a.) | C27: 0.08
B28: Total Tenor (Yrs) | C28: 6
B29: Moratorium (Yrs) | C29: 1
B31: Bhubaneswar | C31: Case I | D31: Case II | E31: Case III | F31: Case IV
B32: Project Scope | F32: ='TSR tables and graphs'!F32 -> 
B33: Capital Expenditure | F33: ='TSR tables and graphs'!F33/'TSR tables and graphs (US)'!$F$3 -> 
B35: Annuity | F35: ='TSR tables and graphs'!F35/'TSR tables and graphs (US)'!$F$3 -> 
B36: Post project energy bill (Year 1)
B37: Debt service (Year 1) | F37: ='TSR tables and graphs'!F37/'TSR tables and graphs (US)'!$F$3 -> 
B38: POST PROJECT SPEND (YEAR 1) | F38: =F35+F36+F37 -> 
B40: Cuttack | C40: Case I | D40: Case II | E40: Case III | F40: Case IV
B41: Project Scope | C41: =Summary!D29 ->  | D41: =Summary!E29 ->  | E41: =Summary!F29 ->  | F41: =Summary!G29 -> 
B42: Capital Expenditure | C42: =Summary!D31/$F$3 ->  | D42: =Summary!E31/$F$3 -> 3.878329291 | E42: =Summary!F31/$F$3 -> 5.198993572 | F42: =Summary!G31/$F$3 -> 6.261337568
B44: Annuity | C44: =Summary!D33/$F$3 ->  | D44: =Summary!E33/$F$3 -> 1.745248181 | E44: =Summary!F33/$F$3 -> 2.339547107 | F44: =Summary!G33/$F$3 -> 2.817601906
B45: Post project energy bill (Year 1) | C45: =Summary!D39/$F$3 ->  | D45: =Summary!E39/$F$3 -> 0.391548829 | E45: =Summary!F39/$F$3 -> 0.391548829 | F45: =Summary!G39/$F$3 -> 0.4671980158
B46: Debt service (Year 1) | C46: =Summary!D38/$F$3 ->  | D46: =Summary!E38/$F$3 -> 0.4174823557 | E46: =Summary!F38/$F$3 -> 0.5596451257 | F46: =Summary!G38/$F$3 -> 0.6740010353
B47: POST PROJECT SPEND (YEAR 1) | C47: =SUM(C44:C46) ->  | D47: =SUM(D44:D46) -> 2.554279366 | E47: =SUM(E44:E46) -> 3.290741062 | F47: =SUM(F44:F46) -> 3.958800957
B48: Annual operational expenditure (Budget 2015) | C48: =Summary!D43/$F$3 ->  | D48: =Summary!E43/$F$3 -> 0.4444444444 | E48: =Summary!F43/$F$3 -> 0.4444444444 | F48: =Summary!G43/$F$3 -> 0.4444444444
B49: Annual energy bill (Actual) | C49: =Summary!D42/$F$3 ->  | D49: =Summary!E42/$F$3 -> 0.7074851875 | E49: =Summary!F42/$F$3 -> 0.7074851875 | F49: =Summary!G42/$F$3 -> 0.7074851875
B50: CASH SAVINGS /(LOSS) (Actual) | C50: =C48+C49-C47 ->  | D50: =D48+D49-D47 -> -1.402349734 | E50: =E48+E49-E47 -> -2.13881143 | F50: =F48+F49-F47 -> -2.806871325
B51: Annual Energy Bill (Notional) | C51: =Summary!D44/$F$3 ->  | D51: =Summary!E44/$F$3 -> 1.110889996 | E51: =Summary!F44/$F$3 -> 1.110889996 | F51: =Summary!G44/$F$3 -> 1.110889996
B52: NOTIONAL SAVINGS /(LOSS) | C52: =C48+C51-C47 ->  | D52: =D48+D51-D47 -> -0.9989449253 | E52: =E48+E51-E47 -> -1.735406621 | F52: =F48+F51-F47 -> -2.403466516
B54: Berhampur | C54: Case I | D54: Case II | E54: Case III | F54: Case IV
B55: Project Scope | C55: =Summary!D6 ->  | D55: =Summary!E6 ->  | E55: =Summary!F6 ->  | F55: =Summary!G6 -> 
B56: Capital Expenditure | C56: =Summary!D8/$F$3 ->  | D56: =Summary!E8/$F$3 -> 2.083092189 | E56: =Summary!F8/$F$3 -> 2.740062808 | F56: =Summary!G8/$F$3 -> 3.120482571
B58: Annuity | C58: =Summary!D14/$F$3 ->  | D58: =Summary!E14/$F$3 -> 0.1404795331 | E58: =Summary!F14/$F$3 -> 0.1643382073 | F58: =Summary!G14/$F$3 -> 0.1990249648
B59: Post project energy bill (Year 1) | C59: =Summary!D16/$F$3 ->  | D59: =Summary!E16/$F$3 -> 0.1846947141 | E59: =Summary!F16/$F$3 -> 0.1846947141 | F59: =Summary!G16/$F$3 -> 0.2134579809
B60: Debt service (Year 1) | C60: =Summary!D15/$F$3 ->  | D60: =Summary!E15/$F$3 -> 0.2242342434 | E60: =Summary!F15/$F$3 -> 0.2949537777 | F60: =Summary!G15/$F$3 -> 0.3359040238
B61: POST PROJECT SPEND (YEAR 1) | C61: =C58+C59+C60 ->  | D61: =D58+D59+D60 -> 0.5494084906 | E61: =E58+E59+E60 -> 0.6439866991 | F61: =F58+F59+F60 -> 0.7483869695
B62: Annual operational expenditure (Budget 2015) | C62: =Summary!D20/$F$3 ->  | D62: =Summary!E20/$F$3 -> 0.2857142857 | E62: =Summary!F20/$F$3 -> 0.2857142857 | F62: =Summary!G20/$F$3 -> 0.2857142857
B63: Annual energy bill (Actual) | C63: =Summary!D19/$F$3 ->  | D63: =Summary!E19/$F$3 -> 0.1996618575 | E63: =Summary!F19/$F$3 -> 0.1996618575 | F63: =Summary!G19/$F$3 -> 0.1996618575
B64: CASH SAVINGS /(LOSS) (Actual) | C64: =C63+C62-C61 ->  | D64: =D63+D62-D61 -> -0.06403234739 | E64: =E63+E62-E61 -> -0.1586105559 | F64: =F63+F62-F61 -> -0.2630108263
B65: Annual Energy Bill (Notional) | C65: =Summary!D21/$F$3 ->  | D65: =Summary!E21/$F$3 -> 0.511022379 | E65: =Summary!F21/$F$3 -> 0.511022379 | F65: =Summary!G21/$F$3 -> 0.511022379
B66: NOTIONAL SAVINGS /(LOSS) | C66: =C65+C62+-C61 ->  | D66: =D65+D62+-D61 -> 0.2473281741 | E66: =E65+E62+-E61 -> 0.1527499656 | F66: =F65+F62+-F61 -> 0.0483496952
B68: Rourkela | C68: Case I | D68: Case II | E68: Case III | F68: Case IV
B69: Project Scope | C69: =Summary!D52 ->  | D69: =Summary!E52 ->  | E69: =Summary!F52 ->  | F69: =Summary!G52 -> 
B70: Capital Expenditure | C70: =Summary!D54/$F$3 ->  | D70: =Summary!E54/$F$3 -> 1.953969552 | E70: =Summary!F54/$F$3 -> 2.423456377 | F70: =Summary!G54/$F$3 -> 2.413619487
B72: Annuity | C72: =Summary!D60/$F$3 ->  | D72: =Summary!E60/$F$3 -> 0.1271507826 | E72: =Summary!F60/$F$3 -> 0.1424921564 | F72: =Summary!G60/$F$3 -> 0.1445370384
B73: Post project energy bill (Year 1) | C73: =Summary!D62/$F$3 ->  | D73: =Summary!E62/$F$3 -> 0.1744093365 | E73: =Summary!F62/$F$3 -> 0.1744093365 | F73: =Summary!G62/$F$3 -> 0.1744093365
B74: Debt service (Year 1) | C74: =Summary!D61/$F$3 ->  | D74: =Summary!E61/$F$3 -> 0.2103348505 | E74: =Summary!F61/$F$3 -> 0.2608726629 | F74: =Summary!G61/$F$3 -> 0.2598138202
B75: POST PROJECT SPEND (YEAR 1) | C75: =C72+C73+C74 ->  | D75: =D72+D73+D74 -> 0.5118949695 | E75: 0.5777741558 | F75: 0.5787601951
B76: Annual operational expenditure (Budget 2015) | C76: =Summary!D66/$F$3 ->  | D76: =Summary!E66/$F$3 -> 0.3492063492 | E76: =Summary!F66/$F$3 -> 0.3492063492 | F76: =Summary!G66/$F$3 -> 0.3492063492
B77: Annual energy bill (Actual) | C77: =Summary!D65/$F$3 ->  | D77: =Summary!E65/$F$3 -> 0.168804405 | E77: =Summary!F65/$F$3 -> 0.168804405 | F77: =Summary!G65/$F$3 -> 0.168804405
B78: CASH SAVINGS /(LOSS) (Actual) | C78: =C77+C76-C75 ->  | D78: =D77+D76-D75 -> 0.006115784694 | E78: -0.05976340157 | F78: -0.06074944092
B79: Annual Energy Bill (Notional) | C79: =Summary!D67/$F$3 ->  | D79: =Summary!E67/$F$3 -> 0.3973559315 | E79: =Summary!F67/$F$3 -> 0.3973559315 | F79: =Summary!G67/$F$3 -> 0.3973559315
B80: NOTIONAL SAVINGS /(LOSS) | C80: =C79+C76-C75 ->  | D80: =D79+D76-D75 -> 0.2346673112 | E80: 0.1687881249 | F80: 0.1678020855
B82: Sambalpur | C82: Case I | D82: Case II | E82: Case III | F82: Case IV
B83: Project Scope | C83: =Summary!D75 ->  | D83: =Summary!E75 ->  | E83: =Summary!F75 ->  | F83: =Summary!G75 -> 
B84: Capital Expenditure | C84: =Summary!D77/$F$3 ->  | D84: =Summary!E77/$F$3 -> 1.495344473 | E84: =Summary!F77/$F$3 -> 1.860886576 | F84: =Summary!G77/$F$3 -> 2.244379261
B86: Annuity | C86: =Summary!D83/$F$3 ->  | D86: =Summary!E83/$F$3 -> 0.101145223 | E86: =Summary!F83/$F$3 -> 0.1153686484 | F86: =Summary!G83/$F$3 -> 0.1392538115
B87: Post project energy bill (Year 1) | C87: =Summary!D85/$F$3 ->  | D87: =Summary!E85/$F$3 -> 0.1305405767 | E87: =Summary!F85/$F$3 -> 0.1305405767 | F87: =Summary!G85/$F$3 -> 0.1588273654
B88: Debt service (Year 1) | C88: =Summary!D84/$F$3 ->  | D88: =Summary!E84/$F$3 -> 0.1609662013 | E88: =Summary!F84/$F$3 -> 0.2003149431 | F88: =Summary!G84/$F$3 -> 0.2415959736
B89: POST PROJECT SPEND (YEAR 1) | C89: =SUM(C86:C88) ->  | D89: =SUM(D86:D88) -> 0.3926520009 | E89: 0.4462241682 | F89: 0.5396771505
B90: Annual operational expenditure (Budget 2015) | C90: =Summary!D89/$F$3 ->  | D90: =Summary!E89/$F$3 -> 0.1507936508 | E90: =Summary!F89/$F$3 -> 0.1507936508 | F90: =Summary!G89/$F$3 -> 0.1507936508
B91: Annual energy bill (Actual) | C91: =Summary!D88/$F$3 ->  | D91: =Summary!E88/$F$3 -> 0.14545706 | E91: =Summary!F88/$F$3 -> 0.14545706 | F91: =Summary!G88/$F$3 -> 0.14545706
B92: CASH SAVINGS /(LOSS) (Actual) | C92: =C91+C90-C89 ->  | D92: =D91+D90-D89 -> -0.09640129014 | E92: -0.1499734574 | F92: -0.2434264397
B93: Annual Energy Bill (Notional) | C93: =Summary!D90/$F$3 ->  | D93: =Summary!E90/$F$3 -> 0.2583419828 | E93: =Summary!F90/$F$3 -> 0.2583419828 | F93: =Summary!G90/$F$3 -> 0.2583419828
B94: NOTIONAL SAVINGS /(LOSS) | C94: =C93+C90+-C89 ->  | D94: =D93+D90+-D89 -> 0.01648363262 | E94: -0.03708853462 | F94: -0.1305415169
B96: Implementation Partner/ EESL | C96: Case I | D96: Case II | E96: Case III | F96: Case IV
B97: Project Scope | C97: =$F$32+C41+C55+C69+C83 ->  | D97: =$F$32+D41+D55+D69+D83 ->  | E97: =$F$32+E41+E55+E69+E83 ->  | F97: =$F$32+F41+F55+F69+F83 -> 
B98: Capital Expenditure | C98: =$F$33+C42+C56+C70+C84 ->  | D98: =$F$33+D42+D56+D70+D84 ->  | E98: =$F$33+E42+E56+E70+E84 ->  | F98: =$F$33+F42+F56+F70+F84 -> 
B99: SPV
B100: Annuity | C100: =C86+C72+C58+C58+$F$35 ->  | D100: =D86+D72+D58+D58+$F$35 -> 
B101: Equity IRR | C101: 0.14 | D101: 0.14 | E101: 0.14 | F101: 0.14
B103: EESL
B104: Annuity | C104: =0.26*C100 ->  | D104: =0.26*D100 ->  | E104: =0.26*E100 -> 
B105: Equity IRR | C105: 0.11 | D105: 0.11 | E105: 0.11 | F105: 0.11
B107: Implementation Partner
B108: Annuity | C108: =0.74*C100 ->  | D108: =0.74*D100 -> 
B109: Equity IRR | C109: 0.11 | D109: 0.11 | E109: 0.11 | F109: 0.11
C112: Annuity Payable | D112: Cash Savings / Loss | E112: Notional Savings / Loss
B113: Case I | C113: =+'TSR tables and graphs'!C151/$F$3 -> 0.5353556014 | D113: =+'TSR tables and graphs'!D151/$F$3 -> 0.2396025309 | E113: =+'TSR tables and graphs'!E151/$F$3 -> 1.29580431
B114: Capital Expenditure increase by 10% | C114: =+'TSR tables and graphs'!C152/$F$3 -> 0.5607026428 | D114: =+'TSR tables and graphs'!D152/$F$3 -> 0.1371518623 | E114: =+'TSR tables and graphs'!E152/$F$3 -> 1.193353642
B115: Operation & Maintenance increases by 20% | C115: =+'TSR tables and graphs'!C153/$F$3 -> 0.5910225871 | D115: =+'TSR tables and graphs'!D153/$F$3 -> 0.1869741246 | E115: =+'TSR tables and graphs'!E153/$F$3 -> 1.243175904
B116: OUIDF Interest rate increases to 9% | C116: =+'TSR tables and graphs'!C154/$F$3 -> 0.5359134149 | D116: =+'TSR tables and graphs'!D154/$F$3 -> 0.2079181478 | E116: =+'TSR tables and graphs'!E154/$F$3 -> 1.264119927
C118: Annuity Payable | D118: Cash Savings / Loss | E118: Notional Savings / Loss
B119: Case II | C119: =+'TSR tables and graphs'!C157/$F$3 -> 0.6634418394 | D119: =+'TSR tables and graphs'!D157/$F$3 -> -0.1134392974 | E119: =+'TSR tables and graphs'!E157/$F$3 -> 0.9427624819
B120: Capital Expenditure increase by 10% | C120: =+'TSR tables and graphs'!C158/$F$3 -> 0.6959159127 | D120: =+'TSR tables and graphs'!D158/$F$3 -> -0.2483968328 | E120: =+'TSR tables and graphs'!E158/$F$3 -> 0.8078049466
B121: Operation & Maintenance increases by 20% | C121: =+'TSR tables and graphs'!C159/$F$3 -> 0.7304720091 | D121: =+'TSR tables and graphs'!D159/$F$3 -> -0.1780376097 | E121: =+'TSR tables and graphs'!E159/$F$3 -> 0.8781641697
B122: OUIDF Interest rate increases to 9% | C122: =+'TSR tables and graphs'!C160/$F$3 -> 0.6641537237 | D122: =+'TSR tables and graphs'!D160/$F$3 -> -0.1550655097 | E122: =+'TSR tables and graphs'!E160/$F$3 -> 0.9011362696
C124: Annuity Payable | D124: Cash Savings / Loss | E124: Notional Savings / Loss
B125: Case III | C125: =+'TSR tables and graphs'!C163/$F$3 -> 0.6959792344 | D125: =+'TSR tables and graphs'!D163/$F$3 -> -0.4736425705 | E125: =+'TSR tables and graphs'!E163/$F$3 -> 0.5825592088
B126: Capital Expenditure increase by 10% | C126: =+'TSR tables and graphs'!C164/$F$3 -> 0.736264972 | D126: =+'TSR tables and graphs'!D164/$F$3 -> -0.6491281856 | E126: =+'TSR tables and graphs'!E164/$F$3 -> 0.4070735937
B127: Operation & Maintenance increases by 20% | C127: =+'TSR tables and graphs'!C165/$F$3 -> 0.7538935545 | D127: =+'TSR tables and graphs'!D165/$F$3 -> -0.5292253779 | E127: =+'TSR tables and graphs'!E165/$F$3 -> 0.5269764014
B128: OUIDF Interest rate increases to 9% | C128: =+'TSR tables and graphs'!C166/$F$3 -> 0.6968599898 | D128: =+'TSR tables and graphs'!D166/$F$3 -> -0.5276638023 | E128: =+'TSR tables and graphs'!E166/$F$3 -> 0.528537977
C130: Annuity Payable | D130: Cash Savings / Loss | E130: Notional Savings / Loss
B131: Case IV | C131: =+'TSR tables and graphs'!C169/$F$3 -> 0.8806920025 | D131: =+'TSR tables and graphs'!D169/$F$3 -> -1.118921016 | E131: =+'TSR tables and graphs'!E169/$F$3 -> -0.06271923626
B132: Capital Expenditure increase by 10% | C132: =+'TSR tables and graphs'!C170/$F$3 -> 0.9267644502 | D132: =+'TSR tables and graphs'!D170/$F$3 -> -1.327180261 | E132: =+'TSR tables and graphs'!E170/$F$3 -> -0.2709784817
B133: Operation & Maintenance increases by 20% | C133: =+'TSR tables and graphs'!C171/$F$3 -> 0.9639754559 | D133: =+'TSR tables and graphs'!D171/$F$3 -> -1.204756433 | E133: =+'TSR tables and graphs'!E171/$F$3 -> -0.1485546537
B134: OUIDF Interest rate increases to 9% | C134: =+'TSR tables and graphs'!C172/$F$3 -> 0.8816978539 | D134: =+'TSR tables and graphs'!D172/$F$3 -> -1.182965663 | E134: =+'TSR tables and graphs'!E172/$F$3 -> -0.1267638837

Sheet TSR tables and graphs (hidden)
B2: Capital Expenditure | C2: Units | D2: INR /Unit | E2: USD Mn /Unit | F2: INR | G2: USD
B3: LED 120 | C3: nos | D3: =#REF! ->  | E3: =D3/$F$3 ->  | F3: 63 | G3: 1
B4: LED 90 | C4: nos | D4: =#REF! ->  | E4: =D4/$F$3 -> 
B5: LED 70 | C5: nos | D5: =#REF! -> 
B6: LED 45 | C6: nos | D6: =#REF! -> 
B7: LED 25 | C7: nos | D7: =#REF! -> 
B8: Outreach Arm | C8: nos | D8: =#REF! -> 
B9: Asset Marking | C9: nos | D9: =#REF! -> 
B10: Timer | C10: nos | D10: =#REF! -> 
B11: Feeder Panel | C11: nos | D11: =#REF! -> 
B12: Control Centre | C12: nos | D12: =#REF! -> 
B13: Earthing | C13: no of electrodes | D13: =#REF! -> 
B14: Reconductoring | C14: km | D14: =#REF! -> 
B15: Poles | C15: nos | D15: =#REF! -> 
B16: Total Project Cost | C16: INR Lakhs | D16: =#REF! -> 
B19: Means of Finance | C19: % | D19: INR Lakhs | E19: USD Mn
B20: (After Considering Capex escalation)
B21: Equity | C21: =#REF! ->  | D21: =#REF! ->  | E21: =D21/$F$3/10 -> 
B22: OUIDF Debt | C22: =#REF! ->  | D22: =#REF! ->  | E22: =D22/$F$3/10 -> 
B23: OUIDF Grant | C23: =#REF! ->  | D23: =#REF! ->  | E23: =D23/$F$3/10 -> 
B24: Total Funding | C24: 1 | D24: =SUM(D21:D23) ->  | E24: =D24/$F$3/10 -> 
B26: OUIDF Terms | C26: %
B27: Interest Rate (p.a.) | C27: 0.08
B28: Total Tenor (Yrs) | C28: 6
B29: Moratorium (Yrs) | C29: 1
B31: Bhubaneswar | C31: Case I | D31: Case II | E31: Case III | F31: Case IV
B32: Project Scope | F32: =SUM(#REF!)+SUM(#REF!) -> 
B33: Capital Expenditure | F33: =#REF! -> 
B35: Annuity | F35: =#REF! -> 
B36: Post project energy bill (Year 1)
B37: Debt service (Year 1) | F37: =#REF!+#REF! -> 
B38: POST PROJECT SPEND (YEAR 1) | F38: =F35+F36+F37 -> 
B40: Cuttack | C40: Case I | D40: Case II | E40: Case III | F40: Case IV
B41: Project Scope | C41: =Summary!E29 ->  | D41: =Summary!E29 ->  | E41: =Summary!F29 ->  | F41: =Summary!G29 -> 
B42: Capital Expenditure | C42: =Summary!D31 ->  | D42: =Summary!E31 -> 2443.347454 | E42: =Summary!F31 -> 3275.36595 | F42: =Summary!G31 -> 3944.642668
B44: Annuity | C44: =Summary!D37 ->  | D44: =Summary!E37 -> 160.065789 | E44: =Summary!F37 -> 190.6333723 | F44: =Summary!G37 -> 239.6452309
B45: Post project energy bill (Year 1) | C45: =Summary!D39 ->  | D45: =Summary!E39 -> 246.6757623 | E45: =Summary!F39 -> 246.6757623 | F45: =Summary!G39 -> 294.33475
B46: Debt service (Year 1) | C46: =Summary!D38 ->  | D46: =Summary!E38 -> 263.0138841 | E46: =Summary!F38 -> 352.5764292 | F46: =Summary!G38 -> 424.6206522
B47: POST PROJECT SPEND (YEAR 1) | C47: =SUM(C44:C46) ->  | D47: =SUM(D44:D46) -> 669.7554354 | E47: =SUM(E44:E46) -> 789.8855637 | F47: =SUM(F44:F46) -> 958.6006331
B48: Annual operational expenditure (Budget 2015) | C48: =Summary!D43 ->  | D48: =Summary!E43 -> 280 | E48: =Summary!F43 -> 280 | F48: =Summary!G43 -> 280
B49: Annual energy bill (Actual) | C49: =Summary!D42 ->  | D49: =Summary!E42 -> 445.7156681 | E49: =Summary!F42 -> 445.7156681 | F49: =Summary!G42 -> 445.7156681
B50: CASH SAVINGS /(LOSS) (Actual) | C50: =C48+C49-C47 ->  | D50: =D48+D49-D47 -> 55.96023274 | E50: =E48+E49-E47 -> -64.16989558 | F50: =F48+F49-F47 -> -232.884965
B51: Annual Energy Bill (Notional) | C51: =Summary!D44 ->  | D51: =Summary!E44 -> 699.8606976 | E51: =Summary!F44 -> 699.8606976 | F51: =Summary!G44 -> 699.8606976
B52: NOTIONAL SAVINGS /(LOSS) | C52: =C48+C51-C47 ->  | D52: =D48+D51-D47 -> 310.1052622 | E52: =E48+E51-E47 -> 189.9751339 | F52: =F48+F51-F47 -> 21.26006448 | I52: =E52+E66+E80+E94 -> 369.1783541
B54: Berhampur | C54: Case I | D54: Case II | E54: Case III | F54: Case IV
B55: Project Scope | C55: =Summary!D6 ->  | D55: =Summary!E6 ->  | E55: =Summary!F6 ->  | F55: =Summary!G6 -> 
B56: Capital Expenditure | C56: =Summary!D8 ->  | D56: =Summary!E8 -> 1312.348079 | E56: =Summary!F8 -> 1726.239569 | F56: =Summary!G8 -> 1965.90402
B58: Annuity | C58: =Summary!D14 ->  | D58: =Summary!E14 -> 88.50210583 | E58: =Summary!F14 -> 103.5330706 | F58: =Summary!G14 -> 125.3857279
B59: Post project energy bill (Year 1) | C59: =Summary!D16 ->  | D59: =Summary!E16 -> 116.3576699 | E59: =Summary!F16 -> 116.3576699 | F59: =Summary!G16 -> 134.478528
B60: Debt service (Year 1) | C60: =Summary!D15 ->  | D60: =Summary!E15 -> 141.2675733 | E60: =Summary!F15 -> 185.82088 | F60: =Summary!G15 -> 211.619535
B61: POST PROJECT SPEND (YEAR 1) | C61: =C58+C59+C60 ->  | D61: =D58+D59+D60 -> 346.1273491 | E61: =E58+E59+E60 -> 405.7116204 | F61: =F58+F59+F60 -> 471.4837908
B62: Annual operational expenditure (Budget 2015) | C62: =Summary!D20 ->  | D62: =Summary!E20 -> 180 | E62: =Summary!F20 -> 180 | F62: =Summary!G20 -> 180
B63: Annual energy bill (Actual) | C63: =Summary!D19 ->  | D63: =Summary!E19 -> 125.7869702 | E63: =Summary!F19 -> 125.7869702 | F63: =Summary!G19 -> 125.7869702
B64: CASH SAVINGS /(LOSS) (Actual) | C64: =C63+C62-C61 ->  | D64: =D63+D62-D61 -> -40.34037885 | E64: =E63+E62-E61 -> -99.92465021 | F64: =F63+F62-F61 -> -165.6968206
B65: Annual Energy Bill (Notional) | C65: =Summary!D21 ->  | D65: =Summary!E21 -> 321.9440988 | E65: =Summary!F21 -> 321.9440988 | F65: =Summary!G21 -> 321.9440988
B66: NOTIONAL SAVINGS /(LOSS) | C66: =C65+C62+-C61 ->  | D66: =D65+D62+-D61 -> 155.8167497 | E66: =E65+E62+-E61 -> 96.23247833 | F66: =F65+F62+-F61 -> 30.46030797
B68: Rourkela | C68: Case I | D68: Case II | E68: Case III | F68: Case IV
B69: Project Scope | C69: =Summary!D52 ->  | D69: =Summary!E52 ->  | E69: =Summary!F52 ->  | F69: =Summary!G52 -> 
B70: Capital Expenditure | C70: =Summary!D54 ->  | D70: =Summary!E54 -> 1231.000818 | E70: =Summary!F54 -> 1526.777518 | F70: =Summary!G54 -> 1520.580277
B72: Annuity | C72: =Summary!D60 ->  | D72: =Summary!E60 -> 80.10499301 | E72: =Summary!F60 -> 89.77005853 | F72: =Summary!G60 -> 91.05833419
B73: Post project energy bill (Year 1) | C73: =Summary!D62 ->  | D73: =Summary!E62 -> 109.877882 | E73: =Summary!F62 -> 109.877882 | F73: =Summary!G62 -> 109.877882
B74: Debt service (Year 1) | C74: =Summary!D61 ->  | D74: =Summary!E61 -> 132.5109558 | E74: =Summary!F61 -> 164.3497776 | F74: =Summary!G61 -> 163.6827068
B75: POST PROJECT SPEND (YEAR 1) | C75: =C72+C73+C74 ->  | D75: =D72+D73+D74 -> 322.4938308 | E75: =E72+E73+E74 -> 363.9977181 | F75: =F72+F73+F74 -> 364.6189229
B76: Annual operational expenditure (Budget 2015) | C76: =Summary!D66 ->  | D76: =Summary!E66 -> 220 | E76: =Summary!F66 -> 220 | F76: =Summary!G66 -> 220
B77: Annual energy bill (Actual) | C77: =Summary!D65 ->  | D77: =Summary!E65 -> 106.3467752 | E77: =Summary!F65 -> 106.3467752 | F77: =Summary!G65 -> 106.3467752
B78: CASH SAVINGS /(LOSS) (Actual) | C78: =C77+C76-C75 ->  | D78: =D77+D76-D75 -> 3.852944357 | E78: =E77+E76-E75 -> -37.65094299 | F78: =F77+F76-F75 -> -38.27214778
B79: Annual Energy Bill (Notional) | C79: =Summary!D67 ->  | D79: =Summary!E67 -> 250.3342368 | E79: =Summary!F67 -> 250.3342368 | F79: =Summary!G67 -> 250.3342368
B80: NOTIONAL SAVINGS /(LOSS) | C80: =C79+C76-C75 ->  | D80: =D79+D76-D75 -> 147.840406 | E80: =E79+E76-E75 -> 106.3365187 | F80: =F79+F76-F75 -> 105.7153139
B82: Sambalpur | C82: Case I | D82: Case II | E82: Case III | F82: Case IV
B83: Project Scope | C83: =Summary!D75 ->  | D83: =Summary!E75 ->  | E83: =Summary!F75 ->  | F83: =Summary!G75 -> 
B84: Capital Expenditure | C84: =Summary!D77 ->  | D84: =Summary!E77 -> 942.0670182 | E84: =Summary!F77 -> 1172.358543 | F84: =Summary!G77 -> 1413.958935
B86: Annuity | C86: =Summary!D83 ->  | D86: =Summary!E83 -> 63.72149046 | E86: =Summary!F83 -> 72.68224847 | F86: =Summary!G83 -> 87.72990122
B87: Post project energy bill (Year 1) | C87: =Summary!D85 ->  | D87: =Summary!E85 -> 82.24056332 | E87: =Summary!F85 -> 82.24056332 | F87: =Summary!G85 -> 100.0612402
B88: Debt service (Year 1) | C88: =Summary!D84 ->  | D88: =Summary!E84 -> 101.4087068 | E88: =Summary!F84 -> 126.1984142 | F88: =Summary!G84 -> 152.2054634
B89: POST PROJECT SPEND (YEAR 1) | C89: =SUM(C86:C88) ->  | D89: =SUM(D86:D88) -> 247.3707606 | E89: =SUM(E86:E88) -> 281.1212259 | F89: =SUM(F86:F88) -> 339.9966048
B90: Annual operational expenditure (Budget 2015) | C90: =Summary!D89 ->  | D90: =Summary!E89 -> 95 | E90: =Summary!F89 -> 95 | F90: =Summary!G89 -> 95
B91: Annual energy bill (Actual) | C91: =Summary!D88 ->  | D91: =Summary!E88 -> 91.6379478 | E91: =Summary!F88 -> 91.6379478 | F91: =Summary!G88 -> 91.6379478
B92: CASH SAVINGS /(LOSS) (Actual) | C92: =C91+C90-C89 ->  | D92: =D91+D90-D89 -> -60.73281279 | E92: =E91+E90-E89 -> -94.48327815 | F92: =F91+F90-F89 -> -153.358657
B93: Annual Energy Bill (Notional) | C93: =Summary!D90 ->  | D93: =Summary!E90 -> 162.7554491 | E93: =Summary!F90 -> 162.7554491 | F93: =Summary!G90 -> 162.7554491
B94: NOTIONAL SAVINGS /(LOSS) | C94: =C93+C90+-C89 ->  | D94: =D93+D90+-D89 -> 10.38468855 | E94: =E93+E90+-E89 -> -23.36577681 | F94: =F93+F90+-F89 -> -82.24115565
B96: Total | C96: Case I | D96: Case II | E96: Case III | F96: Case IV
B97: Project Scope | C97: =C83+C69+C55+C41+D32 ->  | E97: =E83+E69+E55+E41+F32 -> 
B98: Capital Expenditure | C98: =C84+C70+C56+C42+D33 ->  | E98: =E84+E70+E56+E42+F33 -> 
B100: Annuity | C100: =C86+C72+C58+C44+D35 ->  | E100: =E86+E72+E58+E44+F35 -> 
B101: Post project energy bill (Year 1) | C101: =C87+C73+C59+C45+D36 ->  | E101: 555.1518775
B102: Debt service (Year 1)
B103: POST PROJECT SPEND (YEAR 1) | C103: =SUM(C100:C102) ->  | E103: =SUM(E100:E102) -> 
B104: Annual operational expenditure (Budget 2015) | C104: =C90+C76+C62+C48 ->  | E104: =E90+E76+E62+E48 -> 775
B105: Annual energy bill (Actual) | C105: =C91+C77+C63+C49 ->  | E105: =E91+E77+E63+E49 -> 769.4873613
B106: CASH SAVINGS /(LOSS) (Actual)
B107: Annual Energy Bill (Notional) | C107: =C93+C79+C65+C51 ->  | E107: =E93+E79+E65+E51 -> 1434.894482
B108: NOTIONAL SAVINGS /(LOSS) | C108: =C107+C104-C103 ->  | E108: =E107+E104-E103 -> 
B134: Implementation Partner/ EESL | C134: Case I | D134: Case II | E134: Case III | F134: Case IV
B135: Project Scope | C135: =$F$32+C41+C55+C69+C83 ->  | D135: =$F$32+D41+D55+D69+D83 ->  | E135: =$F$32+E41+E55+E69+E83 ->  | F135: =$F$32+F41+F55+F69+F83 -> 
B136: Capital Expenditure | C136: =$F$33+C42+C56+C70+C84 ->  | D136: =$F$33+D42+D56+D70+D84 ->  | E136: =$F$33+E42+E56+E70+E84 ->  | F136: =$F$33+F42+F56+F70+F84 -> 
B137: SPV
B138: Annuity | C138: =C86+C72+C58+C58+$F$35 ->  | D138: =D86+D72+D58+D58+$F$35 -> 
B139: Equity IRR | C139: 0.14 | D139: 0.14 | E139: 0.14 | F139: 0.14
B141: EESL
B142: Annuity | C142: =0.26*C138 ->  | D142: =0.26*D138 ->  | E142: =0.26*E138 -> 
B143: Equity IRR | C143: 0.11 | D143: 0.11 | E143: 0.11 | F143: 0.11
B145: Implementation Partner
B146: Annuity | C146: =0.74*C138 ->  | D146: =0.74*D138 -> 
B147: Equity IRR | C147: 0.11 | D147: 0.11 | E147: 0.11 | F147: 0.11
C150: Annuity Payable | D150: Cash Savings / Loss | E150: Notional Savings / Loss
B151: Case I | C151: 337.2740289 | D151: 150.9495945 | E151: 816.3567155
B152: Capital Expenditure increase by 10% | C152: 353.242665 | D152: 86.40567324 | E152: 751.8127942
B153: Operation & Maintenance increases by 20% | C153: 372.3442299 | D153: 117.7936985 | E153: 783.2008195
B154: OUIDF Interest rate increases to 9% | C154: 337.6254514 | D154: 130.9884331 | E154: 796.3955541
C156: Annuity Payable | D156: Cash Savings / Loss | E156: Notional Savings / Loss
B157: Case II | C157: 417.9683588 | D157: -71.46675739 | E157: 593.9403636
B158: Capital Expenditure increase by 10% | C158: 438.427025 | D158: -156.4900047 | E158: 508.9171163
B159: Operation & Maintenance increases by 20% | C159: 460.1973657 | D159: -112.1636941 | E159: 553.2434269
B160: OUIDF Interest rate increases to 9% | C160: 418.4168459 | D160: -97.69127114 | E160: 567.7158499
C162: Annuity Payable | D162: Cash Savings / Loss | E162: Notional Savings / Loss
B163: Case III | C163: 438.4669177 | D163: -298.3948194 | E163: 367.0123016
B164: Capital Expenditure increase by 10% | C164: 463.8469323 | D164: -408.9507569 | E164: 256.456364
B165: Operation & Maintenance increases by 20% | C165: 474.9529394 | D165: -333.4119881 | E165: 331.9951329
B166: OUIDF Interest rate increases to 9% | C166: 439.0217936 | D166: -332.4281955 | E166: 332.9789255
C168: Annuity Payable | D168: Cash Savings / Loss | E168: Notional Savings / Loss
B169: Case IV | C169: 554.8359616 | D169: -704.9202398 | E169: -39.51311884
B170: Capital Expenditure increase by 10% | C170: 583.8616036 | D170: -836.1235645 | E170: -170.7164435
B171: Operation & Maintenance increases by 20% | C171: 607.3045372 | D171: -758.9965528 | E171: -93.58943182
B172: OUIDF Interest rate increases to 9% | C172: 555.4696479 | D172: -745.2683677 | E172: -79.86124671

Sheet Sheet3 (hidden)
C3: Capital Expenditure | D3: Units | E3: INR /Unit | F3: Quantities | G3: 4 cities | H3: BBSR
C4: LED 120 | D4: nos | E4: 22557 | F4: =ROUNDUP(SUM(G4:H4),4) ->  | G4: =#REF!+#REF!+#REF!+#REF! ->  | H4: =#REF! ->  | J4: =SUM(F4:F8) -> 
C5: LED 90 | D5: nos | E5: 18144 | F5: =ROUNDUP(SUM(G5:H5),4) ->  | G5: =#REF!+#REF!+#REF!+#REF! ->  | H5: =#REF! -> 
C6: LED 70 | D6: nos | E6: 9972 | G6: =#REF!+#REF!+#REF!+#REF! ->  | H6: =#REF!+#REF! -> 
C7: LED 45 | D7: nos | E7: 8300 | G7: =#REF!+#REF!+#REF!+#REF! ->  | H7: =#REF!+#REF! -> 
C8: LED 25 | D8: nos | E8: 4905 | G8: =#REF!+#REF!+#REF!+#REF! ->  | H8: 0
C9: Outreach Arm | D9: nos | E9: 3500 | G9: =SUM(F22:I22) ->  | H9: =#REF! -> 
C10: Asset Marking (for old poles) | D10: nos | E10: 50 | F10: =SUM(G10:H10) ->  | G10: =#REF!+#REF!+#REF!+#REF! -> 
C11: Timer | D11: nos | E11: 3500 | F11: =SUM(G11:H11) ->  | G11: =SUM(F23:I23) ->  | H11: =#REF! -> 
C12: Feeder Panel | D12: nos | E12: 103880 | F12: =SUM(G12:H12) ->  | G12: =SUM(F25:I25) ->  | H12: =#REF! -> 
C13: Control Centre | D13: nos | E13: 1500000 | F13: 4 | G13: 4 | H13: 0
C14: Earthing | D14: no of electrodes | E14: 8000 | G14: =#REF!+#REF!+#REF!+#REF! ->  | H14: =#REF! -> 
C15: Reconductoring | D15: km | E15: 25000 | G15: =SUM(F29:I29) ->  | H15: =#REF!/1000 -> 
C16: Poles - Spl | D16: nos | E16: 11100 | G16: 0 | H16: =#REF! -> 
C20: Item | E20: Bhubaneswar | F20: Cuttack | G20: Berhampur | H20: Rourkela | I20: Sambalpur | J20: Remarks
C21: LED Luminaires with surge protectors | D21: nos | E21: =#REF! ->  | F21: =#REF! ->  | G21: =#REF! ->  | H21: =#REF! ->  | I21: =#REF! -> 
C22: Outreach arm | D22: nos | E22: =#REF! ->  | F22: =#REF! ->  | G22: =#REF! ->  | H22: =#REF! ->  | I22: =#REF! -> 
C23: Timer | D23: nos | E23: =#REF! ->  | F23: =#REF! ->  | G23: =#REF! ->  | H23: =#REF! ->  | I23: =#REF! -> 
C24: Earthing | D24: no of electrodes | E24: =H14 ->  | F24: =#REF! ->  | G24: =#REF! ->  | H24: =#REF! ->  | I24: =#REF! -> 
C25: Feeder Panel | D25: nos | E25: =H12 ->  | F25: =#REF! ->  | G25: =#REF! ->  | H25: =#REF! ->  | I25: =#REF! -> 
C26: Greenfield Poles | D26: nos | E26: =SUM(#REF!) ->  | F26: 0 | G26: 0 | H26: 0 | I26: 0
C27: Brownfield Poles | D27: nos | E27: 0 | F27: =#REF! ->  | G27: =#REF! ->  | H27: =#REF! ->  | I27: =#REF! ->  | J27: For Asset Marking
C28: Hydraulic Ladder | D28: nos | E28: 0 | F28: 1 | G28: 1 | H28: 1 | I28: 1
C29: Reconductoring | D29: km | E29: =H15 ->  | F29: =#REF!/1000 ->  | G29: =#REF!/1000 ->  | H29: =#REF!/1000 ->  | I29: =#REF!/1000 -> 
C32: Item | E32: Bhubaneswar | F32: Cuttack | G32: Berhampur | H32: Rourkela | I32: Sambalpur
C33: LED Luminaires with surge protectors | D33: INR lakhs | E33: =SUM(#REF!,#REF!) ->  | F33: =SUM(#REF!) ->  | G33: =#REF! ->  | H33: =#REF! ->  | I33: =#REF! -> 
C34: Outreach arm | D34: INR lakhs | E34: =#REF! ->  | F34: =#REF! ->  | G34: =#REF! ->  | H34: =#REF! ->  | I34: =#REF! -> 
C35: Timer | D35: INR lakhs | E35: =#REF! ->  | F35: =#REF! ->  | G35: =#REF! ->  | H35: =#REF! ->  | I35: =#REF! -> 
C36: Earthing | D36: INR lakhs | E36: =SUM(#REF!) ->  | F36: =#REF! ->  | G36: =#REF! ->  | H36: =#REF! ->  | I36: =#REF! -> 
C37: Feeder Panel | D37: INR lakhs | E37: =#REF! ->  | F37: =#REF! ->  | G37: =#REF! ->  | H37: =#REF! ->  | I37: =#REF! -> 
C38: Greenfield Poles | D38: INR lakhs | E38: =SUM(#REF!) ->  | F38: 0 | G38: 0 | H38: 0 | I38: 0
C39: Brownfield Poles | D39: INR lakhs | E39: 0 | F39: =#REF! ->  | G39: =#REF! ->  | H39: =#REF! ->  | I39: =#REF! -> 
C40: Hydraulic Ladder | D40: INR lakhs | E40: 0 | F40: =#REF! ->  | G40: =#REF! ->  | H40: =#REF! ->  | I40: =#REF! -> 
C41: Reconductoring | D41: INR lakhs | E41: 0 | F41: =#REF! ->  | G41: =#REF! ->  | H41: =#REF! ->  | I41: =#REF! -> 

Sheet Timing (hidden)
A1: =RIGHT(CELL("filename", $A$1), LEN(CELL("filename", $A$1)) - SEARCH("]", CELL("filename", $A$1))) -> Timing
E2: Period Beginning | H2: =#REF! ->  | I2: =#REF! ->  | J2: =#REF! ->  | K2: =#REF! ->  | L2: =#REF! ->  | M2: =#REF! ->  | N2: =#REF! ->  | O2: =#REF! ->  | P2: =#REF! ->  | Q2: =#REF! ->  | R2: =#REF! ->  | S2: =#REF! ->  | T2: =#REF! ->  | U2: =#REF! ->  | V2: =#REF! ->  | W2: =#REF! ->  | X2: =#REF! ->  | Y2: =#REF! ->  | Z2: =#REF! ->  | AA2: =#REF! ->  | AB2: =#REF! ->  | AC2: =#REF! ->  | AD2: =#REF! ->  | AE2: =#REF! ->  | AF2: =#REF! ->  | AG2: =#REF! ->  | AH2: =#REF! ->  | AI2: =#REF! ->  | AJ2: =#REF! ->  | AK2: =#REF! ->  | AL2: =#REF! ->  | AM2: =#REF! ->  | AN2: =#REF! ->  | AO2: =#REF! ->  | AP2: =#REF! ->  | AQ2: =#REF! ->  | AR2: =#REF! ->  | AS2: =#REF! ->  | AT2: =#REF! ->  | AU2: =#REF! ->  | AV2: =#REF! ->  | AW2: =#REF! ->  | AX2: =#REF! ->  | AY2: =#REF! ->  | AZ2: =#REF! ->  | BA2: =#REF! ->  | BB2: =#REF! ->  | BC2: =#REF! ->  | BD2: =#REF! ->  | BE2: =#REF! ->  | BF2: =#REF! ->  | BG2: =#REF! ->  | BH2: =#REF! ->  | BI2: =#REF! ->  | BJ2: =#REF! ->  | BK2: =#REF! ->  | BL2: =#REF! ->  | BM2: =#REF! ->  | BN2: =#REF! ->  | BO2: =#REF! ->  | BP2: =#REF! ->  | BQ2: =#REF! -> 
E3: Period ending | H3: =#REF! ->  | I3: =#REF! ->  | J3: =#REF! ->  | K3: =#REF! ->  | L3: =#REF! ->  | M3: =#REF! ->  | N3: =#REF! ->  | O3: =#REF! ->  | P3: =#REF! ->  | Q3: =#REF! ->  | R3: =#REF! ->  | S3: =#REF! ->  | T3: =#REF! ->  | U3: =#REF! ->  | V3: =#REF! ->  | W3: =#REF! ->  | X3: =#REF! ->  | Y3: =#REF! ->  | Z3: =#REF! ->  | AA3: =#REF! ->  | AB3: =#REF! ->  | AC3: =#REF! ->  | AD3: =#REF! ->  | AE3: =#REF! ->  | AF3: =#REF! ->  | AG3: =#REF! ->  | AH3: =#REF! ->  | AI3: =#REF! ->  | AJ3: =#REF! ->  | AK3: =#REF! ->  | AL3: =#REF! ->  | AM3: =#REF! ->  | AN3: =#REF! ->  | AO3: =#REF! ->  | AP3: =#REF! ->  | AQ3: =#REF! ->  | AR3: =#REF! ->  | AS3: =#REF! ->  | AT3: =#REF! ->  | AU3: =#REF! ->  | AV3: =#REF! ->  | AW3: =#REF! ->  | AX3: =#REF! ->  | AY3: =#REF! ->  | AZ3: =#REF! ->  | BA3: =#REF! ->  | BB3: =#REF! ->  | BC3: =#REF! ->  | BD3: =#REF! ->  | BE3: =#REF! ->  | BF3: =#REF! ->  | BG3: =#REF! ->  | BH3: =#REF! ->  | BI3: =#REF! ->  | BJ3: =#REF! ->  | BK3: =#REF! ->  | BL3: =#REF! ->  | BM3: =#REF! ->  | BN3: =#REF! ->  | BO3: =#REF! ->  | BP3: =#REF! ->  | BQ3: =#REF! -> 
E4: Financial Year Ending | H4: =YEAR(H3) ->  | I4: =YEAR(I3) ->  | J4: =YEAR(J3) ->  | K4: =YEAR(K3) -> 
E5: Year of Construction | H5: =H20 ->  | I5: =I20 ->  | J5: =J20 ->  | K5: =K20 -> 
E6: Year of Operations | H6: =H22 ->  | I6: =I22 ->  | J6: =J22 ->  | K6: =K22 -> 
E7: Days in period | H7: =H3-H2+1 ->  | I7: =I3-I2+1 ->  | J7: =J3-J2+1 ->  | K7: =K3-K2+1 -> 
B10: Construction
D12: Construction Period | H12: =ROUND(MAX(0,+((MIN(H$3,$F14)-MAX(H$2,$F13)+1))/H$7),0) ->  | AN12: =ROUND(MAX(0,+((MIN(AN$3,$F14)-MAX(AN$2,$F13)+1))/AN$7),0) -> 
E13: Start | F13: =#REF! -> 
E14: End | F14: =#REF!-1 -> 
D15: Concession Period | H15: =MAX(0,+((MIN(H$3,$F17)-MAX(H$2,$F16)+1))/H$7) ->  | AN15: =MAX(0,+((MIN(AN$3,$F17)-MAX(AN$2,$F16)+1))/AN$7) -> 
E16: Start | F16: =#REF! -> 
E17: End | F17: =#REF!-1 -> 
D19: Duration of Construction | H19: =IF(H12>0,G19+(#REF!/#REF!),0) ->  | I19: =IF(I12>0,H19+(#REF!/#REF!),0) ->  | J19: =IF(J12>0,I19+(#REF!/#REF!),0) ->  | K19: =IF(K12>0,J19+(#REF!/#REF!),0) ->  | L19: =IF(L12>0,K19+(#REF!/#REF!),0) ->  | M19: =IF(M12>0,L19+(#REF!/#REF!),0) ->  | N19: =IF(N12>0,M19+(#REF!/#REF!),0) ->  | O19: =IF(O12>0,N19+(#REF!/#REF!),0) ->  | P19: =IF(P12>0,O19+(#REF!/#REF!),0) ->  | Q19: =IF(Q12>0,P19+(#REF!/#REF!),0) ->  | R19: =IF(R12>0,Q19+(#REF!/#REF!),0) ->  | S19: =IF(S12>0,R19+(#REF!/#REF!),0) ->  | T19: =IF(T12>0,S19+(#REF!/#REF!),0) ->  | U19: =IF(U12>0,T19+(#REF!/#REF!),0) ->  | V19: =IF(V12>0,U19+(#REF!/#REF!),0) ->  | W19: =IF(W12>0,V19+(#REF!/#REF!),0) ->  | X19: =IF(X12>0,W19+(#REF!/#REF!),0) ->  | Y19: =IF(Y12>0,X19+(#REF!/#REF!),0) ->  | Z19: =IF(Z12>0,Y19+(#REF!/#REF!),0) ->  | AA19: =IF(AA12>0,Z19+(#REF!/#REF!),0) ->  | AB19: =IF(AB12>0,AA19+(#REF!/#REF!),0) ->  | AC19: =IF(AC12>0,AB19+(#REF!/#REF!),0) ->  | AD19: =IF(AD12>0,AC19+(#REF!/#REF!),0) ->  | AE19: =IF(AE12>0,AD19+(#REF!/#REF!),0) ->  | AF19: =IF(AF12>0,AE19+(#REF!/#REF!),0) ->  | AG19: =IF(AG12>0,AF19+(#REF!/#REF!),0) ->  | AH19: =IF(AH12>0,AG19+(#REF!/#REF!),0) ->  | AI19: =IF(AI12>0,AH19+(#REF!/#REF!),0) ->  | AJ19: =IF(AJ12>0,AI19+(#REF!/#REF!),0) ->  | AK19: =IF(AK12>0,AJ19+(#REF!/#REF!),0) ->  | AL19: =IF(AL12>0,AK19+(#REF!/#REF!),0) ->  | AM19: =IF(AM12>0,AL19+(#REF!/#REF!),0) ->  | AN19: =IF(AN12>0,AM19+(#REF!/#REF!),0) ->  | AO19: =IF(AO12>0,AN19+(#REF!/#REF!),0) ->  | AP19: =IF(AP12>0,AO19+(#REF!/#REF!),0) ->  | AQ19: =IF(AQ12>0,AP19+(#REF!/#REF!),0) ->  | AR19: =IF(AR12>0,AQ19+(#REF!/#REF!),0) ->  | AS19: =IF(AS12>0,AR19+(#REF!/#REF!),0) ->  | AT19: =IF(AT12>0,AS19+(#REF!/#REF!),0) ->  | AU19: =IF(AU12>0,AT19+(#REF!/#REF!),0) ->  | AV19: =IF(AV12>0,AU19+(#REF!/#REF!),0) ->  | AW19: =IF(AW12>0,AV19+(#REF!/#REF!),0) ->  | AX19: =IF(AX12>0,AW19+(#REF!/#REF!),0) ->  | AY19: =IF(AY12>0,AX19+(#REF!/#REF!),0) ->  | AZ19: =IF(AZ12>0,AY19+(#REF!/#REF!),0) ->  | BA19: =IF(BA12>0,AZ19+(#REF!/#REF!),0) ->  | BB19: =IF(BB12>0,BA19+(#REF!/#REF!),0) ->  | BC19: =IF(BC12>0,BB19+(#REF!/#REF!),0) ->  | BD19: =IF(BD12>0,BC19+(#REF!/#REF!),0) ->  | BE19: =IF(BE12>0,BD19+(#REF!/#REF!),0) ->  | BF19: =IF(BF12>0,BE19+(#REF!/#REF!),0) ->  | BG19: =IF(BG12>0,BF19+(#REF!/#REF!),0) ->  | BH19: =IF(BH12>0,BG19+(#REF!/#REF!),0) ->  | BI19: =IF(BI12>0,BH19+(#REF!/#REF!),0) ->  | BJ19: =IF(BJ12>0,BI19+(#REF!/#REF!),0) ->  | BK19: =IF(BK12>0,BJ19+(#REF!/#REF!),0) ->  | BL19: =IF(BL12>0,BK19+(#REF!/#REF!),0) ->  | BM19: =IF(BM12>0,BL19+(#REF!/#REF!),0) ->  | BN19: =IF(BN12>0,BM19+(#REF!/#REF!),0) ->  | BO19: =IF(BO12>0,BN19+(#REF!/#REF!),0) ->  | BP19: =IF(BP12>0,BO19+(#REF!/#REF!),0) ->  | BQ19: =IF(BQ12>0,BP19+(#REF!/#REF!),0) -> 
D20: Year of Construction | H20: =IF(AND(H19>0,I19=0),ROUND(H19,0),ROUND(I19,0)) ->  | Q20: =IF(AND(Q19>0,R19=0),ROUND(Q19,0),ROUND(R19,0)) ->  | R20: =IF(AND(R19>0,S19=0),ROUND(R19,0),ROUND(S19,0)) -> 
D21: Duration of Operations | H21: =IF(H15>0,G21+(#REF!/#REF!),0) ->  | I21: =IF(I15>0,H21+(#REF!/#REF!),0) ->  | J21: =IF(J15>0,I21+(#REF!/#REF!),0) ->  | K21: =IF(K15>0,J21+(#REF!/#REF!),0) ->  | L21: =IF(L15>0,K21+(#REF!/#REF!),0) ->  | M21: =IF(M15>0,L21+(#REF!/#REF!),0) ->  | N21: =IF(N15>0,M21+(#REF!/#REF!),0) ->  | O21: =IF(O15>0,N21+(#REF!/#REF!),0) ->  | P21: =IF(P15>0,O21+(#REF!/#REF!),0) ->  | Q21: =IF(Q15>0,P21+(#REF!/#REF!),0) ->  | R21: =IF(R15>0,Q21+(#REF!/#REF!),0) ->  | S21: =IF(S15>0,R21+(#REF!/#REF!),0) ->  | T21: =IF(T15>0,S21+(#REF!/#REF!),0) ->  | U21: =IF(U15>0,T21+(#REF!/#REF!),0) ->  | V21: =IF(V15>0,U21+(#REF!/#REF!),0) ->  | W21: =IF(W15>0,V21+(#REF!/#REF!),0) ->  | X21: =IF(X15>0,W21+(#REF!/#REF!),0) ->  | Y21: =IF(Y15>0,X21+(#REF!/#REF!),0) ->  | Z21: =IF(Z15>0,Y21+(#REF!/#REF!),0) ->  | AA21: =IF(AA15>0,Z21+(#REF!/#REF!),0) ->  | AB21: =IF(AB15>0,AA21+(#REF!/#REF!),0) ->  | AC21: =IF(AC15>0,AB21+(#REF!/#REF!),0) ->  | AD21: =IF(AD15>0,AC21+(#REF!/#REF!),0) ->  | AE21: =IF(AE15>0,AD21+(#REF!/#REF!),0) ->  | AF21: =IF(AF15>0,AE21+(#REF!/#REF!),0) ->  | AG21: =IF(AG15>0,AF21+(#REF!/#REF!),0) ->  | AH21: =IF(AH15>0,AG21+(#REF!/#REF!),0) ->  | AI21: =IF(AI15>0,AH21+(#REF!/#REF!),0) ->  | AJ21: =IF(AJ15>0,AI21+(#REF!/#REF!),0) ->  | AK21: =IF(AK15>0,AJ21+(#REF!/#REF!),0) ->  | AL21: =IF(AL15>0,AK21+(#REF!/#REF!),0) ->  | AM21: =IF(AM15>0,AL21+(#REF!/#REF!),0) ->  | AN21: =IF(AN15>0,AM21+(#REF!/#REF!),0) ->  | AO21: =IF(AO15>0,AN21+(#REF!/#REF!),0) ->  | AP21: =IF(AP15>0,AO21+(#REF!/#REF!),0) ->  | AQ21: =IF(AQ15>0,AP21+(#REF!/#REF!),0) ->  | AR21: =IF(AR15>0,AQ21+(#REF!/#REF!),0) ->  | AS21: =IF(AS15>0,AR21+(#REF!/#REF!),0) ->  | AT21: =IF(AT15>0,AS21+(#REF!/#REF!),0) ->  | AU21: =IF(AU15>0,AT21+(#REF!/#REF!),0) ->  | AV21: =IF(AV15>0,AU21+(#REF!/#REF!),0) ->  | AW21: =IF(AW15>0,AV21+(#REF!/#REF!),0) ->  | AX21: =IF(AX15>0,AW21+(#REF!/#REF!),0) ->  | AY21: =IF(AY15>0,AX21+(#REF!/#REF!),0) ->  | AZ21: =IF(AZ15>0,AY21+(#REF!/#REF!),0) ->  | BA21: =IF(BA15>0,AZ21+(#REF!/#REF!),0) ->  | BB21: =IF(BB15>0,BA21+(#REF!/#REF!),0) ->  | BC21: =IF(BC15>0,BB21+(#REF!/#REF!),0) ->  | BD21: =IF(BD15>0,BC21+(#REF!/#REF!),0) ->  | BE21: =IF(BE15>0,BD21+(#REF!/#REF!),0) ->  | BF21: =IF(BF15>0,BE21+(#REF!/#REF!),0) ->  | BG21: =IF(BG15>0,BF21+(#REF!/#REF!),0) ->  | BH21: =IF(BH15>0,BG21+(#REF!/#REF!),0) ->  | BI21: =IF(BI15>0,BH21+(#REF!/#REF!),0) ->  | BJ21: =IF(BJ15>0,BI21+(#REF!/#REF!),0) ->  | BK21: =IF(BK15>0,BJ21+(#REF!/#REF!),0) ->  | BL21: =IF(BL15>0,BK21+(#REF!/#REF!),0) ->  | BM21: =IF(BM15>0,BL21+(#REF!/#REF!),0) ->  | BN21: =IF(BN15>0,BM21+(#REF!/#REF!),0) ->  | BO21: =IF(BO15>0,BN21+(#REF!/#REF!),0) ->  | BP21: =IF(BP15>0,BO21+(#REF!/#REF!),0) ->  | BQ21: =IF(BQ15>0,BP21+(#REF!/#REF!),0) -> 
D22: Year of Operations | H22: =IF(AND(H15=1,I15=0),H21,IF(AND(H15=1,I15=1),ROUND(I21,0),0)) -> 
B24: Concessional Debt
E26: Debt Drawdown Begins | F26: =#REF! -> 
E27: Drawdown Months | F27: =#REF! ->  | H27: =IF(AND(H2>=$F$41,H3<=$F$43),1,0) ->  | I27: =IF(AND(I2>=$F$41,I3<=$F$43),1,0) -> 
E28: Debt Drawdown Ends | F28: =IF(F27=0,F26,EDATE(F26,F27)) -> 
E30: Principal Moratorium Begins | F30: =F28 -> 
E31: Moratorium Months | F31: =#REF!*#REF! ->  | H31: =IF(AND(H2>=$F$30,H3<=$F$32),1,0) ->  | I31: =IF(AND(I2>=$F$30,I3<=$F$32),1,0) -> 
E32: Principal Moratorium Ends | F32: =IF(F31=0,F30,EDATE(F30,F31)) -> 
D34: Escalation of base Life Cycle Costs | E34: Principal Repayment Begins | F34: =IF(F32=F30,F32,Timing!F32) -> 
E35: Repayment Months | F35: =#REF!*#REF! ->  | H35: =IF(AND(H2>=$F$34,H3<=$F$36),1,0) ->  | I35: =IF(AND(I2>=$F$34,I3<=$F$36),1,0) -> 
E36: Principal Repayment Ends | F36: =IF(F35=0,F34,EDATE(F34,F35)) -> 
B39: Commercial Debt
E41: Debt Drawdown Begins | F41: =#REF! -> 
E42: Drawdown Months | F42: =#REF! ->  | H42: =IF(AND(H2>=$F$41,H3<=$F$43),1,0) ->  | AN42: =IF(AND(AN2>=$F$41,AN3<=$F$43),1,0) -> 
E43: Debt Drawdown Ends | F43: =IF(F42=0,F41,EDATE(F41,F42)) -> 
E45: Principal Moratorium Begins | F45: =F43 -> 
E46: Moratorium Months | F46: =#REF!*#REF! ->  | H46: =IF(AND(H2>=$F$45,H3<=$F$47),1,0) ->  | AN46: =IF(AND(AN2>=$F$45,AN3<=$F$47),1,0) -> 
E47: Principal Moratorium Ends | F47: =IF(F46=0,F45,EDATE(F45,F46)) -> 
D49: Escalation of base Life Cycle Costs | E49: Principal Repayment Begins | F49: =IF(F47=F45,F47,Timing!F47) -> 
E50: Repayment Months | F50: =#REF!*#REF! ->  | H50: =IF(AND(H2>=$F$49,H3<=$F$51),1,0) ->  | AN50: =IF(AND(AN2>=$F$49,AN3<=$F$51),1,0) -> 
E51: Principal Repayment Ends | F51: =IF(F50=0,F49,EDATE(F49,F50)) -> 

Sheet Summary(USDmn) (hidden)
C1: Lakh to mn conversion | D1: =#REF!*#REF! -> 
C2: figures in USD mn
C4: Berhampur | E4: BBSR case | F4: Recommended case
D5: =#REF! ->  | E5: Base + Automation | F5: =#REF! ->  | G5: Base+Auto+Earthing+Poles | H5: Base + Earthing
C6: Number of Retrofits | D6: =#REF! ->  | E6: 8417 | F6: 8417 | G6: 8417 | H6: 8417 | I6: =D6-F6 -> 
I7: =D7-F7 -> 0
C8: Total Capex | D8: =Summary!D8/$D$1 ->  | E8: =Summary!E8/$D$1 ->  | F8: =Summary!F8/$D$1 ->  | G8: =Summary!G8/$D$1 ->  | H8: =Summary!H8/$D$1 -> 
I9: 0
C10: Capital Grant | D10: =Summary!D10/'Summary(USDmn)'!$D$1 ->  | E10: =Summary!E10/'Summary(USDmn)'!$D$1 ->  | F10: =Summary!F10/'Summary(USDmn)'!$D$1 ->  | G10: =Summary!G10/'Summary(USDmn)'!$D$1 ->  | H10: =Summary!H10/'Summary(USDmn)'!$D$1 -> 
C11: Concessional Finance | D11: =Summary!D11/'Summary(USDmn)'!$D$1 ->  | E11: =Summary!E11/'Summary(USDmn)'!$D$1 ->  | F11: =Summary!F11/'Summary(USDmn)'!$D$1 ->  | G11: =Summary!G11/'Summary(USDmn)'!$D$1 ->  | H11: =Summary!H11/'Summary(USDmn)'!$D$1 -> 
C12: Equity by SPV | D12: =Summary!D12/'Summary(USDmn)'!$D$1 ->  | E12: =Summary!E12/'Summary(USDmn)'!$D$1 ->  | F12: =Summary!F12/'Summary(USDmn)'!$D$1 ->  | G12: =Summary!G12/'Summary(USDmn)'!$D$1 ->  | H12: =Summary!H12/'Summary(USDmn)'!$D$1 -> 
I13: 0
C14: Annuity per year | D14: =Summary!D14/'Summary(USDmn)'!$D$1 ->  | E14: =Summary!E14/'Summary(USDmn)'!$D$1 ->  | F14: =Summary!F14/'Summary(USDmn)'!$D$1 ->  | G14: =Summary!G14/'Summary(USDmn)'!$D$1 ->  | H14: =Summary!H14/'Summary(USDmn)'!$D$1 -> 
C15: Yr 1 Debt Service | D15: =Summary!D15/'Summary(USDmn)'!$D$1 ->  | E15: =Summary!E15/'Summary(USDmn)'!$D$1 ->  | F15: =Summary!F15/'Summary(USDmn)'!$D$1 ->  | G15: =Summary!G15/'Summary(USDmn)'!$D$1 ->  | H15: =Summary!H15/'Summary(USDmn)'!$D$1 -> 
C16: Energy bill ( Post Project ) | D16: =Summary!D16/'Summary(USDmn)'!$D$1 ->  | E16: =Summary!E16/'Summary(USDmn)'!$D$1 ->  | F16: =Summary!F16/'Summary(USDmn)'!$D$1 ->  | G16: =Summary!G16/'Summary(USDmn)'!$D$1 ->  | H16: =Summary!H16/'Summary(USDmn)'!$D$1 -> 
C17: Total Yr 1 Spend (Annuity+Debt Service+Energy) | D17: =Summary!D17/'Summary(USDmn)'!$D$1 ->  | E17: =Summary!E17/'Summary(USDmn)'!$D$1 ->  | F17: =Summary!F17/'Summary(USDmn)'!$D$1 ->  | G17: =Summary!G17/'Summary(USDmn)'!$D$1 ->  | H17: =Summary!H17/'Summary(USDmn)'!$D$1 -> 
I18: 0
C19: Energy Bill ( Actual ) | D19: =Summary!D19/'Summary(USDmn)'!$D$1 ->  | E19: =Summary!E19/'Summary(USDmn)'!$D$1 ->  | F19: =Summary!F19/'Summary(USDmn)'!$D$1 ->  | G19: =Summary!G19/'Summary(USDmn)'!$D$1 ->  | H19: =Summary!H19/'Summary(USDmn)'!$D$1 -> 
C20: Current O&M spend | D20: =Summary!D20/'Summary(USDmn)'!$D$1 ->  | E20: =Summary!E20/'Summary(USDmn)'!$D$1 ->  | F20: =Summary!F20/'Summary(USDmn)'!$D$1 ->  | G20: =Summary!G20/'Summary(USDmn)'!$D$1 ->  | H20: =Summary!H20/'Summary(USDmn)'!$D$1 -> 
C21: Energy bill ( Notional ) | D21: =Summary!D21/'Summary(USDmn)'!$D$1 ->  | E21: =Summary!E21/'Summary(USDmn)'!$D$1 ->  | F21: =Summary!F21/'Summary(USDmn)'!$D$1 ->  | G21: =Summary!G21/'Summary(USDmn)'!$D$1 ->  | H21: =Summary!H21/'Summary(USDmn)'!$D$1 -> 
I22: 0
C23: Energy Savings p.a (M.Us) | D23: =#REF! ->  | E23: 3.495259343 | F23: 3.495259343 | G23: 3.18717919 | H23: 3.435678571
C24: Total Savings Yr1 (Actual Basis) | D24: =Summary!D24/'Summary(USDmn)'!$D$1 ->  | E24: =Summary!E24/'Summary(USDmn)'!$D$1 ->  | F24: =Summary!F24/'Summary(USDmn)'!$D$1 ->  | G24: =Summary!G24/'Summary(USDmn)'!$D$1 ->  | H24: =Summary!H24/'Summary(USDmn)'!$D$1 -> 
C25: Total Savings Yr1 (Notional Basis) | D25: =Summary!D25/'Summary(USDmn)'!$D$1 ->  | E25: =Summary!E25/'Summary(USDmn)'!$D$1 ->  | F25: =Summary!F25/'Summary(USDmn)'!$D$1 ->  | G25: =Summary!G25/'Summary(USDmn)'!$D$1 ->  | H25: =Summary!H25/'Summary(USDmn)'!$D$1 -> 
C27: Cuttack
D28: =D5 ->  | E28: Base + Automation | F28: Base +Auto+Earthing | G28: Base+Auto+Earthing+Poles | H28: Base + Earthing
C29: Number of Retrofits | D29: =#REF! ->  | E29: 17852 | F29: 17852 | G29: 17852 | H29: 17852 | I29: =D29-F29 -> 
I30: =D30-F30 -> 0
C31: Total Capex | D31: =Summary!D31/$D$1 ->  | E31: =Summary!E31/$D$1 ->  | F31: =Summary!F31/$D$1 ->  | G31: =Summary!G31/$D$1 ->  | H31: =Summary!H31/$D$1 -> 
I32: 0
C33: Capital Grant | D33: =Summary!D33/'Summary(USDmn)'!$D$1 ->  | E33: =Summary!E33/'Summary(USDmn)'!$D$1 ->  | F33: =Summary!F33/'Summary(USDmn)'!$D$1 ->  | G33: =Summary!G33/'Summary(USDmn)'!$D$1 ->  | H33: =Summary!H33/'Summary(USDmn)'!$D$1 -> 
C34: Concessional Finance | D34: =Summary!D34/'Summary(USDmn)'!$D$1 ->  | E34: =Summary!E34/'Summary(USDmn)'!$D$1 ->  | F34: =Summary!F34/'Summary(USDmn)'!$D$1 ->  | G34: =Summary!G34/'Summary(USDmn)'!$D$1 ->  | H34: =Summary!H34/'Summary(USDmn)'!$D$1 -> 
C35: Equity by SPV | D35: =Summary!D35/'Summary(USDmn)'!$D$1 ->  | E35: =Summary!E35/'Summary(USDmn)'!$D$1 ->  | F35: =Summary!F35/'Summary(USDmn)'!$D$1 ->  | G35: =Summary!G35/'Summary(USDmn)'!$D$1 ->  | H35: =Summary!H35/'Summary(USDmn)'!$D$1 -> 
I36: 0
C37: Annuity per year | D37: =Summary!D37/'Summary(USDmn)'!$D$1 ->  | E37: =Summary!E37/'Summary(USDmn)'!$D$1 ->  | F37: =Summary!F37/'Summary(USDmn)'!$D$1 ->  | G37: =Summary!G37/'Summary(USDmn)'!$D$1 ->  | H37: =Summary!H37/'Summary(USDmn)'!$D$1 -> 
C38: Yr 1 Debt Service | D38: =Summary!D38/'Summary(USDmn)'!$D$1 ->  | E38: =Summary!E38/'Summary(USDmn)'!$D$1 ->  | F38: =Summary!F38/'Summary(USDmn)'!$D$1 ->  | G38: =Summary!G38/'Summary(USDmn)'!$D$1 ->  | H38: =Summary!H38/'Summary(USDmn)'!$D$1 -> 
C39: Energy bill ( Post Project ) | D39: =Summary!D39/'Summary(USDmn)'!$D$1 ->  | E39: =Summary!E39/'Summary(USDmn)'!$D$1 ->  | F39: =Summary!F39/'Summary(USDmn)'!$D$1 ->  | G39: =Summary!G39/'Summary(USDmn)'!$D$1 ->  | H39: =Summary!H39/'Summary(USDmn)'!$D$1 -> 
C40: Total Yr 1 Spend (Annuity+Debt Service+Energy) | D40: =Summary!D40/'Summary(USDmn)'!$D$1 ->  | E40: =Summary!E40/'Summary(USDmn)'!$D$1 ->  | F40: =Summary!F40/'Summary(USDmn)'!$D$1 ->  | G40: =Summary!G40/'Summary(USDmn)'!$D$1 ->  | H40: =Summary!H40/'Summary(USDmn)'!$D$1 -> 
I41: 0
C42: Energy Bill ( Actual ) | D42: =Summary!D42/'Summary(USDmn)'!$D$1 ->  | E42: =Summary!E42/'Summary(USDmn)'!$D$1 ->  | F42: =Summary!F42/'Summary(USDmn)'!$D$1 ->  | G42: =Summary!G42/'Summary(USDmn)'!$D$1 ->  | H42: =Summary!H42/'Summary(USDmn)'!$D$1 -> 
C43: Current O&M spend | D43: =Summary!D43/'Summary(USDmn)'!$D$1 ->  | E43: =Summary!E43/'Summary(USDmn)'!$D$1 ->  | F43: =Summary!F43/'Summary(USDmn)'!$D$1 ->  | G43: =Summary!G43/'Summary(USDmn)'!$D$1 ->  | H43: =Summary!H43/'Summary(USDmn)'!$D$1 -> 
C44: Energy bill ( Notional ) | D44: =Summary!D44/'Summary(USDmn)'!$D$1 ->  | E44: =Summary!E44/'Summary(USDmn)'!$D$1 ->  | F44: =Summary!F44/'Summary(USDmn)'!$D$1 ->  | G44: =Summary!G44/'Summary(USDmn)'!$D$1 ->  | H44: =Summary!H44/'Summary(USDmn)'!$D$1 -> 
I45: 0
C46: Energy Savings p.a (M.Us) | D46: =#REF! ->  | E46: 7.704783277 | F46: 7.704783277 | G46: 6.894513246 | H46: 7.578028368
C47: Total Savings Yr1 (Actual Basis) | D47: =Summary!D47/'Summary(USDmn)'!$D$1 ->  | E47: =Summary!E47/'Summary(USDmn)'!$D$1 ->  | F47: =Summary!F47/'Summary(USDmn)'!$D$1 ->  | G47: =Summary!G47/'Summary(USDmn)'!$D$1 ->  | H47: =Summary!H47/'Summary(USDmn)'!$D$1 -> 
C48: Total Savings Yr1 (Notional Basis) | D48: =Summary!D48/'Summary(USDmn)'!$D$1 ->  | E48: =Summary!E48/'Summary(USDmn)'!$D$1 ->  | F48: =Summary!F48/'Summary(USDmn)'!$D$1 ->  | G48: =Summary!G48/'Summary(USDmn)'!$D$1 ->  | H48: =Summary!H48/'Summary(USDmn)'!$D$1 -> 
C50: Rourkela
D51: =D28 ->  | E51: Base + Automation | F51: Base +Auto+Earthing | G51: Base+Auto+Earthing+Poles | H51: Base + Earthing
C52: Number of Retrofits | D52: =#REF! ->  | E52: 7213 | F52: 7213 | G52: 7213 | H52: 7213 | I52: =D52-F52 -> 
I53: =D53-F53 -> 0
C54: Total Capex | D54: =Summary!D54/$D$1 ->  | E54: =Summary!E54/$D$1 ->  | F54: =Summary!F54/$D$1 ->  | G54: =Summary!G54/$D$1 ->  | H54: =Summary!H54/$D$1 -> 
I55: 0
C56: Capital Grant | D56: =Summary!D56/'Summary(USDmn)'!$D$1 ->  | E56: =Summary!E56/'Summary(USDmn)'!$D$1 ->  | F56: =Summary!F56/'Summary(USDmn)'!$D$1 ->  | G56: =Summary!G56/'Summary(USDmn)'!$D$1 ->  | H56: =Summary!H56/'Summary(USDmn)'!$D$1 -> 
C57: Concessional Finance | D57: =Summary!D57/'Summary(USDmn)'!$D$1 ->  | E57: =Summary!E57/'Summary(USDmn)'!$D$1 ->  | F57: =Summary!F57/'Summary(USDmn)'!$D$1 ->  | G57: =Summary!G57/'Summary(USDmn)'!$D$1 ->  | H57: =Summary!H57/'Summary(USDmn)'!$D$1 -> 
C58: Equity by SPV | D58: =Summary!D58/'Summary(USDmn)'!$D$1 ->  | E58: =Summary!E58/'Summary(USDmn)'!$D$1 ->  | F58: =Summary!F58/'Summary(USDmn)'!$D$1 ->  | G58: =Summary!G58/'Summary(USDmn)'!$D$1 ->  | H58: =Summary!H58/'Summary(USDmn)'!$D$1 -> 
I59: 0
C60: Annuity per year | D60: =Summary!D60/'Summary(USDmn)'!$D$1 ->  | E60: =Summary!E60/'Summary(USDmn)'!$D$1 ->  | F60: =Summary!F60/'Summary(USDmn)'!$D$1 ->  | G60: =Summary!G60/'Summary(USDmn)'!$D$1 ->  | H60: =Summary!H60/'Summary(USDmn)'!$D$1 -> 
C61: Yr 1 Debt Service | D61: =Summary!D61/'Summary(USDmn)'!$D$1 ->  | E61: =Summary!E61/'Summary(USDmn)'!$D$1 ->  | F61: =Summary!F61/'Summary(USDmn)'!$D$1 ->  | G61: =Summary!G61/'Summary(USDmn)'!$D$1 ->  | H61: =Summary!H61/'Summary(USDmn)'!$D$1 -> 
C62: Energy bill ( Post Project ) | D62: =Summary!D62/'Summary(USDmn)'!$D$1 ->  | E62: =Summary!E62/'Summary(USDmn)'!$D$1 ->  | F62: =Summary!F62/'Summary(USDmn)'!$D$1 ->  | G62: =Summary!G62/'Summary(USDmn)'!$D$1 ->  | H62: =Summary!H62/'Summary(USDmn)'!$D$1 -> 
C63: Total Yr 1 Spend (Annuity+Debt Service+Energy) | D63: =Summary!D63/'Summary(USDmn)'!$D$1 ->  | E63: =Summary!E63/'Summary(USDmn)'!$D$1 ->  | F63: =Summary!F63/'Summary(USDmn)'!$D$1 ->  | G63: =Summary!G63/'Summary(USDmn)'!$D$1 ->  | H63: =Summary!H63/'Summary(USDmn)'!$D$1 -> 
I64: 0
C65: Energy Bill ( Actual ) | D65: =Summary!D65/'Summary(USDmn)'!$D$1 ->  | E65: =Summary!E65/'Summary(USDmn)'!$D$1 ->  | F65: =Summary!F65/'Summary(USDmn)'!$D$1 ->  | G65: =Summary!G65/'Summary(USDmn)'!$D$1 ->  | H65: =Summary!H65/'Summary(USDmn)'!$D$1 -> 
C66: Current O&M Spend | D66: =Summary!D66/'Summary(USDmn)'!$D$1 ->  | E66: =Summary!E66/'Summary(USDmn)'!$D$1 ->  | F66: =Summary!F66/'Summary(USDmn)'!$D$1 ->  | G66: =Summary!G66/'Summary(USDmn)'!$D$1 ->  | H66: =Summary!H66/'Summary(USDmn)'!$D$1 -> 
C67: Energy bill ( Notional ) | D67: =Summary!D67/'Summary(USDmn)'!$D$1 ->  | E67: =Summary!E67/'Summary(USDmn)'!$D$1 ->  | F67: =Summary!F67/'Summary(USDmn)'!$D$1 ->  | G67: =Summary!G67/'Summary(USDmn)'!$D$1 ->  | H67: =Summary!H67/'Summary(USDmn)'!$D$1 -> 
I68: 0
C69: Energy Savings p.a (M.Us) | D69: =#REF! ->  | E69: 2.387956195 | F69: 2.387956195 | G69: 2.028286161 | H69: 2.298937445
C70: Total Savings Yr1 (Actual Basis) | D70: =Summary!D70/'Summary(USDmn)'!$D$1 ->  | E70: =Summary!E70/'Summary(USDmn)'!$D$1 ->  | F70: =Summary!F70/'Summary(USDmn)'!$D$1 ->  | G70: =Summary!G70/'Summary(USDmn)'!$D$1 ->  | H70: =Summary!H70/'Summary(USDmn)'!$D$1 -> 
C71: Total Savings Yr1 (Notional Basis) | D71: =Summary!D71/'Summary(USDmn)'!$D$1 ->  | E71: =Summary!E71/'Summary(USDmn)'!$D$1 ->  | F71: =Summary!F71/'Summary(USDmn)'!$D$1 ->  | G71: =Summary!G71/'Summary(USDmn)'!$D$1 ->  | H71: =Summary!H71/'Summary(USDmn)'!$D$1 -> 
C73: Sambalpur
D74: =D51 ->  | E74: Base + Automation | F74: Base +Auto+Earthing | G74: Base+Auto+Earthing+Poles | H74: Base + Earthing
C75: Number of Retrofits | D75: =#REF! ->  | E75: 5407 | F75: 5407 | G75: 5407 | H75: 5407 | I75: =D75-F75 -> 
I76: =D76-F76 -> 0
C77: Total Capex | D77: =Summary!D77/$D$1 ->  | E77: =Summary!E77/$D$1 ->  | F77: =Summary!F77/$D$1 ->  | G77: =Summary!G77/$D$1 ->  | H77: =Summary!H77/$D$1 -> 
I78: 0
C79: Capital Grant | D79: =Summary!D79/'Summary(USDmn)'!$D$1 ->  | E79: =Summary!E79/'Summary(USDmn)'!$D$1 ->  | F79: =Summary!F79/'Summary(USDmn)'!$D$1 ->  | G79: =Summary!G79/'Summary(USDmn)'!$D$1 ->  | H79: =Summary!H79/'Summary(USDmn)'!$D$1 -> 
C80: Concessional Finance | D80: =Summary!D80/'Summary(USDmn)'!$D$1 ->  | E80: =Summary!E80/'Summary(USDmn)'!$D$1 ->  | F80: =Summary!F80/'Summary(USDmn)'!$D$1 ->  | G80: =Summary!G80/'Summary(USDmn)'!$D$1 ->  | H80: =Summary!H80/'Summary(USDmn)'!$D$1 -> 
C81: Equity by SPV | D81: =Summary!D81/'Summary(USDmn)'!$D$1 ->  | E81: =Summary!E81/'Summary(USDmn)'!$D$1 ->  | F81: =Summary!F81/'Summary(USDmn)'!$D$1 ->  | G81: =Summary!G81/'Summary(USDmn)'!$D$1 ->  | H81: =Summary!H81/'Summary(USDmn)'!$D$1 -> 
I82: 0
C83: Annuity per year | D83: =Summary!D83/'Summary(USDmn)'!$D$1 ->  | E83: =Summary!E83/'Summary(USDmn)'!$D$1 ->  | F83: =Summary!F83/'Summary(USDmn)'!$D$1 ->  | G83: =Summary!G83/'Summary(USDmn)'!$D$1 ->  | H83: =Summary!H83/'Summary(USDmn)'!$D$1 -> 
C84: Yr 1 Debt Service | D84: =Summary!D84/'Summary(USDmn)'!$D$1 ->  | E84: =Summary!E84/'Summary(USDmn)'!$D$1 ->  | F84: =Summary!F84/'Summary(USDmn)'!$D$1 ->  | G84: =Summary!G84/'Summary(USDmn)'!$D$1 ->  | H84: =Summary!H84/'Summary(USDmn)'!$D$1 -> 
C85: Energy bill ( Post Project ) | D85: =Summary!D85/'Summary(USDmn)'!$D$1 ->  | E85: =Summary!E85/'Summary(USDmn)'!$D$1 ->  | F85: =Summary!F85/'Summary(USDmn)'!$D$1 ->  | G85: =Summary!G85/'Summary(USDmn)'!$D$1 ->  | H85: =Summary!H85/'Summary(USDmn)'!$D$1 -> 
C86: Total Yr 1 Spend (Annuity+Debt Service+Energy) | D86: =Summary!D86/'Summary(USDmn)'!$D$1 ->  | E86: =Summary!E86/'Summary(USDmn)'!$D$1 ->  | F86: =Summary!F86/'Summary(USDmn)'!$D$1 ->  | G86: =Summary!G86/'Summary(USDmn)'!$D$1 ->  | H86: =Summary!H86/'Summary(USDmn)'!$D$1 -> 
I87: 0
C88: Energy Bill ( Actual ) | D88: =Summary!D88/'Summary(USDmn)'!$D$1 ->  | E88: =Summary!E88/'Summary(USDmn)'!$D$1 ->  | F88: =Summary!F88/'Summary(USDmn)'!$D$1 ->  | G88: =Summary!G88/'Summary(USDmn)'!$D$1 ->  | H88: =Summary!H88/'Summary(USDmn)'!$D$1 -> 
C89: Current O&M Spend | D89: =Summary!D89/'Summary(USDmn)'!$D$1 ->  | E89: =Summary!E89/'Summary(USDmn)'!$D$1 ->  | F89: =Summary!F89/'Summary(USDmn)'!$D$1 ->  | G89: =Summary!G89/'Summary(USDmn)'!$D$1 ->  | H89: =Summary!H89/'Summary(USDmn)'!$D$1 -> 
C90: Energy bill ( Notional ) | D90: =Summary!D90/'Summary(USDmn)'!$D$1 ->  | E90: =Summary!E90/'Summary(USDmn)'!$D$1 ->  | F90: =Summary!F90/'Summary(USDmn)'!$D$1 ->  | G90: =Summary!G90/'Summary(USDmn)'!$D$1 ->  | H90: =Summary!H90/'Summary(USDmn)'!$D$1 -> 
I91: 0
C92: Energy Savings p.a (M.Us) | D92: =#REF! ->  | E92: 1.368866653 | F92: 1.368866653 | G92: 1.065890004 | H92: 1.302796841
C93: Total Savings Yr1 (Actual Basis) | D93: =#REF! ->  | E93: -50.99531279 | F93: -84.74577815 | G93: -143.621157 | H93: -54.40348161
C94: Total Savings Yr1 (Notional Basis) | D94: =#REF! ->  | E94: 20.12218855 | F94: -13.62827681 | G94: -72.50365565 | H94: 16.71401973

Sheet Summary (hidden)
C2: figures in INR lakhs
C4: Berhampur | E4: BBSR case | F4: Recommended case
D5: =#REF! ->  | E5: Base + Automation | F5: =#REF! ->  | G5: Base+Auto+Earthing+Poles | H5: Base + Earthing
C6: Number of Retrofits | D6: =#REF! ->  | E6: =#REF! ->  | F6: =#REF! ->  | G6: =#REF! ->  | H6: =#REF! ->  | I6: =D6-F6 -> 
I7: =D7-F7 -> 0
C8: Total Capex | D8: =#REF! ->  | E8: 1312.348079 | F8: 1726.239569 | G8: 1965.90402 | H8: 1326.793024
I9: 0
C10: Capital Grant | D10: =#REF! ->  | E10: 590.5566357 | F10: 776.807806 | G10: 884.6568088 | H10: 597.056861
C11: Concessional Finance | D11: =#REF! ->  | E11: 590.5566357 | F11: 776.807806 | G11: 884.6568088 | H11: 597.056861
C12: Equity by SPV | D12: =#REF! ->  | E12: 131.2348079 | F12: 172.6239569 | G12: =G8*10% -> 196.590402 | H12: =H8*10% -> 132.6793024
I13: 0
C14: Annuity per year | D14: =#REF! ->  | E14: 88.50210583 | F14: 103.5330706 | G14: 125.3857279 | H14: 79.06018095
C15: Yr 1 Debt Service | D15: =SUM(#REF!) ->  | E15: 141.2675733 | F15: 185.82088 | G15: 211.619535 | H15: 142.822498
C16: Energy bill ( Post Project ) | D16: =#REF! ->  | E16: 116.3576699 | F16: 116.3576699 | G16: 134.478528 | H16: 119.8621303
C17: Total Yr 1 Spend (Annuity+Debt Service+Energy) | D17: =SUM(D14:D16) ->  | E17: 346.1273491 | F17: 405.7116204 | G17: 471.4837908 | H17: 341.7448092
I18: 0
C19: Energy Bill ( Actual ) | D19: =#REF! ->  | E19: 125.7869702 | F19: 125.7869702 | G19: 125.7869702 | H19: 125.7869702
C20: Current O&M spend | D20: =#REF! ->  | E20: 180 | F20: 180 | G20: 180 | H20: 180
C21: Energy bill ( Notional ) | D21: =#REF! ->  | E21: 321.9440988 | F21: 321.9440988 | G21: 321.9440988 | H21: 321.9440988
I22: 0
C23: Energy Savings p.a (M.Us) | D23: =#REF! ->  | E23: 3.495259343 | F23: 3.495259343 | G23: 3.18717919 | H23: 3.435678571
C24: Total Savings Yr1 (Actual Basis) | D24: =#REF! ->  | E24: -21.89037885 | F24: -81.47465021 | G24: -147.2468206 | H24: -17.50783902
C25: Total Savings Yr1 (Notional Basis) | D25: =#REF! ->  | E25: 174.2667497 | F25: 114.6824783 | G25: 48.91030797 | H25: 178.6492895
C27: Cuttack
D28: =D5 ->  | E28: Base + Automation | F28: Base +Auto+Earthing | G28: Base+Auto+Earthing+Poles | H28: Base + Earthing
C29: Number of Retrofits | D29: =#REF! ->  | E29: =#REF! ->  | F29: =#REF! ->  | G29: =#REF! ->  | H29: =#REF! ->  | I29: =D29-F29 -> 
I30: =D30-F30 -> 0
C31: Total Capex | D31: =#REF! ->  | E31: 2443.347454 | F31: 3275.36595 | G31: 3944.642668 | H31: 2689.159684
I32: 0
C33: Capital Grant | D33: =#REF! ->  | E33: 1099.506354 | F33: 1473.914678 | G33: 1775.089201 | H33: 1210.121858
C34: Concessional Finance | D34: =#REF! ->  | E34: 1099.506354 | F34: 1473.914678 | G34: 1775.089201 | H34: 1210.121858
C35: Equity by SPV | D35: =#REF! ->  | E35: 244.3347454 | F35: 327.536595 | G35: 394.4642668 | H35: 268.9159684
I36: 0
C37: Annuity per year | D37: =#REF! ->  | E37: 160.065789 | F37: 190.6333723 | G37: 239.6452309 | H37: 156.0738103
C38: Yr 1 Debt Service | D38: =SUM(#REF!) ->  | E38: 263.0138841 | F38: 352.5764292 | G38: 424.6206522 | H38: 289.4743162
C39: Energy bill ( Post Project ) | D39: =#REF! ->  | E39: 246.6757623 | F39: 246.6757623 | G39: 294.33475 | H39: 254.1313146
C40: Total Yr 1 Spend (Annuity+Debt Service+Energy) | D40: =#REF! ->  | E40: 669.7554354 | F40: 789.8855637 | G40: 958.6006331 | H40: 699.6794412
I41: 0
C42: Energy Bill ( Actual ) | D42: =#REF! ->  | E42: 445.7156681 | F42: 445.7156681 | G42: 445.7156681 | H42: 445.7156681
C43: Current O&M spend | D43: =#REF! ->  | E43: 280 | F43: 280 | G43: 280 | H43: 280
C44: Energy bill ( Notional ) | D44: =#REF! ->  | E44: 699.8606976 | F44: 699.8606976 | G44: 699.8606976 | H44: 699.8606976
I45: 0
C46: Energy Savings p.a (M.Us) | D46: =#REF! ->  | E46: 7.704783277 | F46: 7.704783277 | G46: 6.894513246 | H46: 7.578028368
C47: Total Savings Yr1 (Actual Basis) | D47: =#REF! ->  | E47: 84.66023274 | F47: -35.46989558 | G47: -204.184965 | H47: 54.73622692
C48: Total Savings Yr1 (Notional Basis) | D48: =#REF! ->  | E48: 338.8052622 | F48: 218.6751339 | G48: 49.96006448 | H48: 308.8812564
C50: Rourkela
D51: =D28 ->  | E51: Base + Automation | F51: Base +Auto+Earthing | G51: Base+Auto+Earthing+Poles | H51: Base + Earthing
C52: Number of Retrofits | D52: =#REF! ->  | E52: =#REF! ->  | F52: =#REF! ->  | G52: =#REF! ->  | H52: =#REF! ->  | I52: =D52-G52 -> 
I53: =D53-G53 -> 0
C54: Total Capex | D54: =#REF! ->  | E54: 1231.000818 | F54: 1526.777518 | G54: 1520.580277 | H54: 1268.853286
I55: 0
C56: Capital Grant | D56: =#REF! ->  | E56: 553.950368 | F56: 687.0498829 | G56: 684.2611247 | H56: 570.9839788
C57: Concessional Finance | D57: =#REF! ->  | E57: 553.950368 | F57: 687.0498829 | G57: 684.2611247 | H57: 570.9839788
C58: Equity by SPV | D58: =#REF! ->  | E58: 123.1000818 | F58: 152.6777518 | G58: 152.0580277 | H58: 126.8853286
I59: 0
C60: Annuity per year | D60: =#REF! ->  | E60: 80.10499301 | F60: 89.77005853 | G60: 91.05833419 | H60: 72.92136176
C61: Yr 1 Debt Service | D61: =SUM(#REF!) ->  | E61: 132.5109558 | F61: 164.3497776 | G61: 163.6827068 | H61: 136.5855808
C62: Energy bill ( Post Project ) | D62: =#REF! ->  | E62: 109.877882 | F62: 109.877882 | G62: 109.877882 | H62: 115.1138445
C63: Total Yr 1 Spend (Annuity+Debt Service+Energy) | D63: =SUM(D60:D62) ->  | E63: 322.4938308 | F63: 363.9977181 | G63: 364.6189229 | H63: 324.6207871
I64: 0
C65: Energy Bill ( Actual ) | D65: =#REF! ->  | E65: 106.3467752 | F65: 106.3467752 | G65: 106.3467752 | H65: 106.3467752
C66: Current O&M Spend | D66: =#REF! ->  | E66: 220 | F66: 220 | G66: 220 | H66: 220
C67: Energy bill ( Notional ) | D67: =#REF! ->  | E67: 250.3342368 | F67: 250.3342368 | G67: 250.3342368 | H67: 250.3342368
I68: 0
C69: Energy Savings p.a (M.Us) | D69: =#REF! ->  | E69: 2.387956195 | F69: 2.387956195 | G69: 2.387956195 | H69: 2.298937445
C70: Total Savings Yr1 (Actual Basis) | D70: =#REF! ->  | E70: 26.40294436 | F70: -15.10094299 | G70: -15.72214778 | H70: 24.27598805
C71: Total Savings Yr1 (Notional Basis) | D71: =#REF! ->  | E71: 170.390406 | F71: 128.8865187 | G71: 128.2653139 | H71: 168.2634497
C73: Sambalpur
D74: =D51 ->  | E74: Base + Automation | F74: Base +Auto+Earthing | G74: Base+Auto+Earthing+Poles | H74: Base + Earthing
C75: Number of Retrofits | D75: =#REF! ->  | E75: =#REF! ->  | F75: =#REF! ->  | G75: =#REF! ->  | H75: =#REF! ->  | I75: =D75-F75 -> 
I76: =D76-F76 -> 0
C77: Total Capex | D77: =#REF! ->  | E77: 942.0670182 | F77: 1172.358543 | G77: 1413.958935 | H77: 993.4361891
I78: 0
C79: Capital Grant | D79: =#REF! ->  | E79: 423.9301582 | F79: 527.5613442 | G79: 636.2815206 | H79: 447.0462851
C80: Concessional Finance | D80: =#REF! ->  | E80: 423.9301582 | F80: 527.5613442 | G80: 636.2815206 | H80: 447.0462851
C81: Equity by SPV | D81: =#REF! ->  | E81: 94.20670182 | F81: 117.2358543 | G81: 141.3958935 | H81: 99.34361891
I82: 0
C83: Annuity per year | D83: =#REF! ->  | E83: 63.72149046 | F83: 72.68224847 | G83: 87.72990122 | H83: 57.71389314
C84: Yr 1 Debt Service | D84: =SUM(#REF!) ->  | E84: 101.4087068 | F84: 126.1984142 | G84: 152.2054634 | H84: 106.9383359
C85: Energy bill ( Post Project ) | D85: =#REF! ->  | E85: 82.24056332 | F85: 82.24056332 | G85: 100.0612402 | H85: 86.12670038
C86: Total Yr 1 Spend (Annuity+Debt Service+Energy) | D86: =SUM(D83:D85) ->  | E86: 247.3707606 | F86: 281.1212259 | G86: 339.9966048 | H86: 250.7789294
I87: 0
C88: Energy Bill ( Actual ) | D88: =#REF! ->  | E88: 91.6379478 | F88: 91.6379478 | G88: 91.6379478 | H88: 91.6379478
C89: Current O&M Spend | D89: =#REF! ->  | E89: 95 | F89: 95 | G89: 95 | H89: 95
C90: Energy bill ( Notional ) | D90: =#REF! ->  | E90: 162.7554491 | F90: 162.7554491 | G90: 162.7554491 | H90: 162.7554491
I91: 0
C92: Energy Savings p.a (M.Us) | D92: =#REF! ->  | E92: 1.368866653 | F92: 1.368866653 | G92: 1.065890004 | H92: 1.302796841
C93: Total Savings Yr1 (Actual Basis) | D93: =#REF! ->  | E93: -50.99531279 | F93: -84.74577815 | G93: -143.621157 | H93: -54.40348161
C94: Total Savings Yr1 (Notional Basis) | D94: =#REF! ->  | E94: 20.12218855 | F94: -13.62827681 | G94: -72.50365565 | H94: 16.71401973

Sheet Input Sheet
A1: Financial Proposal- Input Sheet
B3: Please fill the cells highlihghted in blue | E3: Input
E4: CLUSTER E
B5: Equipment Rate
B6: Particulars | D6: Unit | E6: Rate
B7: LED Luminaires
C8: LED110 | D8: INR per unit
C9: LED90 | D9: INR per unit
C10: LED70 | D10: INR per unit
C11: LED45 | D11: INR per unit
B13: Poles
C14: P1- 8 meter Height | D14: INR per pole
C15: P2- 9 meter Height | D15: INR per pole
C16: P-SPL | D16: INR per pole
B18: Pole Junction Box
C19: FRP pole junction box including clamps, bolts, 6 A MCB etc | D19: INR per unit
B21: Outreach arm
C22: Single Arm Bracket | D22: INR per unit
C23: Double Arm Bracket | D23: INR per unit
B25: Smart Feeder Panels
C26: 3 kW Rating | D26: INR / Panel
C27: 5 kW Rating | D27: INR / Panel
C28: 7.5 kW Rating | D28: INR / Panel
C29: 12 kW Rating | D29: INR / Panel
B31: Armoured PVC Cable -1.1 kV - 2C - Aluminium
C32: C1 - 2.5 Sq. mm. | D32: INR per meter
C33: C2 - 6 Sq. mm. | D33: INR per meter
C34: C3 - 10 Sq. mm. | D34: INR per meter
C35: C4 - 16 OR 25 Sq. mm. | D35: INR per meter
B37: Galvanised ‘D’ iron clamps For Holding Overhaed Cables
C38: Shackle insulator (75 mm X 90 mm) | D38: INR per unit
B40: Messenger Wire for Overhead Cables
C41: Aluminum Alloy messenger wire of 16 Sq mm | D41: INR per meter
B43: Earthing
C44: Electrodes - 450mm×450mm×10mm thick termination CI plate | D44: INR per unit
C45: GI Strip - of 25 x 5 mm | D45: INR per meter
B47: Misc- Base
C48: Pole Identification Marking | D48: INR per pole
C49: Hydraulic Lift | D49: INR per lift
B51: Misc- Automation
C52: Cluster Level Data Centre (Computer & Web Server) | D52: INR
C53: Software-Asset Management+Predictive Maintenance | D53: INR
B55: O&M Fee
B56: Particulars | D56: Unit | E56: Rate
B57: O&M Fee per fixture per annum | D57: INR/fixture

Sheet Bid Parameter Sheet - Cluster E
A1: Bid Parameter Sheet
B4: Bid Parameter Calculation | D4: Value
B5: Total Capital Expenditure (INR Lakhs) (A) | D5: =E57 -> 0
B6: NPV of Annual O&M Payments (B) (INR Lakhs) (C) | D6: =NPV(C68,E73:K73) -> 0
B7: Bid Parameter (INR Lakhs) (A + B) | D7: =D5+D6 -> 0
B9: Particulars | E9: Rate(a) | F9: No. (b) | G9: Cost(a*b)
B10: LED Luminaires | E10: INR | F10: Number | G10: INR Lakhs
B11: LED110 | D11: INR per unit | E11: ='Input Sheet'!E8 -> 0 | F11: 70 | G11: =E11*F11/10^5 -> 0
B12: LED90 | D12: INR per unit | E12: ='Input Sheet'!E9 -> 0 | F12: 1484 | G12: =E12*F12/10^5 -> 0
B13: LED70 | D13: INR per unit | E13: ='Input Sheet'!E10 -> 0 | F13: 1452 | G13: 0
B14: LED45 | D14: INR per unit | E14: ='Input Sheet'!E11 -> 0 | F14: 5751 | G14: 0
B16: Poles
B17: P1- 8 meter Height | D17: INR per pole | E17: ='Input Sheet'!E14 -> 0 | F17: 6897 | G17: =E17*F17/10^5 -> 0
B18: P2- 9 meter Height | D18: INR per pole | E18: ='Input Sheet'!E15 -> 0 | F18: 1716 | G18: 0
B19: P-SPL | D19: INR per pole | E19: ='Input Sheet'!E16 -> 0 | F19: 0 | G19: 0
B21: Pole Junction Box
B22: FRP pole junction box including clamps, bolts, 6 A MCB etc | D22: INR per unit | E22: ='Input Sheet'!E19 -> 0 | F22: 8613 | G22: =E22*F22/10^5 -> 0
B24: Outreach arm
B25: Single Arm Bracket | D25: INR per unit | E25: ='Input Sheet'!E22 -> 0 | F25: 8470 | G25: =E25*F25/10^5 -> 0
B26: Double Arm Bracket | D26: INR per unit | E26: ='Input Sheet'!E23 -> 0 | F26: 144 | G26: 0
B28: Smart Feeder Panels
B29: 3 kW Rating | D29: INR / Panel | E29: ='Input Sheet'!E26 -> 0 | F29: 136 | G29: =E29*F29/10^5 -> 0
B30: 5 kW Rating | D30: INR / Panel | E30: ='Input Sheet'!E27 -> 0 | F30: 51 | G30: 0
B31: 7.5 kW Rating | D31: INR / Panel | E31: ='Input Sheet'!E28 -> 0 | F31: 27 | G31: 0
B32: 12 kW Rating | D32: INR / Panel | E32: ='Input Sheet'!E29 -> 0 | F32: 9 | G32: 0
B34: 1.1 kV - 2C - Aluminium , PVC Insulated Inner sheathed Unarmoured Cable
B35: C1 - 2.5 Sq. mm. | D35: INR per meter | E35: ='Input Sheet'!E32 -> 0 | F35: 65570 | G35: =E35*F35/10^5 -> 0
B36: C2 - 6 Sq. mm. | D36: INR per meter | E36: ='Input Sheet'!E33 -> 0 | F36: 69085 | G36: 0
B37: C3 - 10 Sq. mm. | D37: INR per meter | E37: ='Input Sheet'!E34 -> 0 | F37: 48386 | G37: 0
B38: C4 - 16 OR 25 Sq. mm. | D38: INR per meter | E38: ='Input Sheet'!E35 -> 0 | F38: 22274 | G38: 0
B40: Galvanised ‘D’ iron clamps For Holding Overhaed Cables
B41: Shackle insulator (75 mm X 90 mm) | D41: INR per unit | E41: ='Input Sheet'!E38 -> 0 | F41: 8613 | G41: =E41*F41/10^5 -> 0
B43: Messenger Wire for Overhead Cables
B44: Aluminum Alloy messenger wire of 16 Sq mm | D44: INR per meter | E44: ='Input Sheet'!E41 -> 0 | F44: 205314 | G44: =E44*F44/10^5 -> 0
B46: Earthing
B47: Electrodes - 450mm×450mm×10mm thick termination CI plate | D47: INR per unit | E47: ='Input Sheet'!E44 -> 0 | F47: 1739 | G47: =E47*F47/10^5 -> 0
B48: GI Strip - of 25 x 5 mm | D48: INR per meter | E48: ='Input Sheet'!E45 -> 0 | F48: 205314 | G48: 0
B50: Misc- Base
B51: Pole Identification Marking | D51: INR per pole | E51: ='Input Sheet'!E48 -> 0 | F51: 8613 | G51: =E51*F51/10^5 -> 0
B52: Hydraulic Lift | D52: INR per lift | E52: ='Input Sheet'!E49 -> 0 | F52: 2 | G52: 0
B54: Misc- Automation
B55: Cluster Level Data Centre (Computer & Web Server) | D55: INR | E55: ='Input Sheet'!E52 -> 0 | F55: 1 | G55: =E55*F55/10^5 -> 0
B56: Software-Asset Management+Predictive Maintenance | D56: INR | E56: ='Input Sheet'!E53 -> 0 | F56: 1 | G56: 0
B57: Total Capital Expenditure (A) | D57: INR Lakhs | E57: =SUM(G11:G56) -> 0
B59: O&M Fee | D59: INR/fixture | E59: ='Input Sheet'!E57 -> 0
B60: Total Number of LED Luminaires | D60: Number | E60: =SUM(F11:F14) -> 8757
B61: O&M Escalation | D61: % | E61: 0.1
B62: Annual O&M Payment | D62: INR Lakhs | E62: =(E59*E60)/10^5 -> 0
B64: Total Capital Expenditure (A) | C64: =E57 -> 0
B65: Upfront financing by Authority | C65: 0.9
B66: Balance Recovery of Capex | C66: =C64*(1-C65) -> 0
B67: Pre TAX ROE | C67: 0.26
B68: Discount Rate | C68: 0.09
E70: 1 | F70: 2 | G70: 3 | H70: 4 | I70: 5 | J70: 6 | K70: 7
B71: Discount factor | E71: =1/(1+$C$68)^(E70-$E$70) -> 1 | F71: =1/(1+$C$68)^(F70-$E$70) -> 0.9174311927 | G71: 0.8416799933 | H71: 0.7721834801 | I71: 0.7084252111 | J71: 0.6499313863 | K71: 0.5962673269
B72: Capex component of Annuity Fee | E72: =$C$67*$C$66 -> 0 | F72: =$C$67*$C$66 -> 0 | G72: =$C$67*$C$66 -> 0 | H72: 0 | I72: 0 | J72: 0 | K72: 0
B73: Annual Opex | E73: =E62 -> 0 | F73: =E73*(1+$E$61) -> 0 | G73: =F73*(1+$E$61) -> 0 | H73: =G73*(1+$E$61) -> 0 | I73: 0 | J73: 0 | K73: 0
B74: Total | E74: =SUM(E72:E73) -> 0 | F74: =SUM(F72:F73) -> 0 | G74: =SUM(G72:G73) -> 0 | H74: 0 | I74: 0 | J74: 0 | K74: =SUM(K72:K73) -> 0
B75: Levelized O&M per annum (INR Lakhs) | E75: =SUMPRODUCT(E73:K73,E71:K71)/SUM(E71:K71) -> 0
B76: Annuity fee (INR lakhs per annum) | E76: =E75+E72 -> 0

Sheet Data from MCs (hidden)
A1: Affordability Analysis
G2: INR Million
B3: Before Project (2014-15 budget estimates) | D3: Cuttack | E3: Berhampur | F3: Sambalpur | G3: Rourkela
B4: Lighting tax | E4: 8000000 | F4: 464500000
B5: Street Lighting grant (performance based incentives) | D5: 10000000 | E5: 5000000
B6: Total (to be considered towards project) | D6: 0 | E6: 0 | F6: 0 | G6: 0
B8: Electrical installation & maintenance /provision of street light | D8: 20000000 | E8: 8000000 | G8: 12000000
B9: Street Light grant | D9: 8000000 | F9: 9460000 | G9: 4000000
B10: Any other street lighting related expenditure | E10: 10000000 | G10: 10000000
B11: Total (to be considered) | D11: =SUM(D8:D10) -> 28000000 | E11: =SUM(E8:E10) -> 18000000 | F11: =SUM(F8:F10) -> 9460000 | G11: =G8+G10 -> 22000000
B13: After Project
B15: Notes
B16: Cuttack revenues for 2014-15 much higher than 13-14 actuals
B17: 2013 -14 figures are 9 months for all except Sambalpur
B19: Energy consumption (from budget) | D19: 80000000 | E19: 80000000 | F19: 5000000 | G19: 22500000
B20: Energy consumption (from bills) | D20: 40427725 | E20: =1.5*7606166 -> 11409249 | F20: 8311832 | G20: 9645966

Sheet EESL Returns (hidden)
A1: =RIGHT(CELL("filename", $A$1), LEN(CELL("filename", $A$1)) - SEARCH("]", CELL("filename", $A$1))) -> EESL Returns
E2: Period Beginning | H2: =#REF! ->  | I2: =#REF! ->  | J2: =#REF! ->  | K2: =#REF! ->  | L2: =#REF! ->  | M2: =#REF! ->  | N2: =#REF! ->  | O2: =#REF! ->  | P2: =#REF! ->  | Q2: =#REF! ->  | R2: =#REF! ->  | S2: =#REF! ->  | T2: =#REF! ->  | U2: =#REF! ->  | V2: =#REF! ->  | W2: =#REF! ->  | X2: =#REF! ->  | Y2: =#REF! ->  | Z2: =#REF! ->  | AA2: =#REF! ->  | AB2: =#REF! ->  | AC2: =#REF! ->  | AD2: =#REF! ->  | AE2: =#REF! ->  | AF2: =#REF! ->  | AG2: =#REF! ->  | AH2: =#REF! ->  | AI2: =#REF! ->  | AJ2: =#REF! ->  | AK2: =#REF! ->  | AL2: =#REF! ->  | AM2: =#REF! ->  | AN2: =#REF! ->  | AO2: =#REF! ->  | AP2: =#REF! ->  | AQ2: =#REF! ->  | AR2: =#REF! ->  | AS2: =#REF! ->  | AT2: =#REF! ->  | AU2: =#REF! ->  | AV2: =#REF! ->  | AW2: =#REF! ->  | AX2: =#REF! ->  | AY2: =#REF! ->  | AZ2: =#REF! ->  | FA2: =#REF! ->  | FB2: =#REF! -> 
E3: Period Ending | H3: =#REF! ->  | I3: =#REF! ->  | J3: =#REF! ->  | K3: =#REF! ->  | L3: =#REF! ->  | M3: =#REF! ->  | N3: =#REF! ->  | O3: =#REF! ->  | P3: =#REF! ->  | Q3: =#REF! ->  | R3: =#REF! ->  | S3: =#REF! ->  | T3: =#REF! ->  | U3: =#REF! ->  | V3: =#REF! ->  | W3: =#REF! ->  | X3: =#REF! ->  | Y3: =#REF! ->  | Z3: =#REF! ->  | AA3: =#REF! ->  | AB3: =#REF! ->  | AC3: =#REF! ->  | AD3: =#REF! ->  | AE3: =#REF! ->  | AF3: =#REF! ->  | AG3: =#REF! ->  | AH3: =#REF! ->  | AI3: =#REF! ->  | AJ3: =#REF! ->  | AK3: =#REF! ->  | AL3: =#REF! ->  | AM3: =#REF! ->  | AN3: =#REF! ->  | AO3: =#REF! ->  | AP3: =#REF! ->  | AQ3: =#REF! ->  | AR3: =#REF! ->  | AS3: =#REF! ->  | AT3: =#REF! ->  | AU3: =#REF! ->  | AV3: =#REF! ->  | AW3: =#REF! ->  | AX3: =#REF! ->  | AY3: =#REF! ->  | AZ3: =#REF! ->  | FA3: =#REF! ->  | FB3: =#REF! -> 
E4: Financial Year Ending | H4: =#REF! ->  | I4: =#REF! ->  | J4: =#REF! ->  | K4: =#REF! ->  | L4: =#REF! ->  | M4: =#REF! ->  | N4: =#REF! ->  | O4: =#REF! ->  | P4: =#REF! ->  | Q4: =#REF! ->  | R4: =#REF! ->  | S4: =#REF! ->  | T4: =#REF! ->  | U4: =#REF! ->  | V4: =#REF! ->  | W4: =#REF! ->  | X4: =#REF! ->  | Y4: =#REF! ->  | Z4: =#REF! ->  | AA4: =#REF! ->  | AB4: =#REF! ->  | AC4: =#REF! ->  | AD4: =#REF! ->  | AE4: =#REF! ->  | AF4: =#REF! ->  | AG4: =#REF! ->  | AH4: =#REF! ->  | AI4: =#REF! ->  | AJ4: =#REF! ->  | AK4: =#REF! ->  | AL4: =#REF! ->  | AM4: =#REF! ->  | AN4: =#REF! ->  | AO4: =#REF! ->  | AP4: =#REF! ->  | AQ4: =#REF! ->  | AR4: =#REF! ->  | AS4: =#REF! ->  | AT4: =#REF! ->  | AU4: =#REF! ->  | AV4: =#REF! ->  | AW4: =#REF! ->  | AX4: =#REF! ->  | AY4: =#REF! ->  | AZ4: =#REF! ->  | FA4: =#REF! ->  | FB4: =#REF! -> 
E5: Year of Construction | H5: =#REF! ->  | I5: =#REF! ->  | J5: =#REF! ->  | K5: =#REF! ->  | L5: =#REF! ->  | M5: =#REF! ->  | N5: =#REF! ->  | O5: =#REF! ->  | P5: =#REF! ->  | Q5: =#REF! ->  | R5: =#REF! ->  | S5: =#REF! ->  | T5: =#REF! ->  | U5: =#REF! ->  | V5: =#REF! ->  | W5: =#REF! ->  | X5: =#REF! ->  | Y5: =#REF! ->  | Z5: =#REF! ->  | AA5: =#REF! ->  | AB5: =#REF! ->  | AC5: =#REF! ->  | AD5: =#REF! ->  | AE5: =#REF! ->  | AF5: =#REF! ->  | AG5: =#REF! ->  | AH5: =#REF! ->  | AI5: =#REF! ->  | AJ5: =#REF! ->  | AK5: =#REF! ->  | AL5: =#REF! ->  | AM5: =#REF! ->  | AN5: =#REF! ->  | AO5: =#REF! ->  | AP5: =#REF! ->  | AQ5: =#REF! ->  | AR5: =#REF! ->  | AS5: =#REF! ->  | AT5: =#REF! ->  | AU5: =#REF! ->  | AV5: =#REF! ->  | AW5: =#REF! ->  | AX5: =#REF! ->  | AY5: =#REF! ->  | AZ5: =#REF! ->  | FA5: =#REF! ->  | FB5: =#REF! -> 
E6: Year of operations | H6: =#REF! ->  | I6: =#REF! ->  | J6: =#REF! ->  | K6: =#REF! ->  | L6: =#REF! ->  | M6: =#REF! ->  | N6: =#REF! ->  | O6: =#REF! ->  | P6: =#REF! ->  | Q6: =#REF! ->  | R6: =#REF! ->  | S6: =#REF! ->  | T6: =#REF! ->  | U6: =#REF! ->  | V6: =#REF! ->  | W6: =#REF! ->  | X6: =#REF! ->  | Y6: =#REF! ->  | Z6: =#REF! ->  | AA6: =#REF! ->  | AB6: =#REF! ->  | AC6: =#REF! ->  | AD6: =#REF! ->  | AE6: =#REF! ->  | AF6: =#REF! ->  | AG6: =#REF! ->  | AH6: =#REF! ->  | AI6: =#REF! ->  | AJ6: =#REF! ->  | AK6: =#REF! ->  | AL6: =#REF! ->  | AM6: =#REF! ->  | AN6: =#REF! ->  | AO6: =#REF! ->  | AP6: =#REF! ->  | AQ6: =#REF! ->  | AR6: =#REF! ->  | AS6: =#REF! ->  | AT6: =#REF! ->  | AU6: =#REF! ->  | AV6: =#REF! ->  | AW6: =#REF! ->  | AX6: =#REF! ->  | AY6: =#REF! ->  | AZ6: =#REF! ->  | FA6: =#REF! ->  | FB6: =#REF! -> 
E7: Days in period | H7: =#REF! ->  | I7: =#REF! ->  | J7: =#REF! ->  | K7: =#REF! ->  | L7: =#REF! ->  | M7: =#REF! ->  | N7: =#REF! ->  | O7: =#REF! ->  | P7: =#REF! ->  | Q7: =#REF! ->  | R7: =#REF! ->  | S7: =#REF! ->  | T7: =#REF! ->  | U7: =#REF! ->  | V7: =#REF! ->  | W7: =#REF! ->  | X7: =#REF! ->  | Y7: =#REF! ->  | Z7: =#REF! ->  | AA7: =#REF! ->  | AB7: =#REF! ->  | AC7: =#REF! ->  | AD7: =#REF! ->  | AE7: =#REF! ->  | AF7: =#REF! ->  | AG7: =#REF! ->  | AH7: =#REF! ->  | AI7: =#REF! ->  | AJ7: =#REF! ->  | AK7: =#REF! ->  | AL7: =#REF! ->  | AM7: =#REF! ->  | AN7: =#REF! ->  | AO7: =#REF! ->  | AP7: =#REF! ->  | AQ7: =#REF! ->  | AR7: =#REF! ->  | AS7: =#REF! ->  | AT7: =#REF! ->  | AU7: =#REF! ->  | AV7: =#REF! ->  | AW7: =#REF! ->  | AX7: =#REF! ->  | AY7: =#REF! ->  | AZ7: =#REF! ->  | FA7: =#REF! ->  | FB7: =#REF! -> 
B8: INR Lakhs unless specified
E10: Concession Period | F10: =#REF! -> 
E11: EESL Equity Share in SPV | F11: =#REF! -> 
E12: Pre Tax EESL Cost of Equity | F12: =#REF! -> 
E14: EESL financing Terms | FA14: =#REF! -> 
E15: Debt | F15: 0.8
E16: Equity | F16: =1-F15 -> 0.2
E18: EESL Investment in SPV | F18: =SUM(H18:AZ18) ->  | H18: =IF(#REF!<0,#REF!,0) ->  | I18: =IF(#REF!<0,#REF!,0) ->  | J18: =IF(#REF!<0,#REF!,0) ->  | K18: =IF(#REF!<0,#REF!,0) ->  | L18: =IF(#REF!<0,#REF!,0) ->  | M18: =IF(#REF!<0,#REF!,0) ->  | N18: =IF(#REF!<0,#REF!,0) ->  | O18: =IF(#REF!<0,#REF!,0) ->  | P18: =IF(#REF!<0,#REF!,0) ->  | Q18: =IF(#REF!<0,#REF!,0) ->  | R18: =IF(#REF!<0,#REF!,0) ->  | S18: =IF(#REF!<0,#REF!,0) ->  | T18: =IF(#REF!<0,#REF!,0) ->  | U18: =IF(#REF!<0,#REF!,0) ->  | V18: =IF(#REF!<0,#REF!,0) ->  | W18: =IF(#REF!<0,#REF!,0) ->  | X18: =IF(#REF!<0,#REF!,0) ->  | Y18: =IF(#REF!<0,#REF!,0) ->  | Z18: =IF(#REF!<0,#REF!,0) ->  | AA18: =IF(#REF!<0,#REF!,0) ->  | AB18: =IF(#REF!<0,#REF!,0) ->  | AC18: =IF(#REF!<0,#REF!,0) ->  | AD18: =IF(#REF!<0,#REF!,0) ->  | AE18: =IF(#REF!<0,#REF!,0) ->  | AF18: =IF(#REF!<0,#REF!,0) ->  | AG18: =IF(#REF!<0,#REF!,0) ->  | AH18: =IF(#REF!<0,#REF!,0) ->  | AI18: =IF(#REF!<0,#REF!,0) ->  | AJ18: =IF(#REF!<0,#REF!,0) ->  | AK18: =IF(#REF!<0,#REF!,0) ->  | AL18: =IF(#REF!<0,#REF!,0) ->  | AM18: =IF(#REF!<0,#REF!,0) ->  | AN18: =IF(#REF!<0,#REF!,0) ->  | AO18: =IF(#REF!<0,#REF!,0) ->  | AP18: =IF(#REF!<0,#REF!,0) ->  | AQ18: =IF(#REF!<0,#REF!,0) ->  | AR18: =IF(#REF!<0,#REF!,0) ->  | AS18: =IF(#REF!<0,#REF!,0) ->  | AT18: =IF(#REF!<0,#REF!,0) ->  | AU18: =IF(#REF!<0,#REF!,0) ->  | AV18: =IF(#REF!<0,#REF!,0) ->  | AW18: =IF(#REF!<0,#REF!,0) ->  | AX18: =IF(#REF!<0,#REF!,0) ->  | AY18: =IF(#REF!<0,#REF!,0) ->  | AZ18: =IF(#REF!<0,#REF!,0) -> 
E19: Grant Share for EESL end of operations period | F19: =SUM(H19:AZ19) -> 0
E20: EESL Dividend Share from SPV | F20: =SUM(H20:AZ20) ->  | H20: =#REF! ->  | I20: =#REF! ->  | J20: =#REF! ->  | K20: =#REF! ->  | L20: =#REF! ->  | M20: =#REF! ->  | N20: =#REF! ->  | O20: =#REF! ->  | P20: =#REF! ->  | Q20: =#REF! ->  | R20: =#REF! ->  | S20: =#REF! ->  | T20: =#REF! ->  | U20: =#REF! ->  | V20: =#REF! ->  | W20: =#REF! ->  | X20: =#REF! ->  | Y20: =#REF! ->  | Z20: =#REF! ->  | AA20: =#REF! ->  | AB20: =#REF! ->  | AC20: =#REF! ->  | AD20: =#REF! ->  | AE20: =#REF! ->  | AF20: =#REF! ->  | AG20: =#REF! ->  | AH20: =#REF! ->  | AI20: =#REF! ->  | AJ20: =#REF! ->  | AK20: =#REF! ->  | AL20: =#REF! ->  | AM20: =#REF! ->  | AN20: =#REF! ->  | AO20: =#REF! ->  | AP20: =#REF! ->  | AQ20: =#REF! ->  | AR20: =#REF! ->  | AS20: =#REF! ->  | AT20: =#REF! ->  | AU20: =#REF! ->  | AV20: =#REF! ->  | AW20: =#REF! ->  | AX20: =#REF! ->  | AY20: =#REF! ->  | AZ20: =#REF! -> 
E22: Net EESL Equity Investment | F22: =F18*$F$16 -> 
E24: Opening Balance | I24: =H27 ->  | J24: =I27 -> 
E25: EESL Equity | H25: =IF(H18<0,H18*$F$16,0) -> 
E26: Annual Recovery of Balance Capital | F26: =SUM(H26:AZ26) ->  | H26: =IF(H6>0,-$F$22/$F$10,0) -> 
E27: Closing Balance | H27: =SUM(H24:H26) -> 
E29: Grant Share for EESl Shareholders | H29: =H19*$F$16 -> 0 | I29: 0 | J29: 0 | K29: 0 | L29: 0 | M29: 0 | N29: 0 | O29: 0 | P29: 0 | Q29: 0 | R29: 0 | S29: 0 | T29: 0 | U29: 0 | V29: 0 | W29: 0 | X29: 0 | Y29: 0 | Z29: 0 | AA29: 0 | AB29: 0 | AC29: 0 | AD29: 0 | AE29: 0 | AF29: 0 | AG29: 0 | AH29: 0 | AI29: 0 | AJ29: 0 | AK29: 0 | AL29: 0 | AM29: 0 | AN29: 0 | AO29: 0 | AP29: 0 | AQ29: 0 | AR29: 0 | AS29: 0 | AT29: 0 | AU29: 0 | AV29: 0 | AW29: 0 | AX29: 0 | AY29: 0 | AZ29: 0
E30: Required Dividend Share for EESL Shareholders | H30: =H20*$F$16 -> 
E31: IRR to EESL Shareholders | F31: =XIRR(I31:AZ31,I3:AZ3) ->  | H31: =SUM(H25:H26,H29:H30) ->  | I31: =SUM(I25:I26,I29:I30) -> 
E33: Split of Dividend
E34: Dividend disbursed to Shareholder | F34: =SUM(H34:AZ34) ->  | H34: =SUM(H29:H30,H26) ->  | I34: =SUM(I29:I30,I26) -> 
E35: Dividend for corporate debt repayments | F35: =SUM(H35:AZ35) ->  | H35: =H20-H34 ->  | I35: =I20-I34 -> 

Sheet Metrics(USD) (hidden)
A1: =RIGHT(CELL("filename", $A$1), LEN(CELL("filename", $A$1)) - SEARCH("]", CELL("filename", $A$1))) -> Metrics(USD)
E2: Period Beginning | H2: =#REF! ->  | I2: =#REF! ->  | J2: =#REF! ->  | K2: =#REF! ->  | L2: =#REF! ->  | M2: =#REF! ->  | N2: =#REF! ->  | O2: =#REF! ->  | P2: =#REF! ->  | Q2: =#REF! ->  | R2: =#REF! ->  | S2: =#REF! ->  | T2: =#REF! ->  | U2: =#REF! ->  | V2: =#REF! ->  | W2: =#REF! ->  | X2: =#REF! ->  | Y2: =#REF! ->  | Z2: =#REF! ->  | AA2: =#REF! ->  | AB2: =#REF! ->  | AC2: =#REF! ->  | AD2: =#REF! ->  | AE2: =#REF! ->  | AF2: =#REF! ->  | AG2: =#REF! ->  | AH2: =#REF! ->  | AI2: =#REF! ->  | AJ2: =#REF! ->  | AK2: =#REF! ->  | AL2: =#REF! ->  | AM2: =#REF! ->  | AN2: =#REF! ->  | AO2: =#REF! ->  | AP2: =#REF! ->  | AQ2: =#REF! ->  | AR2: =#REF! ->  | AS2: =#REF! ->  | AT2: =#REF! -> 
E3: Period Ending | H3: =#REF! ->  | I3: =#REF! ->  | J3: =#REF! ->  | K3: =#REF! ->  | L3: =#REF! ->  | M3: =#REF! ->  | N3: =#REF! ->  | O3: =#REF! ->  | P3: =#REF! ->  | Q3: =#REF! ->  | R3: =#REF! ->  | S3: =#REF! ->  | T3: =#REF! ->  | U3: =#REF! ->  | V3: =#REF! ->  | W3: =#REF! ->  | X3: =#REF! ->  | Y3: =#REF! ->  | Z3: =#REF! ->  | AA3: =#REF! ->  | AB3: =#REF! ->  | AC3: =#REF! ->  | AD3: =#REF! ->  | AE3: =#REF! ->  | AF3: =#REF! ->  | AG3: =#REF! ->  | AH3: =#REF! ->  | AI3: =#REF! ->  | AJ3: =#REF! ->  | AK3: =#REF! ->  | AL3: =#REF! ->  | AM3: =#REF! ->  | AN3: =#REF! ->  | AO3: =#REF! ->  | AP3: =#REF! ->  | AQ3: =#REF! ->  | AR3: =#REF! ->  | AS3: =#REF! ->  | AT3: =#REF! -> 
E4: Financial Year Ending | H4: =#REF! ->  | I4: =#REF! ->  | J4: =#REF! ->  | K4: =#REF! ->  | L4: =#REF! ->  | M4: =#REF! ->  | N4: =#REF! ->  | O4: =#REF! ->  | P4: =#REF! ->  | Q4: =#REF! ->  | R4: =#REF! ->  | S4: =#REF! ->  | T4: =#REF! ->  | U4: =#REF! ->  | V4: =#REF! ->  | W4: =#REF! ->  | X4: =#REF! ->  | Y4: =#REF! ->  | Z4: =#REF! ->  | AA4: =#REF! ->  | AB4: =#REF! ->  | AC4: =#REF! ->  | AD4: =#REF! ->  | AE4: =#REF! ->  | AF4: =#REF! ->  | AG4: =#REF! ->  | AH4: =#REF! ->  | AI4: =#REF! ->  | AJ4: =#REF! ->  | AK4: =#REF! ->  | AL4: =#REF! ->  | AM4: =#REF! ->  | AN4: =#REF! ->  | AO4: =#REF! ->  | AP4: =#REF! ->  | AQ4: =#REF! ->  | AR4: =#REF! ->  | AS4: =#REF! ->  | AT4: =#REF! -> 
E5: Year of Construction | H5: =#REF! ->  | I5: =#REF! ->  | J5: =#REF! ->  | K5: =#REF! ->  | L5: =#REF! ->  | M5: =#REF! ->  | N5: =#REF! ->  | O5: =#REF! ->  | P5: =#REF! ->  | Q5: =#REF! ->  | R5: =#REF! ->  | S5: =#REF! ->  | T5: =#REF! ->  | U5: =#REF! ->  | V5: =#REF! ->  | W5: =#REF! ->  | X5: =#REF! ->  | Y5: =#REF! ->  | Z5: =#REF! ->  | AA5: =#REF! ->  | AB5: =#REF! ->  | AC5: =#REF! ->  | AD5: =#REF! ->  | AE5: =#REF! ->  | AF5: =#REF! ->  | AG5: =#REF! ->  | AH5: =#REF! ->  | AI5: =#REF! ->  | AJ5: =#REF! ->  | AK5: =#REF! ->  | AL5: =#REF! ->  | AM5: =#REF! ->  | AN5: =#REF! ->  | AO5: =#REF! ->  | AP5: =#REF! ->  | AQ5: =#REF! ->  | AR5: =#REF! ->  | AS5: =#REF! ->  | AT5: =#REF! -> 
E6: Year of operations | H6: =#REF! ->  | I6: =#REF! ->  | J6: =#REF! ->  | K6: =#REF! ->  | L6: =#REF! ->  | M6: =#REF! ->  | N6: =#REF! ->  | O6: =#REF! ->  | P6: =#REF! ->  | Q6: =#REF! ->  | R6: =#REF! ->  | S6: =#REF! ->  | T6: =#REF! ->  | U6: =#REF! ->  | V6: =#REF! ->  | W6: =#REF! ->  | X6: =#REF! ->  | Y6: =#REF! ->  | Z6: =#REF! ->  | AA6: =#REF! ->  | AB6: =#REF! ->  | AC6: =#REF! ->  | AD6: =#REF! ->  | AE6: =#REF! ->  | AF6: =#REF! ->  | AG6: =#REF! ->  | AH6: =#REF! ->  | AI6: =#REF! ->  | AJ6: =#REF! ->  | AK6: =#REF! ->  | AL6: =#REF! ->  | AM6: =#REF! ->  | AN6: =#REF! ->  | AO6: =#REF! ->  | AP6: =#REF! ->  | AQ6: =#REF! ->  | AR6: =#REF! ->  | AS6: =#REF! ->  | AT6: =#REF! -> 
E7: Days in period | H7: =#REF! ->  | I7: =#REF! ->  | J7: =#REF! ->  | K7: =#REF! ->  | L7: =#REF! ->  | M7: =#REF! ->  | N7: =#REF! ->  | O7: =#REF! ->  | P7: =#REF! ->  | Q7: =#REF! ->  | R7: =#REF! ->  | S7: =#REF! ->  | T7: =#REF! ->  | U7: =#REF! ->  | V7: =#REF! ->  | W7: =#REF! ->  | X7: =#REF! ->  | Y7: =#REF! ->  | Z7: =#REF! ->  | AA7: =#REF! ->  | AB7: =#REF! ->  | AC7: =#REF! ->  | AD7: =#REF! ->  | AE7: =#REF! ->  | AF7: =#REF! ->  | AG7: =#REF! ->  | AH7: =#REF! ->  | AI7: =#REF! ->  | AJ7: =#REF! ->  | AK7: =#REF! ->  | AL7: =#REF! ->  | AM7: =#REF! ->  | AN7: =#REF! ->  | AO7: =#REF! ->  | AP7: =#REF! ->  | AQ7: =#REF! ->  | AR7: =#REF! ->  | AS7: =#REF! ->  | AT7: =#REF! -> 
A8: figures in USD millions
E9: INR/USD conversion | F9: =#REF! -> 
F11: average
C12: Operating Metrics
H13: =H3 ->  | I13: =I3 -> 
E15: Revenue | F15: =AVERAGE(K15:AS15) ->  | H15: =#REF!/$F$9 ->  | I15: =#REF!/$F$9 ->  | J15: =#REF!/$F$9 ->  | K15: =#REF!/$F$9 ->  | L15: =#REF!/$F$9 ->  | M15: =#REF!/$F$9 ->  | N15: =#REF!/$F$9 ->  | O15: =#REF!/$F$9 ->  | P15: =#REF!/$F$9 ->  | Q15: =#REF!/$F$9 ->  | R15: =#REF!/$F$9 ->  | S15: =#REF!/$F$9 ->  | T15: =#REF!/$F$9 ->  | U15: =#REF!/$F$9 ->  | V15: =#REF!/$F$9 ->  | W15: =#REF!/$F$9 ->  | X15: =#REF!/$F$9 ->  | Y15: =#REF!/$F$9 ->  | Z15: =#REF!/$F$9 ->  | AA15: =#REF!/$F$9 ->  | AB15: =#REF!/$F$9 ->  | AC15: =#REF!/$F$9 ->  | AD15: =#REF!/$F$9 ->  | AE15: =#REF!/$F$9 ->  | AF15: =#REF!/$F$9 ->  | AG15: =#REF!/$F$9 ->  | AH15: =#REF!/$F$9 ->  | AI15: =#REF!/$F$9 ->  | AJ15: =#REF!/$F$9 ->  | AK15: =#REF!/$F$9 ->  | AL15: =#REF!/$F$9 ->  | AM15: =#REF!/$F$9 ->  | AN15: =#REF!/$F$9 ->  | AO15: =#REF!/$F$9 ->  | AP15: =#REF!/$F$9 ->  | AQ15: =#REF!/$F$9 ->  | AR15: =#REF!/$F$9 ->  | AS15: =#REF!/$F$9 -> 
E16: Operating Profit/EBITDA | F16: =AVERAGE(K16:AS16) ->  | H16: =#REF!/$F$9 ->  | I16: =#REF!/$F$9 ->  | J16: =#REF!/$F$9 ->  | K16: =#REF!/$F$9 ->  | L16: =#REF!/$F$9 ->  | M16: =#REF!/$F$9 ->  | N16: =#REF!/$F$9 ->  | O16: =#REF!/$F$9 ->  | P16: =#REF!/$F$9 ->  | Q16: =#REF!/$F$9 ->  | R16: =#REF!/$F$9 ->  | S16: =#REF!/$F$9 ->  | T16: =#REF!/$F$9 ->  | U16: =#REF!/$F$9 ->  | V16: =#REF!/$F$9 ->  | W16: =#REF!/$F$9 ->  | X16: =#REF!/$F$9 ->  | Y16: =#REF!/$F$9 ->  | Z16: =#REF!/$F$9 ->  | AA16: =#REF!/$F$9 ->  | AB16: =#REF!/$F$9 ->  | AC16: =#REF!/$F$9 ->  | AD16: =#REF!/$F$9 ->  | AE16: =#REF!/$F$9 ->  | AF16: =#REF!/$F$9 ->  | AG16: =#REF!/$F$9 ->  | AH16: =#REF!/$F$9 ->  | AI16: =#REF!/$F$9 ->  | AJ16: =#REF!/$F$9 ->  | AK16: =#REF!/$F$9 ->  | AL16: =#REF!/$F$9 ->  | AM16: =#REF!/$F$9 ->  | AN16: =#REF!/$F$9 ->  | AO16: =#REF!/$F$9 ->  | AP16: =#REF!/$F$9 ->  | AQ16: =#REF!/$F$9 ->  | AR16: =#REF!/$F$9 ->  | AS16: =#REF!/$F$9 -> 
E17: Profit after Tax (PAT) | F17: =AVERAGE(K17:AS17) ->  | H17: =#REF!/$F$9 ->  | I17: =#REF!/$F$9 ->  | J17: =#REF!/$F$9 ->  | K17: =#REF!/$F$9 ->  | L17: =#REF!/$F$9 ->  | M17: =#REF!/$F$9 ->  | N17: =#REF!/$F$9 ->  | O17: =#REF!/$F$9 ->  | P17: =#REF!/$F$9 ->  | Q17: =#REF!/$F$9 ->  | R17: =#REF!/$F$9 ->  | S17: =#REF!/$F$9 ->  | T17: =#REF!/$F$9 ->  | U17: =#REF!/$F$9 ->  | V17: =#REF!/$F$9 ->  | W17: =#REF!/$F$9 ->  | X17: =#REF!/$F$9 ->  | Y17: =#REF!/$F$9 ->  | Z17: =#REF!/$F$9 ->  | AA17: =#REF!/$F$9 ->  | AB17: =#REF!/$F$9 ->  | AC17: =#REF!/$F$9 ->  | AD17: =#REF!/$F$9 ->  | AE17: =#REF!/$F$9 ->  | AF17: =#REF!/$F$9 ->  | AG17: =#REF!/$F$9 ->  | AH17: =#REF!/$F$9 ->  | AI17: =#REF!/$F$9 ->  | AJ17: =#REF!/$F$9 ->  | AK17: =#REF!/$F$9 ->  | AL17: =#REF!/$F$9 ->  | AM17: =#REF!/$F$9 ->  | AN17: =#REF!/$F$9 ->  | AO17: =#REF!/$F$9 ->  | AP17: =#REF!/$F$9 ->  | AQ17: =#REF!/$F$9 ->  | AR17: =#REF!/$F$9 ->  | AS17: =#REF!/$F$9 -> 
E19: CADS | F19: =AVERAGE(K19:V19) ->  | H19: =#REF!/$F$9 ->  | I19: =#REF!/$F$9 ->  | J19: =#REF!/$F$9 ->  | K19: =#REF!/$F$9 ->  | L19: =#REF!/$F$9 ->  | M19: =#REF!/$F$9 ->  | N19: =#REF!/$F$9 ->  | O19: =#REF!/$F$9 ->  | P19: =#REF!/$F$9 ->  | Q19: =#REF!/$F$9 ->  | R19: =#REF!/$F$9 ->  | S19: =#REF!/$F$9 ->  | T19: =#REF!/$F$9 ->  | U19: =#REF!/$F$9 ->  | V19: =#REF!/$F$9 ->  | W19: =#REF!/$F$9 ->  | X19: =#REF!/$F$9 ->  | Y19: =#REF!/$F$9 ->  | Z19: =#REF!/$F$9 ->  | AA19: =#REF!/$F$9 ->  | AB19: =#REF!/$F$9 ->  | AC19: =#REF!/$F$9 ->  | AD19: =#REF!/$F$9 ->  | AE19: =#REF!/$F$9 ->  | AF19: =#REF!/$F$9 ->  | AG19: =#REF!/$F$9 ->  | AH19: =#REF!/$F$9 ->  | AI19: =#REF!/$F$9 ->  | AJ19: =#REF!/$F$9 ->  | AK19: =#REF!/$F$9 ->  | AL19: =#REF!/$F$9 ->  | AM19: =#REF!/$F$9 ->  | AN19: =#REF!/$F$9 ->  | AO19: =#REF!/$F$9 ->  | AP19: =#REF!/$F$9 ->  | AQ19: =#REF!/$F$9 ->  | AR19: =#REF!/$F$9 ->  | AS19: =#REF!/$F$9 -> 
E20: Debt Service | F20: =AVERAGE(K20:V20) ->  | H20: =#REF!/$F$9 ->  | I20: =#REF!/$F$9 ->  | J20: =#REF!/$F$9 ->  | K20: =#REF!/$F$9 ->  | L20: =#REF!/$F$9 ->  | M20: =#REF!/$F$9 ->  | N20: =#REF!/$F$9 ->  | O20: =#REF!/$F$9 ->  | P20: =#REF!/$F$9 ->  | Q20: =#REF!/$F$9 ->  | R20: =#REF!/$F$9 ->  | S20: =#REF!/$F$9 ->  | T20: =#REF!/$F$9 ->  | U20: =#REF!/$F$9 ->  | V20: =#REF!/$F$9 ->  | W20: =#REF!/$F$9 ->  | X20: =#REF!/$F$9 ->  | Y20: =#REF!/$F$9 ->  | Z20: =#REF!/$F$9 ->  | AA20: =#REF!/$F$9 ->  | AB20: =#REF!/$F$9 ->  | AC20: =#REF!/$F$9 ->  | AD20: =#REF!/$F$9 ->  | AE20: =#REF!/$F$9 ->  | AF20: =#REF!/$F$9 ->  | AG20: =#REF!/$F$9 ->  | AH20: =#REF!/$F$9 ->  | AI20: =#REF!/$F$9 ->  | AJ20: =#REF!/$F$9 ->  | AK20: =#REF!/$F$9 ->  | AL20: =#REF!/$F$9 ->  | AM20: =#REF!/$F$9 ->  | AN20: =#REF!/$F$9 ->  | AO20: =#REF!/$F$9 ->  | AP20: =#REF!/$F$9 ->  | AQ20: =#REF!/$F$9 ->  | AR20: =#REF!/$F$9 ->  | AS20: =#REF!/$F$9 -> 
E22: Fixed Asset (Net Block) | H22: =#REF!/$F$9 ->  | I22: =#REF!/$F$9 ->  | J22: =#REF!/$F$9 ->  | K22: =#REF!/$F$9 ->  | L22: =#REF!/$F$9 ->  | M22: =#REF!/$F$9 ->  | N22: =#REF!/$F$9 ->  | O22: =#REF!/$F$9 ->  | P22: =#REF!/$F$9 ->  | Q22: =#REF!/$F$9 ->  | R22: =#REF!/$F$9 ->  | S22: =#REF!/$F$9 ->  | T22: =#REF!/$F$9 ->  | U22: =#REF!/$F$9 ->  | V22: =#REF!/$F$9 ->  | W22: =#REF!/$F$9 ->  | X22: =#REF!/$F$9 ->  | Y22: =#REF!/$F$9 ->  | Z22: =#REF!/$F$9 ->  | AA22: =#REF!/$F$9 ->  | AB22: =#REF!/$F$9 ->  | AC22: =#REF!/$F$9 ->  | AD22: =#REF!/$F$9 ->  | AE22: =#REF!/$F$9 ->  | AF22: =#REF!/$F$9 ->  | AG22: =#REF!/$F$9 ->  | AH22: =#REF!/$F$9 ->  | AI22: =#REF!/$F$9 ->  | AJ22: =#REF!/$F$9 ->  | AK22: =#REF!/$F$9 ->  | AL22: =#REF!/$F$9 ->  | AM22: =#REF!/$F$9 ->  | AN22: =#REF!/$F$9 ->  | AO22: =#REF!/$F$9 ->  | AP22: =#REF!/$F$9 ->  | AQ22: =#REF!/$F$9 ->  | AR22: =#REF!/$F$9 ->  | AS22: =#REF!/$F$9 ->  | AT22: =#REF!/$F$9 -> 
E23: Ending cash balance | H23: =#REF!/$F$9 ->  | I23: =#REF!/$F$9 ->  | J23: =#REF!/$F$9 ->  | K23: =#REF!/$F$9 ->  | L23: =#REF!/$F$9 ->  | M23: =#REF!/$F$9 ->  | N23: =#REF!/$F$9 ->  | O23: =#REF!/$F$9 ->  | P23: =#REF!/$F$9 ->  | Q23: =#REF!/$F$9 ->  | R23: =#REF!/$F$9 ->  | S23: =#REF!/$F$9 ->  | T23: =#REF!/$F$9 ->  | U23: =#REF!/$F$9 ->  | V23: =#REF!/$F$9 ->  | W23: =#REF!/$F$9 ->  | X23: =#REF!/$F$9 ->  | Y23: =#REF!/$F$9 ->  | Z23: =#REF!/$F$9 ->  | AA23: =#REF!/$F$9 ->  | AB23: =#REF!/$F$9 ->  | AC23: =#REF!/$F$9 ->  | AD23: =#REF!/$F$9 ->  | AE23: =#REF!/$F$9 ->  | AF23: =#REF!/$F$9 ->  | AG23: =#REF!/$F$9 ->  | AH23: =#REF!/$F$9 ->  | AI23: =#REF!/$F$9 ->  | AJ23: =#REF!/$F$9 ->  | AK23: =#REF!/$F$9 ->  | AL23: =#REF!/$F$9 ->  | AM23: =#REF!/$F$9 ->  | AN23: =#REF!/$F$9 ->  | AO23: =#REF!/$F$9 ->  | AP23: =#REF!/$F$9 ->  | AQ23: =#REF!/$F$9 ->  | AR23: =#REF!/$F$9 ->  | AS23: =#REF!/$F$9 ->  | AT23: =#REF!/$F$9 -> 
E24: Equity | H24: =#REF!/$F$9 ->  | I24: =#REF!/$F$9 ->  | J24: =#REF!/$F$9 ->  | K24: =#REF!/$F$9 ->  | L24: =#REF!/$F$9 ->  | M24: =#REF!/$F$9 ->  | N24: =#REF!/$F$9 ->  | O24: =#REF!/$F$9 ->  | P24: =#REF!/$F$9 ->  | Q24: =#REF!/$F$9 ->  | R24: =#REF!/$F$9 ->  | S24: =#REF!/$F$9 ->  | T24: =#REF!/$F$9 ->  | U24: =#REF!/$F$9 ->  | V24: =#REF!/$F$9 ->  | W24: =#REF!/$F$9 ->  | X24: =#REF!/$F$9 ->  | Y24: =#REF!/$F$9 ->  | Z24: =#REF!/$F$9 ->  | AA24: =#REF!/$F$9 ->  | AB24: =#REF!/$F$9 ->  | AC24: =#REF!/$F$9 ->  | AD24: =#REF!/$F$9 ->  | AE24: =#REF!/$F$9 ->  | AF24: =#REF!/$F$9 ->  | AG24: =#REF!/$F$9 ->  | AH24: =#REF!/$F$9 ->  | AI24: =#REF!/$F$9 ->  | AJ24: =#REF!/$F$9 ->  | AK24: =#REF!/$F$9 ->  | AL24: =#REF!/$F$9 ->  | AM24: =#REF!/$F$9 ->  | AN24: =#REF!/$F$9 ->  | AO24: =#REF!/$F$9 ->  | AP24: =#REF!/$F$9 ->  | AQ24: =#REF!/$F$9 ->  | AR24: =#REF!/$F$9 ->  | AS24: =#REF!/$F$9 ->  | AT24: =#REF!/$F$9 -> 
E25: Retained Earning | H25: =#REF!/$F$9 ->  | I25: =#REF!/$F$9 ->  | J25: =#REF!/$F$9 ->  | K25: =#REF!/$F$9 ->  | L25: =#REF!/$F$9 ->  | M25: =#REF!/$F$9 ->  | N25: =#REF!/$F$9 ->  | O25: =#REF!/$F$9 ->  | P25: =#REF!/$F$9 ->  | Q25: =#REF!/$F$9 ->  | R25: =#REF!/$F$9 ->  | S25: =#REF!/$F$9 ->  | T25: =#REF!/$F$9 ->  | U25: =#REF!/$F$9 ->  | V25: =#REF!/$F$9 ->  | W25: =#REF!/$F$9 ->  | X25: =#REF!/$F$9 ->  | Y25: =#REF!/$F$9 ->  | Z25: =#REF!/$F$9 ->  | AA25: =#REF!/$F$9 ->  | AB25: =#REF!/$F$9 ->  | AC25: =#REF!/$F$9 ->  | AD25: =#REF!/$F$9 ->  | AE25: =#REF!/$F$9 ->  | AF25: =#REF!/$F$9 ->  | AG25: =#REF!/$F$9 ->  | AH25: =#REF!/$F$9 ->  | AI25: =#REF!/$F$9 ->  | AJ25: =#REF!/$F$9 ->  | AK25: =#REF!/$F$9 ->  | AL25: =#REF!/$F$9 ->  | AM25: =#REF!/$F$9 ->  | AN25: =#REF!/$F$9 ->  | AO25: =#REF!/$F$9 ->  | AP25: =#REF!/$F$9 ->  | AQ25: =#REF!/$F$9 ->  | AR25: =#REF!/$F$9 ->  | AS25: =#REF!/$F$9 ->  | AT25: =#REF!/$F$9 -> 
E26: Ending Loan Balance | H26: =#REF!/$F$9 ->  | I26: =#REF!/$F$9 ->  | J26: =#REF!/$F$9 ->  | K26: =#REF!/$F$9 ->  | L26: =#REF!/$F$9 ->  | M26: =#REF!/$F$9 ->  | N26: =#REF!/$F$9 ->  | O26: =#REF!/$F$9 ->  | P26: =#REF!/$F$9 ->  | Q26: =#REF!/$F$9 ->  | R26: =#REF!/$F$9 ->  | S26: =#REF!/$F$9 ->  | T26: =#REF!/$F$9 ->  | U26: =#REF!/$F$9 ->  | V26: =#REF!/$F$9 ->  | W26: =#REF!/$F$9 ->  | X26: =#REF!/$F$9 ->  | Y26: =#REF!/$F$9 ->  | Z26: =#REF!/$F$9 ->  | AA26: =#REF!/$F$9 ->  | AB26: =#REF!/$F$9 ->  | AC26: =#REF!/$F$9 ->  | AD26: =#REF!/$F$9 ->  | AE26: =#REF!/$F$9 ->  | AF26: =#REF!/$F$9 ->  | AG26: =#REF!/$F$9 ->  | AH26: =#REF!/$F$9 ->  | AI26: =#REF!/$F$9 ->  | AJ26: =#REF!/$F$9 ->  | AK26: =#REF!/$F$9 ->  | AL26: =#REF!/$F$9 ->  | AM26: =#REF!/$F$9 ->  | AN26: =#REF!/$F$9 ->  | AO26: =#REF!/$F$9 ->  | AP26: =#REF!/$F$9 ->  | AQ26: =#REF!/$F$9 ->  | AR26: =#REF!/$F$9 ->  | AS26: =#REF!/$F$9 ->  | AT26: =#REF!/$F$9 -> 
C28: Ratios
E29: Annual DSCR | F29: =AVERAGE(L29:V29) ->  | H29: =#REF! ->  | I29: =#REF! ->  | J29: =#REF! ->  | K29: =#REF! ->  | L29: =#REF! ->  | M29: =#REF! ->  | N29: =#REF! ->  | O29: =#REF! ->  | P29: =#REF! ->  | Q29: =#REF! ->  | R29: =#REF! ->  | S29: =#REF! ->  | T29: =#REF! ->  | U29: =#REF! ->  | V29: =#REF! ->  | W29: =#REF! ->  | X29: =#REF! ->  | Y29: =#REF! ->  | Z29: =#REF! ->  | AA29: =#REF! ->  | AB29: =#REF! ->  | AC29: =#REF! ->  | AD29: =#REF! ->  | AE29: =#REF! ->  | AF29: =#REF! ->  | AG29: =#REF! ->  | AH29: =#REF! ->  | AI29: =#REF! ->  | AJ29: =#REF! ->  | AK29: =#REF! ->  | AL29: =#REF! ->  | AM29: =#REF! ->  | AN29: =#REF! ->  | AO29: =#REF! ->  | AP29: =#REF! ->  | AQ29: =#REF! ->  | AR29: =#REF! ->  | AS29: =#REF! ->  | AT29: =#REF! -> 
E30: Forward DSCR | F30: =AVERAGE(L30:U30) ->  | H30: =#REF! ->  | I30: =#REF! ->  | J30: =#REF! ->  | K30: =#REF! ->  | L30: =#REF! ->  | M30: =#REF! ->  | N30: =#REF! ->  | O30: =#REF! ->  | P30: =#REF! ->  | Q30: =#REF! ->  | R30: =#REF! ->  | S30: =#REF! ->  | T30: =#REF! ->  | U30: =#REF! ->  | V30: =#REF! ->  | W30: =#REF! ->  | X30: =#REF! ->  | Y30: =#REF! ->  | Z30: =#REF! ->  | AA30: =#REF! ->  | AB30: =#REF! ->  | AC30: =#REF! ->  | AD30: =#REF! ->  | AE30: =#REF! ->  | AF30: =#REF! ->  | AG30: =#REF! ->  | AH30: =#REF! ->  | AI30: =#REF! ->  | AJ30: =#REF! ->  | AK30: =#REF! ->  | AL30: =#REF! ->  | AM30: =#REF! ->  | AN30: =#REF! ->  | AO30: =#REF! ->  | AP30: =#REF! ->  | AQ30: =#REF! ->  | AR30: =#REF! ->  | AS30: =#REF! ->  | AT30: =#REF! -> 
E31: Debt to Net Worth | F31: =AVERAGE(K31:V31) ->  | H31: =#REF! ->  | I31: =#REF! ->  | J31: =#REF! ->  | K31: =#REF! ->  | L31: =#REF! ->  | M31: =#REF! ->  | N31: =#REF! ->  | O31: =#REF! ->  | P31: =#REF! ->  | Q31: =#REF! ->  | R31: =#REF! ->  | S31: =#REF! ->  | T31: =#REF! ->  | U31: =#REF! ->  | V31: =#REF! ->  | W31: =#REF! ->  | X31: =#REF! ->  | Y31: =#REF! ->  | Z31: =#REF! ->  | AA31: =#REF! ->  | AB31: =#REF! ->  | AC31: =#REF! ->  | AD31: =#REF! ->  | AE31: =#REF! ->  | AF31: =#REF! ->  | AG31: =#REF! ->  | AH31: =#REF! ->  | AI31: =#REF! ->  | AJ31: =#REF! ->  | AK31: =#REF! ->  | AL31: =#REF! ->  | AM31: =#REF! ->  | AN31: =#REF! ->  | AO31: =#REF! ->  | AP31: =#REF! ->  | AQ31: =#REF! ->  | AR31: =#REF! ->  | AS31: =#REF! ->  | AT31: =#REF! -> 
E32: Debt Equity Ratio | F32: =AVERAGE(K32:V32) ->  | H32: =#REF! ->  | I32: =#REF! ->  | J32: =#REF! ->  | K32: =#REF! ->  | L32: =#REF! ->  | M32: =#REF! ->  | N32: =#REF! ->  | O32: =#REF! ->  | P32: =#REF! ->  | Q32: =#REF! ->  | R32: =#REF! ->  | S32: =#REF! ->  | T32: =#REF! ->  | U32: =#REF! ->  | V32: =#REF! ->  | W32: =#REF! ->  | X32: =#REF! ->  | Y32: =#REF! ->  | Z32: =#REF! ->  | AA32: =#REF! ->  | AB32: =#REF! ->  | AC32: =#REF! ->  | AD32: =#REF! ->  | AE32: =#REF! ->  | AF32: =#REF! ->  | AG32: =#REF! ->  | AH32: =#REF! ->  | AI32: =#REF! ->  | AJ32: =#REF! ->  | AK32: =#REF! ->  | AL32: =#REF! ->  | AM32: =#REF! ->  | AN32: =#REF! ->  | AO32: =#REF! ->  | AP32: =#REF! ->  | AQ32: =#REF! ->  | AR32: =#REF! ->  | AS32: =#REF! ->  | AT32: =#REF! -> 
E33: Current Ratio | F33: =AVERAGE(K33:AS33) ->  | H33: =#REF! ->  | I33: =#REF! ->  | J33: =#REF! ->  | K33: =#REF! ->  | L33: =#REF! ->  | M33: =#REF! ->  | N33: =#REF! ->  | O33: =#REF! ->  | P33: =#REF! ->  | Q33: =#REF! ->  | R33: =#REF! ->  | S33: =#REF! ->  | T33: =#REF! ->  | U33: =#REF! ->  | V33: =#REF! ->  | W33: =#REF! ->  | X33: =#REF! ->  | Y33: =#REF! ->  | Z33: =#REF! ->  | AA33: =#REF! ->  | AB33: =#REF! ->  | AC33: =#REF! ->  | AD33: =#REF! ->  | AE33: =#REF! ->  | AF33: =#REF! ->  | AG33: =#REF! ->  | AH33: =#REF! ->  | AI33: =#REF! ->  | AJ33: =#REF! ->  | AK33: =#REF! ->  | AL33: =#REF! ->  | AM33: =#REF! ->  | AN33: =#REF! ->  | AO33: =#REF! ->  | AP33: =#REF! ->  | AQ33: =#REF! ->  | AR33: =#REF! ->  | AS33: =#REF! ->  | AT33: =#REF! -> 
E34: EBITDA Margin | H34: =#REF! ->  | I34: =#REF! ->  | J34: =#REF! ->  | K34: =#REF! ->  | L34: =#REF! ->  | M34: =#REF! ->  | N34: =#REF! ->  | O34: =#REF! ->  | P34: =#REF! ->  | Q34: =#REF! ->  | R34: =#REF! ->  | S34: =#REF! ->  | T34: =#REF! ->  | U34: =#REF! ->  | V34: =#REF! ->  | W34: =#REF! ->  | X34: =#REF! ->  | Y34: =#REF! ->  | Z34: =#REF! ->  | AA34: =#REF! ->  | AB34: =#REF! ->  | AC34: =#REF! ->  | AD34: =#REF! ->  | AE34: =#REF! ->  | AF34: =#REF! ->  | AG34: =#REF! ->  | AH34: =#REF! ->  | AI34: =#REF! ->  | AJ34: =#REF! ->  | AK34: =#REF! ->  | AL34: =#REF! ->  | AM34: =#REF! ->  | AN34: =#REF! ->  | AO34: =#REF! ->  | AP34: =#REF! ->  | AQ34: =#REF! ->  | AR34: =#REF! ->  | AS34: =#REF! ->  | AT34: =#REF! -> 
E35: PAT Margin | H35: =#REF! ->  | I35: =#REF! ->  | J35: =#REF! ->  | K35: =#REF! ->  | L35: =#REF! ->  | M35: =#REF! ->  | N35: =#REF! ->  | O35: =#REF! ->  | P35: =#REF! ->  | Q35: =#REF! ->  | R35: =#REF! ->  | S35: =#REF! ->  | T35: =#REF! ->  | U35: =#REF! ->  | V35: =#REF! ->  | W35: =#REF! ->  | X35: =#REF! ->  | Y35: =#REF! ->  | Z35: =#REF! ->  | AA35: =#REF! ->  | AB35: =#REF! ->  | AC35: =#REF! ->  | AD35: =#REF! ->  | AE35: =#REF! ->  | AF35: =#REF! ->  | AG35: =#REF! ->  | AH35: =#REF! ->  | AI35: =#REF! ->  | AJ35: =#REF! ->  | AK35: =#REF! ->  | AL35: =#REF! ->  | AM35: =#REF! ->  | AN35: =#REF! ->  | AO35: =#REF! ->  | AP35: =#REF! ->  | AQ35: =#REF! ->  | AR35: =#REF! ->  | AS35: =#REF! ->  | AT35: =#REF! -> 
E36: Return on Fixed Asset | H36: =#REF! ->  | I36: =#REF! ->  | J36: =#REF! ->  | K36: =#REF! ->  | L36: =#REF! ->  | M36: =#REF! ->  | N36: =#REF! ->  | O36: =#REF! ->  | P36: =#REF! ->  | Q36: =#REF! ->  | R36: =#REF! ->  | S36: =#REF! ->  | T36: =#REF! ->  | U36: =#REF! ->  | V36: =#REF! ->  | W36: =#REF! ->  | X36: =#REF! ->  | Y36: =#REF! ->  | Z36: =#REF! ->  | AA36: =#REF! ->  | AB36: =#REF! ->  | AC36: =#REF! ->  | AD36: =#REF! ->  | AE36: =#REF! ->  | AF36: =#REF! ->  | AG36: =#REF! ->  | AH36: =#REF! ->  | AI36: =#REF! ->  | AJ36: =#REF! ->  | AK36: =#REF! ->  | AL36: =#REF! ->  | AM36: =#REF! ->  | AN36: =#REF! ->  | AO36: =#REF! ->  | AP36: =#REF! ->  | AQ36: =#REF! ->  | AR36: =#REF! ->  | AS36: =#REF! ->  | AT36: =#REF! -> 
E37: Return on Equity | H37: =#REF! ->  | I37: =#REF! ->  | J37: =#REF! ->  | K37: =#REF! ->  | L37: =#REF! ->  | M37: =#REF! ->  | N37: =#REF! ->  | O37: =#REF! ->  | P37: =#REF! ->  | Q37: =#REF! ->  | R37: =#REF! ->  | S37: =#REF! ->  | T37: =#REF! ->  | U37: =#REF! ->  | V37: =#REF! ->  | W37: =#REF! ->  | X37: =#REF! ->  | Y37: =#REF! ->  | Z37: =#REF! ->  | AA37: =#REF! ->  | AB37: =#REF! ->  | AC37: =#REF! ->  | AD37: =#REF! ->  | AE37: =#REF! ->  | AF37: =#REF! ->  | AG37: =#REF! ->  | AH37: =#REF! ->  | AI37: =#REF! ->  | AJ37: =#REF! ->  | AK37: =#REF! ->  | AL37: =#REF! ->  | AM37: =#REF! ->  | AN37: =#REF! ->  | AO37: =#REF! ->  | AP37: =#REF! ->  | AQ37: =#REF! ->  | AR37: =#REF! ->  | AS37: =#REF! ->  | AT37: =#REF! -> 
E38: Return on Total Cap Employ | H38: =#REF! ->  | I38: =#REF! ->  | J38: =#REF! ->  | K38: =#REF! ->  | L38: =#REF! ->  | M38: =#REF! ->  | N38: =#REF! ->  | O38: =#REF! ->  | P38: =#REF! ->  | Q38: =#REF! ->  | R38: =#REF! ->  | S38: =#REF! ->  | T38: =#REF! ->  | U38: =#REF! ->  | V38: =#REF! ->  | W38: =#REF! ->  | X38: =#REF! ->  | Y38: =#REF! ->  | Z38: =#REF! ->  | AA38: =#REF! ->  | AB38: =#REF! ->  | AC38: =#REF! ->  | AD38: =#REF! ->  | AE38: =#REF! ->  | AF38: =#REF! ->  | AG38: =#REF! ->  | AH38: =#REF! ->  | AI38: =#REF! ->  | AJ38: =#REF! ->  | AK38: =#REF! ->  | AL38: =#REF! ->  | AM38: =#REF! ->  | AN38: =#REF! ->  | AO38: =#REF! ->  | AP38: =#REF! ->  | AQ38: =#REF! ->  | AR38: =#REF! ->  | AS38: =#REF! ->  | AT38: =#REF! -> 
